Capital or Revenue,Directorate,SERCOP High Level Category,SERCOP Detailed Category,Transaction Number,Date,Service Area,Expenses Type,Amount,Supplier Name
Revenue,Adult Services,Adult Social Care,Learning Disab Supp (to be reallocated),5105619118,13/09/2019,31 Carter Avenue,Minor Works,110.49,A & M APPLIANCE CARE
Revenue,Adult Services,Adult Social Care,Central Codes (to be reallocated),5105619694,06/09/2019,Gouldings Resource Centre,Consumable Cleaning Materials,218.00,A & M APPLIANCE CARE
Revenue,Neighbourhoods,Cultural and Related Services,Open Spaces,5105619134,04/09/2019,Tree Felling / Replacement,Payment to Private Contractors,950.00,A GUSTAR T/A IVY TREE CARE
Revenue,Neighbourhoods,Cultural and Related Services,Open Spaces,5105619130,04/09/2019,Tree Felling / Replacement,Payment to Private Contractors,"1,030.00",A GUSTAR T/A IVY TREE CARE
Revenue,Neighbourhoods,Cultural and Related Services,Open Spaces,5105619131,04/09/2019,Tree Felling / Replacement,Payment to Private Contractors,800.00,A GUSTAR T/A IVY TREE CARE
Revenue,Neighbourhoods,Cultural and Related Services,Open Spaces,5105619132,04/09/2019,Tree Felling / Replacement,Payment to Private Contractors,"1,425.00",A GUSTAR T/A IVY TREE CARE
Revenue,Neighbourhoods,Environmental & Regulatory Services,"Cemetery, Cremation & Mortuary Services",5105619135,04/09/2019,Cemeteries-Newport,Grounds Maintenance,350.00,A GUSTAR T/A IVY TREE CARE
Revenue,Adult Services,Adult Social Care,Assistive Equipment & Technology,5105619081,04/09/2019,Wightcare,Vehicle Maintenance Costs,90.00,ISLANDWIDE WINDSCREENS
Revenue,Childrens Services,Children's & Education Services,Management & Support Services,5105619917,11/09/2019,Specialist Teacher Advisors,Professional Services,400.00,ANOTHER WAY AROUND
Revenue,Neighbourhoods,Environmental & Regulatory Services,Regulatory Services,5105620527,18/09/2019,Environmental Health - Environmental Regulation & Protection,Payment to Private Contractors,492.13,BUCKINGHAM FUTURES LTD
Revenue,Neighbourhoods,Environmental & Regulatory Services,Regulatory Services,5105620528,18/09/2019,Environmental Health - Environmental Regulation & Protection,Payment to Private Contractors,"1,035.17",BUCKINGHAM FUTURES LTD
Revenue,Regeneration,Central Services,Support Services,5105620407,25/09/2019,"Enterprise House, Newport",Property Services - Day to day Maintenance,190.00,C & J GROUND MAINTENANCE
Revenue,Regeneration,Housing Services,Other Council Property,5105620403,18/09/2019,Shared Ownership,Grounds Maintenance,150.00,C & J GROUND MAINTENANCE
Revenue,Regeneration,Planning services,Business Support,5105620400,18/09/2019,Somerton Industrial Park,Grounds Maintenance,200.00,C & J GROUND MAINTENANCE
Revenue,Regeneration,Central Services,Support Services,5105620397,18/09/2019,"24 Daish Way, Newport (WISE)",Grounds Maintenance,110.00,C & J GROUND MAINTENANCE
Revenue,Regeneration,Planning services,Business Support,5105620392,18/09/2019,Dodnor Industrial Estate,Grounds Maintenance,150.00,C & J GROUND MAINTENANCE
Revenue,Regeneration,Central Services,Support Services,5105620405,18/09/2019,17 Fairlee Road,Grounds Maintenance,150.00,C & J GROUND MAINTENANCE
Revenue,Neighbourhoods,Environmental & Regulatory Services,"Cemetery, Cremation & Mortuary Services",5105620861,20/09/2019,Crematorium,Grounds Maintenance,195.00,C & J GROUND MAINTENANCE
Revenue,Resources,Central Services,Support Services,5105618748,06/09/2019,Litigation Costs,Legal Fees - Other Parties,900.00,CORNERSTONE BARRISTERS
Revenue,Resources,Central Services,Support Services,5105620480,18/09/2019,Litigation Costs,Legal Fees - Other Parties,750.00,COLLEGE CHAMBERS BARRISTERS
Revenue,Resources,Central Services,Support Services,5105619697,06/09/2019,Litigation Costs,Legal Fees - Other Parties,400.00,COLLEGE CHAMBERS BARRISTERS
Revenue,Resources,Central Services,Support Services,5105620563,18/09/2019,Litigation Costs,Legal Fees - Other Parties,"1,500.00",COLLEGE CHAMBERS BARRISTERS
Revenue,Resources,Central Services,Support Services,5105620558,18/09/2019,Litigation Costs,Legal Fees - Other Parties,500.00,COLLEGE CHAMBERS BARRISTERS
Revenue,Childrens Services,Children's & Education Services,Family Support Services,5105619449,04/09/2019,Short Breaks,Grants to External Bodies,209.15,REDACTED PERSONAL DATA
Revenue,Resources,Children's & Education Services,Other Education and Community Budget,5105621298,27/09/2019,Specialist Cross-Council Training,Training,350.00,FRAN OSMAN-NEWBURY LTD
Revenue,Childrens Services,Children's & Education Services,Management & Support Services,5105618693,11/09/2019,Special Discretionary Grants,Charges from Independent Providers,"1,645.00",REDACTED PERSONAL DATA
Revenue,Childrens Services,Children's & Education Services,Management & Support Services,5105618685,18/09/2019,Special Discretionary Grants,Charges from Independent Providers,"3,760.00",REDACTED PERSONAL DATA
Capital,Place,Capital,Capital,5105620308,20/09/2019,Bus Infrastructure,External Design and Supervision Fees,920.00,ISLAND HIGHWAY & TRANSPORT
Revenue,Regeneration,Cultural and Related Services,Culture and Heritage,5105619973,11/09/2019,Events Support,Consultants Fees,"7,500.00",ISLAND HIGHWAY & TRANSPORT
Revenue,Regeneration,Cultural and Related Services,Culture and Heritage,5105619974,11/09/2019,Events Support,Consultants Fees,"4,500.00",ISLAND HIGHWAY & TRANSPORT
Revenue,Resources,Central Services,Support Services,5105619705,25/09/2019,ICT Contracts,Computer Maintenance,300.00,REDACTED PERSONAL DATA
Revenue,Resources,Central Services,Support Services,5105620557,18/09/2019,Litigation Costs,Legal Fees - Other Parties,400.00,"COLLEGE CHAMBERS, BARRISTERS"
Revenue,Childrens Services,Children's & Education Services,Family Support Services,5105619386,04/09/2019,Short Breaks,Charges from Independent Providers,236.00,JOHN CATTLE'S SKATE CLUB
Revenue,Childrens Services,Children's & Education Services,Family Support Services,5105621501,27/09/2019,Short Breaks,Charges from Independent Providers,236.00,JOHN CATTLE'S SKATE CLUB
Revenue,Childrens Services,Children's & Education Services,Family Support Services,5105621490,27/09/2019,Short Breaks,Grants to External Bodies,450.00,JOHN CATTLE'S SKATE CLUB
Revenue,Childrens Services,Children's & Education Services,Other Education and Community Budget,5105620648,18/09/2019,Home to College Post 16 Transport,Taxis - Contract Hire,520.00,REDACTED PERSONAL DATA
Revenue,Childrens Services,Children's & Education Services,Other Education and Community Budget,5105620014,10/09/2019,Home to College Post 16 Transport,Taxis - Contract Hire,360.00,REDACTED PERSONAL DATA
Revenue,Childrens Services,Children's & Education Services,Other Education and Community Budget,5105620015,10/09/2019,Home to College Post 16 Transport,Taxis - Contract Hire,-360.00,REDACTED PERSONAL DATA
Revenue,Childrens Services,Children's & Education Services,Other Education and Community Budget,5105620017,11/09/2019,Home to College Post 16 Transport,Taxis - Contract Hire,360.00,REDACTED PERSONAL DATA
Revenue,Resources,Central Services,Central Services to the Public,5400002432,01/03/2019,Local Welfare Assistance Scheme,Local Welfare Provision payments,190.00,LEE ATKINS TRANSPORT
Revenue,Adult Services,Housing Services,Homelessness,5105619049,04/09/2019,Homelessness Support,Client Expenses,158.17,LEE ATKINS TRANSPORT
Revenue,Adult Services,Adult Social Care,Social Care Activities,5105617145,11/09/2019,Safeguarding Adults,Consultants Fees,"3,600.00",MAKING CONNECTIONS (IW) LTD
Revenue,Adult Services,Adult Social Care,Social Care Activities,5105619129,20/09/2019,Safeguarding Adults,Consultants Fees,"3,600.00",MAKING CONNECTIONS (IW) LTD
Revenue,Childrens Services,Adult Social Care,Social Care Activities,5105620521,25/09/2019,Adult Social Care - Workforce Development,Training,810.00,MAKING CONNECTIONS (IW) LTD
Capital,Place,Capital,Capital,5105619063,06/09/2019,Rights Of Way Capital Programme,Payment to Contractors - Capital,"1,760.00",REDACTED PERSONAL DATA
Capital,Place,Capital,Capital,5105620567,18/09/2019,Rights Of Way Capital Programme,Payment to Contractors - Capital,"3,080.00",REDACTED PERSONAL DATA
Capital,Place,Capital,Capital,5105620860,20/09/2019,Rights Of Way Capital Programme,Payment to Contractors - Capital,880.00,REDACTED PERSONAL DATA
Revenue,Resources,Children's & Education Services,Safeguarding Children/Young Peoples Svs,5105617448,04/09/2019,ASYE Programme,Training,500.00,MISSING SOLUTIONS LTD
Revenue,Resources,Children's & Education Services,Safeguarding Children/Young Peoples Svs,5105620436,18/09/2019,ASYE Programme,Training,500.00,MISSING SOLUTIONS LTD
Revenue,Resources,Children's & Education Services,Safeguarding Children/Young Peoples Svs,5105620436,18/09/2019,ASYE Programme,Training,500.00,MISSING SOLUTIONS LTD
Revenue,Resources,Children's & Education Services,Safeguarding Children/Young Peoples Svs,5105617448,04/09/2019,ASYE Programme,Training,500.00,MISSING SOLUTIONS LTD
Revenue,Neighbourhoods,Planning services,Environmental Initiatives,5105621481,27/09/2019,WW Landscape Partnership,Payment to Private Contractors,"6,500.00",REDACTED PERSONAL DATA
Revenue,Neighbourhoods,Cultural and Related Services,Open Spaces,5105619680,06/09/2019,Rights of Way Operations,Payment to Private Contractors,120.00,NIGEL EARLEY SERVICES LTD
Revenue,Resources,Central Services,Support Services,5105619715,06/09/2019,Legal Services Section,Sundry Office Expenses,59.97,OD CONSULTANCY LTD
Revenue,Neighbourhoods,Cultural and Related Services,Library Service,5105619333,04/09/2019,Newport Library,Cleaning Contracts,195.00,REDACTED PERSONAL DATA
Revenue,Adult Services,Housing Services,Homelessness,5105620957,25/09/2019,Private Rented Sector Leasing Scheme,Accommodation Costs - Leaseholder Payments,695.89,REDACTED PERSONAL DATA
Revenue,Adult Services,Housing Services,Homelessness,5105620957,25/09/2019,Private Rented Sector Leasing Scheme,Accommodation Costs - Leaseholder Payments,695.89,REDACTED PERSONAL DATA
Revenue,Adult Services,Housing Services,Homelessness,5105620957,25/09/2019,Private Rented Sector Leasing Scheme,Accommodation Costs - Leaseholder Payments,695.89,REDACTED PERSONAL DATA
Revenue,Adult Services,Housing Services,Homelessness,5105620957,25/09/2019,Private Rented Sector Leasing Scheme,Accommodation Costs - Leaseholder Payments,695.89,REDACTED PERSONAL DATA
Revenue,Adult Services,Housing Services,Homelessness,5105620957,25/09/2019,Private Rented Sector Leasing Scheme,Accommodation Costs - Leaseholder Payments,695.89,REDACTED PERSONAL DATA
Revenue,Regeneration,Central Services,Support Services,5105619151,11/09/2019,Properties  - Other Properties,Property Services - Day to day Maintenance,450.00,PRINCIPAL SURVEYORS LTD
Revenue,Adult Services,Adult Social Care,Commissioning & Service Delivery,5105621100,25/09/2019,Deferred Payment Fees,Professional Services,150.00,PRINCIPAL SURVEYORS LTD
Revenue,Childrens Services,Children's & Education Services,Other Education and Community Budget,5105621083,25/09/2019,Non-Delegated Building Maintenance,Professional Services,275.00,PRINCIPAL SURVEYORS LTD
Revenue,Adult Services,Adult Social Care,Learning Disability Suppt-adults (18-64),5105619409,06/09/2019,Learning Disability Other LT Care 18-64,Taxis - Contract Hire,400.00,ROUNSEVELLS TAXIS
Revenue,Childrens Services,Children's & Education Services,Other Education and Community Budget,5105620370,20/09/2019,Home to College Post 16 Transport,Taxis - Contract Hire,350.00,ROUNSEVELLS TAXIS
Revenue,Childrens Services,Children's & Education Services,Family Support Services,5105620334,18/09/2019,S17 Disabled Children,Support Children,330.00,SCALLYWAGS FUN CLUB
Revenue,Childrens Services,Children's & Education Services,Family Support Services,5105620338,18/09/2019,S17 Disabled Children,Support Children,150.00,SCALLYWAGS FUN CLUB
Revenue,Childrens Services,Children's & Education Services,Family Support Services,5105620332,13/09/2019,Short Breaks,Charges from Independent Providers,"2,160.00",SCALLYWAGS FUN CLUB
Revenue,Childrens Services,Children's & Education Services,Family Support Services,5105620336,20/09/2019,S17 Disabled Children,Support Children,180.00,SCALLYWAGS FUN CLUB
Revenue,Childrens Services,Children's & Education Services,Family Support Services,5105620378,27/09/2019,S17 Disabled Children,Support Children,396.00,SCALLYWAGS FUN CLUB
Revenue,Childrens Services,Children's & Education Services,Family Support Services,5105620948,27/09/2019,S17 Child Protection,Support Children,79.33,SCALLYWAGS FUN CLUB
Revenue,Childrens Services,Children's & Education Services,Family Support Services,5105620948,27/09/2019,S17 Child Protection,Support Children,79.33,SCALLYWAGS FUN CLUB
Revenue,Childrens Services,Children's & Education Services,Family Support Services,5105620948,27/09/2019,S17 Child Protection,Support Children,74.34,SCALLYWAGS FUN CLUB
Revenue,Childrens Services,Adult Social Care,Social Care Activities,5105620553,25/09/2019,Adult Social Care - Workforce Development,Training,549.00,ST THOMAS TRAINING
Revenue,Adult Services,Adult Social Care,Social Support - Social Isolation/Other,5105619026,04/09/2019,Social Isolation/Other Other ST Support,Charges from Independent Providers,150.00,THE ROBOS SPECIALIST CLEANING
Revenue,Childrens Services,Children's & Education Services,Special Schools & Alternative Provision,5105619837,11/09/2019,Island Learning Centre,Consumable Cleaning Materials,18.66,TOP MOPS LIMITED
Revenue,Childrens Services,Children's & Education Services,Special Schools & Alternative Provision,5105619840,11/09/2019,Island Learning Centre,Cleaning Contracts,"1,431.13",TOP MOPS LIMITED
Revenue,Childrens Services,Children's & Education Services,Special Schools & Alternative Provision,5105619833,11/09/2019,Island Learning Centre,Cleaning Contracts,655.96,TOP MOPS LIMITED
Revenue,Regeneration,Planning services,Economic Development,5105619025,04/09/2019,"Pier St, Sandown",Consumable Cleaning Materials,200.48,TOP MOPS LIMITED
Revenue,Childrens Services,Children's & Education Services,Special Schools & Alternative Provision,5105619356,04/09/2019,Island Learning Centre,Consumable Cleaning Materials,27.78,TOP MOPS LIMITED
Revenue,Regeneration,Central Services,Support Services,5105620333,25/09/2019,"Westridge, Ryde",Security of Buildings,92.00,VECTIS GROUP SECURITY LTD
Revenue,Regeneration,Central Services,Support Services,5105620314,18/09/2019,Non-operational buildings,Security of Buildings,60.00,VECTIS GROUP SECURITY LTD
Revenue,Neighbourhoods,Cultural and Related Services,Recreation and Sport,5105619829,11/09/2019,Medina Leisure Centre,Payment to Private Contractors,72.00,VECTIS GROUP SECURITY LTD
Revenue,Neighbourhoods,Cultural and Related Services,Recreation and Sport,5105619832,18/09/2019,Westridge Squash Courts,Maintenance of Operational Equipment,12.00,VECTIS GROUP SECURITY LTD
Revenue,Neighbourhoods,Cultural and Related Services,Recreation and Sport,5105619830,11/09/2019,The Heights,Maintenance of Operational Equipment,12.00,VECTIS GROUP SECURITY LTD
Revenue,Childrens Services,Children's & Education Services,Other Education and Community Budget,5105621492,27/09/2019,Broadlea PS Berry Hill site (was 55909),Security of Buildings,30.00,VECTIS GROUP SECURITY LTD
Revenue,Childrens Services,Children's & Education Services,Other Education and Community Budget,5105621524,27/09/2019,Weston Academy Closure,Security of Buildings,672.00,VECTIS GROUP SECURITY LTD
Revenue,Childrens Services,Children's & Education Services,Other Education and Community Budget,5105621540,27/09/2019,Barton Primary Sshool Disposal,Security of Buildings,552.00,VECTIS GROUP SECURITY LTD
Revenue,Fire & Rescue,Fire & Rescue Services,Fire fighting and Rescue Operations,5105619060,04/09/2019,Business Support  - Fire,Property Services - Planned Maintenance,75.00,WIGHT HEATING LTD
Revenue,Regeneration,Central Services,Support Services,5105619073,04/09/2019,Non-operational buildings,Property Services - Planned Maintenance,325.76,WIGHT HEATING LTD
Revenue,Neighbourhoods,Cultural and Related Services,Recreation and Sport,5105620554,18/09/2019,The Heights,Property Services - Day to day Maintenance,"1,755.41",WIGHT HEATING LTD
Revenue,Neighbourhoods,Cultural and Related Services,Culture and Heritage,5105619068,04/09/2019,Dinosaur Isle Museum (Sandown Geology),Property Services - Day to day Maintenance,454.65,WIGHT HEATING LTD
Revenue,Adult Services,Adult Social Care,Central Codes (to be reallocated),5105620552,18/09/2019,Gouldings Resource Centre,Property Services - Day to day Maintenance,45.00,WIGHT HEATING LTD
Revenue,Regeneration,Central Services,Support Services,5105620551,18/09/2019,Non-operational buildings,Property Services - Day to day Maintenance,62.50,WIGHT HEATING LTD
Revenue,Adult Services,Adult Social Care,Central Codes (to be reallocated),5105620640,25/09/2019,Adelaide Resource Centre,Property Services - Day to day Maintenance,465.64,WIGHT HEATING LTD
Revenue,Adult Services,Housing Services,Homelessness,5105620970,25/09/2019,Private Rented Sector Leasing Scheme,Accommodation Costs - Leaseholder Payments,866.67,2K PROPERTY
Revenue,Regeneration,Planning services,Economic Development,5105617476,27/09/2019,Pitch and Play Strategy,Consultants Fees,"9,936.20",4 GLOBAL CONSULTING LTD
Revenue,Childrens Services,Children's & Education Services,Children Looked After,5105620124,13/09/2019,Special Guardianship Order Costs,Support Children,168.39,REDACTED PERSONAL DATA
Revenue,Childrens Services,Children's & Education Services,Children Looked After,5105621326,27/09/2019,Special Guardianship Order Costs,Support Children,168.39,REDACTED PERSONAL DATA
Revenue,Childrens Services,Children's & Education Services,Children Looked After,5105619474,06/09/2019,Special Guardianship Order Costs,Support Children,168.39,REDACTED PERSONAL DATA
Revenue,Childrens Services,Children's & Education Services,Children Looked After,5105620709,20/09/2019,Special Guardianship Order Costs,Support Children,168.39,REDACTED PERSONAL DATA
Revenue,Childrens Services,Children's & Education Services,Children Looked After,5105620709,20/09/2019,In-house Fostering,Boarding Out Allowances,239.44,REDACTED PERSONAL DATA
Revenue,Childrens Services,Children's & Education Services,Children Looked After,5105619474,06/09/2019,In-house Fostering,Boarding Out Allowances,239.44,REDACTED PERSONAL DATA
Revenue,Childrens Services,Children's & Education Services,Children Looked After,5105621326,27/09/2019,In-house Fostering,Boarding Out Allowances,239.44,REDACTED PERSONAL DATA
Revenue,Childrens Services,Children's & Education Services,Children Looked After,5105620124,13/09/2019,In-house Fostering,Boarding Out Allowances,239.44,REDACTED PERSONAL DATA
Revenue,Childrens Services,Children's & Education Services,Children Looked After,5105621326,27/09/2019,In-house Fostering,Boarding Out Allowances,239.44,REDACTED PERSONAL DATA
Revenue,Childrens Services,Children's & Education Services,Children Looked After,5105620124,13/09/2019,In-house Fostering,Boarding Out Allowances,239.44,REDACTED PERSONAL DATA
Revenue,Childrens Services,Children's & Education Services,Children Looked After,5105619474,06/09/2019,In-house Fostering,Boarding Out Allowances,239.44,REDACTED PERSONAL DATA
Revenue,Childrens Services,Children's & Education Services,Children Looked After,5105620709,20/09/2019,In-house Fostering,Boarding Out Allowances,239.44,REDACTED PERSONAL DATA
Revenue,Childrens Services,Children's & Education Services,Children Looked After,5105619518,06/09/2019,Leaving Care Costs,Support Children,120.89,REDACTED PERSONAL DATA
Revenue,Childrens Services,Children's & Education Services,Children Looked After,5105620752,20/09/2019,Leaving Care Costs,Support Children,120.89,REDACTED PERSONAL DATA
Revenue,Childrens Services,Children's & Education Services,Children Looked After,5105620168,13/09/2019,Leaving Care Costs,Support Children,120.89,REDACTED PERSONAL DATA
Revenue,Childrens Services,Children's & Education Services,Children Looked After,5105621369,27/09/2019,Leaving Care Costs,Support Children,120.89,REDACTED PERSONAL DATA
Revenue,Childrens Services,Children's & Education Services,Children Looked After,5105621369,27/09/2019,Leaving Care Costs,Support Children,68.50,REDACTED PERSONAL DATA
Revenue,Childrens Services,Children's & Education Services,Children Looked After,5105620168,13/09/2019,Leaving Care Costs,Support Children,68.50,REDACTED PERSONAL DATA
Revenue,Childrens Services,Children's & Education Services,Children Looked After,5105620752,20/09/2019,Leaving Care Costs,Support Children,68.50,REDACTED PERSONAL DATA
Revenue,Childrens Services,Children's & Education Services,Children Looked After,5105619518,06/09/2019,Leaving Care Costs,Support Children,68.50,REDACTED PERSONAL DATA
Revenue,Childrens Services,Children's & Education Services,Safeguarding Children/Young Peoples Svs,5105619428,11/09/2019,Court Work & Consultancy Services,Professional Services,"2,571.92",A G FAMILY SUPPORT
Revenue,Childrens Services,Children's & Education Services,Safeguarding Children/Young Peoples Svs,5105619428,11/09/2019,Court Work & Consultancy Services,Professional Services,676.71,A G FAMILY SUPPORT
Revenue,Adult Services,Housing Services,Homelessness,5105620967,25/09/2019,Private Rented Sector Leasing Scheme,Accommodation Costs - Leaseholder Payments,510.25,REDACTED PERSONAL DATA
Revenue,Adult Services,Housing Services,Homelessness,5105620967,25/09/2019,Private Rented Sector Leasing Scheme,Accommodation Costs - Leaseholder Payments,510.25,REDACTED PERSONAL DATA
Revenue,Adult Services,Housing Services,Homelessness,5105620967,25/09/2019,Private Rented Sector Leasing Scheme,Accommodation Costs - Leaseholder Payments,510.25,REDACTED PERSONAL DATA
Revenue,Adult Services,Housing Services,Homelessness,5105620967,25/09/2019,Private Rented Sector Leasing Scheme,Accommodation Costs - Leaseholder Payments,510.25,REDACTED PERSONAL DATA
Revenue,Adult Services,Housing Services,Homelessness,5105620967,25/09/2019,Private Rented Sector Leasing Scheme,Accommodation Costs - Leaseholder Payments,510.25,REDACTED PERSONAL DATA
Revenue,Adult Services,Housing Services,Homelessness,5105620967,25/09/2019,Private Rented Sector Leasing Scheme,Accommodation Costs - Leaseholder Payments,510.25,REDACTED PERSONAL DATA
Revenue,Resources,Central Services,Support Services,5105620560,18/09/2019,Litigation Costs,Legal Fees - Other Parties,"1,000.00","COLLEGE CHAMBERS, BARRISTERS"
Revenue,Childrens Services,Children's & Education Services,Children Looked After,5105621391,27/09/2019,In-house Fostering,Support Children,60.00,REDACTED PERSONAL DATA
Revenue,Childrens Services,Children's & Education Services,Children Looked After,5105619462,06/09/2019,Adoption Costs,Support Children,225.83,REDACTED PERSONAL DATA
Revenue,Childrens Services,Children's & Education Services,Children Looked After,5105620112,13/09/2019,Adoption Costs,Support Children,225.83,REDACTED PERSONAL DATA
Revenue,Childrens Services,Children's & Education Services,Children Looked After,5105620697,20/09/2019,Adoption Costs,Support Children,225.83,REDACTED PERSONAL DATA
Revenue,Childrens Services,Children's & Education Services,Children Looked After,5105621314,27/09/2019,Adoption Costs,Support Children,225.83,REDACTED PERSONAL DATA
Revenue,Childrens Services,Children's & Education Services,Children Looked After,5105620142,13/09/2019,In-house Fostering,Boarding Out Allowances,510.50,REDACTED PERSONAL DATA
Revenue,Childrens Services,Children's & Education Services,Children Looked After,5105620727,20/09/2019,In-house Fostering,Boarding Out Allowances,510.50,REDACTED PERSONAL DATA
Revenue,Childrens Services,Children's & Education Services,Children Looked After,5105621344,27/09/2019,In-house Fostering,Boarding Out Allowances,510.50,REDACTED PERSONAL DATA
Revenue,Childrens Services,Children's & Education Services,Children Looked After,5105619493,06/09/2019,In-house Fostering,Boarding Out Allowances,510.50,REDACTED PERSONAL DATA
Revenue,Childrens Services,Children's & Education Services,Children Looked After,5105619493,06/09/2019,In-house Fostering,Boarding Out Allowances,510.50,REDACTED PERSONAL DATA
Revenue,Childrens Services,Children's & Education Services,Children Looked After,5105621344,27/09/2019,In-house Fostering,Boarding Out Allowances,510.50,REDACTED PERSONAL DATA
Revenue,Childrens Services,Children's & Education Services,Children Looked After,5105620727,20/09/2019,In-house Fostering,Boarding Out Allowances,510.50,REDACTED PERSONAL DATA
Revenue,Childrens Services,Children's & Education Services,Children Looked After,5105620142,13/09/2019,In-house Fostering,Boarding Out Allowances,510.50,REDACTED PERSONAL DATA
Revenue,Adult Services,Adult Social Care,Support - Memory /Cognition-older people (65+),5105619307,04/09/2019,Memory & Cognition Residential 65+,Charges from Independent Providers,"3,200.12",ABBERDALE LIMITED
Revenue,Adult Services,Adult Social Care,Support - Memory /Cognition-older people (65+),5105621668,27/09/2019,Memory & Cognition Residential 65+,Charges from Independent Providers,"3,200.12",ABBERDALE LIMITED
Revenue,Resources,Central Services,Support Services,5105620675,25/09/2019,Pension Administration,Computer Purchase & Rental,"4,242.00",ABSOFT LIMITED
Revenue,Resources,Central Services,Support Services,5105620675,25/09/2019,ICT Contracts,Computer Purchase & Rental,"4,242.00",ABSOFT LIMITED
Revenue,Resources,Children's & Education Services,Other Education and Community Budget,5105619009,06/09/2019,Specialist Cross-Council Training,Training,175.00,ACAS
Revenue,Neighbourhoods,Environmental & Regulatory Services,Regulatory Services,5105620461,13/09/2019,Licensing Services,Professional Services,36.00,ACCESS PERSONAL CHECKING SERVICES LTD
Revenue,Neighbourhoods,Environmental & Regulatory Services,Regulatory Services,5105620461,13/09/2019,Licensing Services,Professional Services,264.00,ACCESS PERSONAL CHECKING SERVICES LTD
Revenue,Adult Services,Housing Services,Supporting People,5105620885,20/09/2019,Supporting People Learning Disability,Payment to Private Contractors,"2,055.35",TRACSCARE WELLCARE LIFESTYLES
Revenue,Adult Services,Housing Services,Supporting People,5105620886,20/09/2019,Supporting People Physical Disability,Payment to Private Contractors,"1,914.34",TRACSCARE WELLCARE LIFESTYLES
Revenue,Adult Services,Housing Services,Supporting People,5105620887,20/09/2019,Supporting People Mental Health,Payment to Private Contractors,"1,488.92",TRACSCARE WELLCARE LIFESTYLES
Revenue,Adult Services,Adult Social Care,Learning Disab Supp (to be reallocated),5105619863,11/09/2019,Westhorpe Supported Living,Charges from Independent Providers,"5,684.00",TRACSCARE WELLCARE LIFESTYLES
Revenue,Adult Services,Adult Social Care,Learning Disab Supp (to be reallocated),5105619863,11/09/2019,Westhorpe Supported Living,Charges from Independent Providers,"4,060.00",TRACSCARE WELLCARE LIFESTYLES
Revenue,Adult Services,Adult Social Care,Learning Disab Supp (to be reallocated),5105619863,11/09/2019,Westhorpe Supported Living,Charges from Independent Providers,"2,030.00",TRACSCARE WELLCARE LIFESTYLES
Revenue,Adult Services,Adult Social Care,Learning Disab Supp (to be reallocated),5105619863,11/09/2019,"Greengates, Ryde",Charges from Independent Providers,"5,684.00",TRACSCARE WELLCARE LIFESTYLES
Revenue,Adult Services,Adult Social Care,Learning Disab Supp (to be reallocated),5105619863,11/09/2019,"Greengates, Ryde",Charges from Independent Providers,"2,190.72",TRACSCARE WELLCARE LIFESTYLES
Revenue,Adult Services,Adult Social Care,Learning Disab Supp (to be reallocated),5105619863,11/09/2019,"41 Newport Road, Cowes",Charges from Independent Providers,"5,684.00",TRACSCARE WELLCARE LIFESTYLES
Revenue,Adult Services,Adult Social Care,Learning Disab Supp (to be reallocated),5105619863,11/09/2019,"41 Newport Road, Cowes",Charges from Independent Providers,"2,190.72",TRACSCARE WELLCARE LIFESTYLES
Revenue,Adult Services,Adult Social Care,Learning Disab Supp (to be reallocated),5105619863,11/09/2019,"Heath Road, Lake",Charges from Independent Providers,"4,553.00",TRACSCARE WELLCARE LIFESTYLES
Revenue,Adult Services,Adult Social Care,Learning Disab Supp (to be reallocated),5105619863,11/09/2019,"Heath Road, Lake",Charges from Independent Providers,"2,190.72",TRACSCARE WELLCARE LIFESTYLES
Revenue,Adult Services,Adult Social Care,Learning Disab Supp (to be reallocated),5105619863,11/09/2019,"17 Newport Road, Ventnor",Charges from Independent Providers,"4,553.00",TRACSCARE WELLCARE LIFESTYLES
Revenue,Adult Services,Adult Social Care,Learning Disab Supp (to be reallocated),5105619863,11/09/2019,"17 Newport Road, Ventnor",Charges from Independent Providers,"2,190.72",TRACSCARE WELLCARE LIFESTYLES
Revenue,Adult Services,Adult Social Care,Learning Disab Supp (to be reallocated),5105619863,11/09/2019,"Winton Street, Ryde",Charges from Independent Providers,"5,684.00",TRACSCARE WELLCARE LIFESTYLES
Revenue,Adult Services,Adult Social Care,Learning Disab Supp (to be reallocated),5105619863,11/09/2019,"Winton Street, Ryde",Charges from Independent Providers,"2,190.72",TRACSCARE WELLCARE LIFESTYLES
Revenue,Adult Services,Adult Social Care,Assistive Equipment & Technology,5105620420,13/09/2019,Community Equipment Store,Operational Equipment,"3,144.00",ACCORA  LIMITED
Revenue,Adult Services,Adult Social Care,Commissioning & Service Delivery,5105615719,25/09/2019,BCF Care Bill Implementation,Payment to Private Contractors,"20,000.00",ADAM HTT LTD
Revenue,Adult Services,Adult Social Care,Commissioning & Service Delivery,5105621220,25/09/2019,BCF Care Bill Implementation,Payment to Private Contractors,"-20,000.00",ADAM HTT LTD
Revenue,Adult Services,Adult Social Care,Commissioning & Service Delivery,5105621248,27/09/2019,BCF Care Bill Implementation,Payment to Private Contractors,"18,630.14",ADAM HTT LTD
Revenue,Childrens Services,Children's & Education Services,Management & Support Services,5105615541,11/09/2019,Special Discretionary Grants,Charges from Independent Providers,105.00,A-DAY CONSULTANTS LTD
Revenue,Childrens Services,Children's & Education Services,Management & Support Services,5105621171,25/09/2019,Special Discretionary Grants,Charges from Independent Providers,52.50,A-DAY CONSULTANTS LTD
Revenue,Assistant Chief Executive,Central Services,Support Services,5105618999,04/09/2019,Graduate Trainees,Printing Costs,246.50,ADGIFTDISCOUNTS LTD
Revenue,Regeneration,Central Services,Support Services,5105619688,06/09/2019,"Enterprise House, Newport",Operational Equipment,190.00,ADT FIRE AND SECURITY PLC
Revenue,Adult Services,Adult Social Care,Commissioning & Service Delivery,5105621032,27/09/2019,Learning Disability Homes Management & Admin,Publications,64.94,AGORA BUSINESS PUBLICATIONS LLP
Revenue,Neighbourhoods,Cultural and Related Services,Culture and Heritage,5105620580,18/09/2019,Archaeology,Property Services - Planned Maintenance,132.00,AIRTEK SERVICES IOW LTD
Capital,Resources,Capital,Capital,5105619797,18/09/2019,Boiler Replacement Heating Non Education,Payment to Contractors - Capital,"7,805.00",AIRTEK SERVICES IOW LTD
Revenue,Childrens Services,Children's & Education Services,Children Looked After,5105619354,25/09/2019,Beaulieu House,Minor Works,"3,750.00",AIRTEK SERVICES IOW LTD
Revenue,Adult Services,Adult Social Care,Central Codes (to be reallocated),5105620509,18/09/2019,Adelaide Resource Centre,Property Services - Day to day Maintenance,105.00,AIRTEK SERVICES IOW LTD
Revenue,Public Health,Public Health,NHS Health Check Programme,5105619653,06/09/2019,NHS Health Check Programme P,Payment to Private Contractors,97.00,ALBERT STREET PRACTICE
Revenue,Public Health,Public Health,Sexual Health,5105619653,06/09/2019,Long Acting Reversible Contraception,Payment to Private Contractors,600.00,ALBERT STREET PRACTICE
Revenue,Childrens Services,Children's & Education Services,Safeguarding Children/Young Peoples Svs,5105620394,13/09/2019,Court Work & Consultancy Services,Professional Services,218.25,ALERE TOXICOLOGY PLC
Revenue,Neighbourhoods,Cultural and Related Services,Recreation and Sport,5105619652,06/09/2019,The Heights,Stock Purchases,755.93,A-LIST NUTRITION LTD
Revenue,Resources,Adult Social Care,Physical Support (to be reallocated),5105620945,25/09/2019,Blue Badge Admin Team Shared Services,Printing Costs,730.80,ALLIED PUBLICITY SERVICES LTD
Revenue,Resources,Highways and Transport Services,Public Transport,5105620085,11/09/2019,Transport Fleet Administration,Vehicle Fuel Costs,"11,909.31",ALLSTAR BUSINESS SOLUTIONS LTD
Revenue,Childrens Services,Children's & Education Services,Other Education and Community Budget,5105619359,25/09/2019,Home to School SEN Transport (LA),Taxis - Contract Hire,180.00,ALPHA (IOW) LTD
Revenue,Childrens Services,Children's & Education Services,Other Education and Community Budget,5105619359,25/09/2019,Home to School SEN Transport (LA),Taxis - Contract Hire,865.00,ALPHA (IOW) LTD
Revenue,Childrens Services,Children's & Education Services,Other Education and Community Budget,5105619359,25/09/2019,Home to School Mainstream Transport,Taxis - Contract Hire,10.00,ALPHA (IOW) LTD
Revenue,Childrens Services,Children's & Education Services,Other Education and Community Budget,5105611815,27/09/2019,Home to College Post 16 Transport,Taxis - Contract Hire,408.00,ALPHA (IOW) LTD
Revenue,Childrens Services,Children's & Education Services,Other Education and Community Budget,5105611815,27/09/2019,Home to College Post 16 Transport,Taxis - Contract Hire,650.00,ALPHA (IOW) LTD
Revenue,Childrens Services,Children's & Education Services,Other Education and Community Budget,5105611815,27/09/2019,Home to College Post 16 Transport,Taxis - Contract Hire,630.00,ALPHA (IOW) LTD
Revenue,Childrens Services,Children's & Education Services,Other Education and Community Budget,5105611815,27/09/2019,Home to College Post 16 Transport,Taxis - Contract Hire,728.00,ALPHA (IOW) LTD
Revenue,Childrens Services,Children's & Education Services,Other Education and Community Budget,5105611815,27/09/2019,Home to College Post 16 Transport,Taxis - Contract Hire,320.00,ALPHA (IOW) LTD
Revenue,Childrens Services,Children's & Education Services,Other Education and Community Budget,5105611815,27/09/2019,Home to College Post 16 Transport,Taxis - Contract Hire,180.00,ALPHA (IOW) LTD
Revenue,Childrens Services,Children's & Education Services,Other Education and Community Budget,5105619359,25/09/2019,Home to School SEN Transport (LA),Taxis - Contract Hire,870.00,ALPHA (IOW) LTD
Revenue,Adult Services,Adult Social Care,Learning Disability Suppt-adults (18-64),5105619257,04/09/2019,Learning Disability Residential 18-64,Charges from Independent Providers,"3,836.84",ALPHAGRANGE LTD
Revenue,Adult Services,Adult Social Care,Learning Disability Suppt-adults (18-64),5105621617,27/09/2019,Learning Disability Residential 18-64,Charges from Independent Providers,"3,836.84",ALPHAGRANGE LTD
Revenue,Neighbourhoods,Cultural and Related Services,Recreation and Sport,5105619943,11/09/2019,Commercial Sales Team,Marketing Costs,"1,250.00",ALSOPRINT LTD
Revenue,Neighbourhoods,Environmental & Regulatory Services,Waste Disposal,5105619910,11/09/2019,Waste Disposal - Amey Contract,Waste Contractors,"154,981.96",AMEY (IOW) SPV LIMITED
Revenue,Neighbourhoods,Environmental & Regulatory Services,Waste Disposal,5105619911,11/09/2019,Waste Disposal - Amey Contract,Waste Contractors,"154,981.96",AMEY (IOW) SPV LIMITED
Revenue,Neighbourhoods,Environmental & Regulatory Services,Waste Collection,5105619911,11/09/2019,Waste Collection - Amey Contract,Waste Contractors,"141,461.59",AMEY (IOW) SPV LIMITED
Revenue,Neighbourhoods,Environmental & Regulatory Services,Waste Collection,5105619910,11/09/2019,Waste Collection - Amey Contract,Waste Contractors,"142,539.73",AMEY (IOW) SPV LIMITED
Revenue,Neighbourhoods,Environmental & Regulatory Services,Recycling,5105619910,11/09/2019,Waste Recycling - Amey Contract,Waste Contractors,"23,595.62",AMEY (IOW) SPV LIMITED
Revenue,Neighbourhoods,Environmental & Regulatory Services,Recycling,5105619911,11/09/2019,Waste Recycling - Amey Contract,Waste Contractors,"23,595.62",AMEY (IOW) SPV LIMITED
Revenue,Adult Services,Adult Social Care,Social Support -Substance Misuse Support,5105621045,25/09/2019,Substance Misuse Nursing,Charges from Independent Providers,"3,648.00",ANA TREATMENT CENTRES LTD
Revenue,Adult Services,Adult Social Care,Social Support -Substance Misuse Support,5105621594,27/09/2019,Substance Misuse Nursing,Charges from Independent Providers,"3,192.00",ANA TREATMENT CENTRES LTD
Revenue,Adult Services,Adult Social Care,Mental Health Support - adults (18-64),5105621046,25/09/2019,Mental Health Residential 18-64,Charges from Independent Providers,"9,654.30",ANA TREATMENT CENTRES LTD
Revenue,Adult Services,Adult Social Care,Social Support -Substance Misuse Support,5105621047,25/09/2019,Substance Misuse Residential,Charges from Independent Providers,"4,315.66",ANA TREATMENT CENTRES LTD
Revenue,Adult Services,Adult Social Care,Physical Support - older people (65+),5105619258,04/09/2019,Physical Support Residential 65+,Charges from Independent Providers,"1,960.84",ANCONA CARE HOME
Revenue,Adult Services,Adult Social Care,Physical Support - older people (65+),5105621618,27/09/2019,Physical Support Residential 65+,Charges from Independent Providers,"1,960.84",ANCONA CARE HOME
Revenue,Adult Services,Adult Social Care,Physical Support - older people (65+),5105619258,04/09/2019,Physical Support Residential 65+,Charges from Independent Providers,"2,053.52",ANCONA CARE HOME
Revenue,Adult Services,Adult Social Care,Physical Support - older people (65+),5105621618,27/09/2019,Physical Support Residential 65+,Charges from Independent Providers,"2,053.52",ANCONA CARE HOME
Revenue,Adult Services,Adult Social Care,Physical Support - older people (65+),5105619258,04/09/2019,Physical Support Residential 65+,Charges from Independent Providers,"2,053.52",ANCONA CARE HOME
Revenue,Adult Services,Adult Social Care,Physical Support - older people (65+),5105621618,27/09/2019,Physical Support Residential 65+,Charges from Independent Providers,"2,053.52",ANCONA CARE HOME
Revenue,Adult Services,Adult Social Care,Support - Memory /Cognition-older people (65+),5105619258,04/09/2019,Memory & Cognition Residential 65+,Charges from Independent Providers,"1,960.84",ANCONA CARE HOME
Revenue,Adult Services,Adult Social Care,Support - Memory /Cognition-older people (65+),5105621618,27/09/2019,Memory & Cognition Residential 65+,Charges from Independent Providers,"1,960.84",ANCONA CARE HOME
Revenue,Adult Services,Adult Social Care,Commissioning & Service Delivery,5105621304,27/09/2019,CHC Residential Care,Charges from Independent Providers,"8,448.72",ANCONA CARE HOME
Revenue,Adult Services,Adult Social Care,Commissioning & Service Delivery,5105621618,27/09/2019,CHC Residential Care,Charges from Independent Providers,"2,816.24",ANCONA CARE HOME
Revenue,Adult Services,Adult Social Care,Commissioning & Service Delivery,5105617994,11/09/2019,Group Manager (Short-Term Services),Consultants Fees,"4,698.20",ANDERSON QUIGLEY LTD
Revenue,Adult Services,Adult Social Care,Commissioning & Service Delivery,5105618454,13/09/2019,Group Manager (Short-Term Services),Consultants Fees,"2,736.82",ANDERSON QUIGLEY LTD
Revenue,Adult Services,Adult Social Care,Commissioning & Service Delivery,5105619106,13/09/2019,Group Manager (Short-Term Services),Consultants Fees,"5,143.48",ANDERSON QUIGLEY LTD
Revenue,Adult Services,Adult Social Care,Commissioning & Service Delivery,5105620431,20/09/2019,Group Manager (Short-Term Services),Consultants Fees,"4,607.77",ANDERSON QUIGLEY LTD
Revenue,Childrens Services,Children's & Education Services,Family Support Services,5105620367,13/09/2019,Family Support activity base: 76 Greenlands,Minor Works,30.00,ANDREW BYFORD T/A HUMPY DUMP
Revenue,Fire & Rescue,Fire & Rescue Services,Fire fighting and Rescue Operations,5105621537,27/09/2019,Fire Operations,"Refuse Collection, Disposal and Recycling Costs",130.00,ANDREW BYFORD T/A HUMPY DUMP
Revenue,Regeneration,Central Services,Support Services,5105619916,11/09/2019,"County Hall,Newport",Catering Purchases,732.50,ANGEL SPRINGS LIMITED
Revenue,Assistant Chief Executive,Central Services,Support Services,5105621183,25/09/2019,Print Unit,Printing Costs,49.70,ANTALIS MCNAUGHTON
Revenue,Assistant Chief Executive,Central Services,Support Services,5105620100,13/09/2019,Print Unit,Printing Costs,54.20,ANTALIS MCNAUGHTON
Revenue,Assistant Chief Executive,Central Services,Support Services,5105619037,04/09/2019,Print Unit,Printing Costs,25.66,ANTALIS MCNAUGHTON
Revenue,Assistant Chief Executive,Central Services,Support Services,5105619149,04/09/2019,Print Unit,Printing Costs,-25.66,ANTALIS MCNAUGHTON
Revenue,Assistant Chief Executive,Central Services,Support Services,5105619149,04/09/2019,Print Unit,Printing Costs,-63.40,ANTALIS MCNAUGHTON
Revenue,Assistant Chief Executive,Central Services,Support Services,5105619037,04/09/2019,Print Unit,Printing Costs,63.40,ANTALIS MCNAUGHTON
Revenue,Assistant Chief Executive,Central Services,Support Services,5105619150,04/09/2019,Print Unit,Printing Costs,63.40,ANTALIS MCNAUGHTON
Revenue,Assistant Chief Executive,Central Services,Support Services,5105619150,04/09/2019,Print Unit,Printing Costs,17.68,ANTALIS MCNAUGHTON
Revenue,Assistant Chief Executive,Central Services,Support Services,5105619149,04/09/2019,Print Unit,Printing Costs,-17.68,ANTALIS MCNAUGHTON
Revenue,Assistant Chief Executive,Central Services,Support Services,5105619037,04/09/2019,Print Unit,Printing Costs,17.68,ANTALIS MCNAUGHTON
Revenue,Assistant Chief Executive,Central Services,Support Services,5105619037,04/09/2019,Print Unit,Printing Costs,7.33,ANTALIS MCNAUGHTON
Revenue,Assistant Chief Executive,Central Services,Support Services,5105619149,04/09/2019,Print Unit,Printing Costs,-7.33,ANTALIS MCNAUGHTON
Revenue,Assistant Chief Executive,Central Services,Support Services,5105619150,04/09/2019,Print Unit,Printing Costs,7.33,ANTALIS MCNAUGHTON
Revenue,Assistant Chief Executive,Central Services,Support Services,5105619150,04/09/2019,Print Unit,Printing Costs,25.66,ANTALIS MCNAUGHTON
Revenue,Resources,Central Services,Support Services,5105619439,11/09/2019,Litigation Costs,Legal Fees - Other Parties,500.00,"COLLEGE CHAMBERS, BARRISTERS"
Revenue,Adult Services,Adult Social Care,Assistive Equipment & Technology,5105620021,11/09/2019,Wightcare,Operational Equipment,"3,120.00",ANYWHERE CARE LIMITED
Revenue,Adult Services,Adult Social Care,Assistive Equipment & Technology,5105620018,11/09/2019,Wightcare,Operational Equipment,840.00,ANYWHERE CARE LIMITED
Revenue,Adult Services,Adult Social Care,Assistive Equipment & Technology,5105621170,25/09/2019,Wightcare,Operational Equipment,60.00,ANYWHERE CARE LIMITED
Capital,Resources,Capital,Capital,5105619959,25/09/2019,Server Farm,ICT Hardware & Software - Capital,"3,621.00",APPLE DISTRIBUTION INTERNATIONAL
Revenue,Regeneration,Planning services,Economic Development,5105619935,25/09/2019,Ryde Nicholson Road Regeneration,Consultants Fees,950.00,ARC CONSULTING LTD
Revenue,Childrens Services,Children's & Education Services,Special Schools & Alternative Provision,5105620919,27/09/2019,Island Learning Centre,Client Expenses,31.98,ARCO LTD
Revenue,Childrens Services,Children's & Education Services,Special Schools & Alternative Provision,5105620919,27/09/2019,Island Learning Centre,Client Expenses,31.98,ARCO LTD
Revenue,Childrens Services,Children's & Education Services,Special Schools & Alternative Provision,5105620919,27/09/2019,Island Learning Centre,Client Expenses,15.99,ARCO LTD
Revenue,Childrens Services,Children's & Education Services,Special Schools & Alternative Provision,5105620919,27/09/2019,Island Learning Centre,Client Expenses,15.99,ARCO LTD
Revenue,Public Health,Public Health,NHS Health Check Programme,5105618522,04/09/2019,NHS Health Check Programme P,Payment to Private Contractors,"1,323.00",ARGYLL HOUSE SURGERY
Revenue,Childrens Services,Children's & Education Services,Children Looked After,5105618959,04/09/2019,Beaulieu House,Minor Works,42.75,ARJO UK LTD
Revenue,Adult Services,Adult Social Care,Learning Disab Supp (to be reallocated),5105621115,25/09/2019,Seagulls,Minor Works,69.00,ARJO UK LTD
Revenue,Adult Services,Adult Social Care,Learning Disab Supp (to be reallocated),5105618958,04/09/2019,Saxonbury,Minor Works,198.82,ARJO UK LTD
Revenue,Adult Services,Adult Social Care,Learning Disab Supp (to be reallocated),5105619804,20/09/2019,Saxonbury,Minor Works,44.41,ARJO UK LTD
Revenue,Childrens Services,Children's & Education Services,Children Looked After,5105620511,18/09/2019,Beaulieu House,Minor Works,45.00,ARJO UK LTD
Revenue,Adult Services,Adult Social Care,Learning Disab Supp (to be reallocated),5105619128,04/09/2019,Plean Dene,Minor Works,173.65,ARJO UK LTD
Revenue,Childrens Services,Children's & Education Services,Special Schools & Alternative Provision,5105619174,04/09/2019,Island Learning Centre,Schools Learning Resources (not ICT),9.35,ASDAN
Revenue,Neighbourhoods,Cultural and Related Services,Library Service,5105617860,04/09/2019,Sandown Library,Property Services - Planned Maintenance,427.00,ASSA ABLOY ENTRANCE SYSTEMS LTD
Revenue,Adult Services,Adult Social Care,Commissioning & Service Delivery,5105619456,06/09/2019,Deputyship Office,Professional Subscriptions,150.00,ASSOCIATION OF PUBLIC AUTHORITY DEPUTIES
Revenue,Resources,Children's & Education Services,Other Education and Community Budget,5105619419,06/09/2019,Specialist Cross-Council Training,Training,"1,666.68",ASSOCIATION OF ELECTORAL ADMINISTRATORS
Revenue,Adult Services,Adult Social Care,Learning Disability Suppt-adults (18-64),5105619193,04/09/2019,Learning Disability Residential 18-64,Charges from Independent Providers,"5,464.20",ASSURE HEALTHCARE GROUP
Revenue,Adult Services,Adult Social Care,Learning Disability Suppt-adults (18-64),5105621591,27/09/2019,Learning Disability Residential 18-64,Charges from Independent Providers,"5,464.20",ASSURE HEALTHCARE GROUP
Revenue,Regeneration,Central Services,Support Services,5105619700,06/09/2019,Properties  - Other Properties,Legal Fees - Other Parties,"2,000.00",ASTON ROSE (WEST END) LIMITED
Revenue,Resources,Central Services,Support Services,5105618159,04/09/2019,Organisational Development � Leadership,Training,88.25,ASTRID DAVIES CONSULTING LTD
Revenue,Resources,Central Services,Support Services,5105618151,04/09/2019,Organisational Development � Leadership,Training,300.00,ASTRID DAVIES CONSULTING LTD
Revenue,Resources,Central Services,Support Services,5105619422,04/09/2019,Organisational Development � Leadership,Training,150.00,ASTRID DAVIES CONSULTING LTD
Revenue,Resources,Central Services,Central Services to the Public,5105620391,13/09/2019,Internal Enforcement Team,Stationery,428.40,AUTOMAIL ENVELOPES LTD
Revenue,Adult Services,Adult Social Care,Physical Support - older people (65+),5105619242,04/09/2019,Physical Support Residential 65+,Charges from Independent Providers,"2,053.52",AUTUMN HOUSE CARE LTD
Revenue,Adult Services,Adult Social Care,Physical Support - older people (65+),5105621602,27/09/2019,Physical Support Residential 65+,Charges from Independent Providers,"2,053.52",AUTUMN HOUSE CARE LTD
Revenue,Adult Services,Adult Social Care,Support - Memory /Cognition-older people (65+),5105619242,04/09/2019,Memory & Cognition Residential 65+,Charges from Independent Providers,"2,414.16",AUTUMN HOUSE CARE LTD
Revenue,Adult Services,Adult Social Care,Support - Memory /Cognition-older people (65+),5105621602,27/09/2019,Memory & Cognition Residential 65+,Charges from Independent Providers,"2,414.16",AUTUMN HOUSE CARE LTD
Revenue,Adult Services,Adult Social Care,Support - Memory /Cognition-older people (65+),5105619242,04/09/2019,Memory & Cognition Residential 65+,Charges from Independent Providers,"2,414.16",AUTUMN HOUSE CARE LTD
Revenue,Adult Services,Adult Social Care,Support - Memory /Cognition-older people (65+),5105621602,27/09/2019,Memory & Cognition Residential 65+,Charges from Independent Providers,"2,414.16",AUTUMN HOUSE CARE LTD
Revenue,Adult Services,Adult Social Care,Support - Memory /Cognition-older people (65+),5105619242,04/09/2019,Memory & Cognition Residential 65+,Charges from Independent Providers,"2,414.16",AUTUMN HOUSE CARE LTD
Revenue,Adult Services,Adult Social Care,Support - Memory /Cognition-older people (65+),5105621602,27/09/2019,Memory & Cognition Residential 65+,Charges from Independent Providers,"2,414.16",AUTUMN HOUSE CARE LTD
Revenue,Adult Services,Adult Social Care,Support - Memory /Cognition-older people (65+),5105619242,04/09/2019,Memory & Cognition Residential 65+,Charges from Independent Providers,"2,414.16",AUTUMN HOUSE CARE LTD
Revenue,Adult Services,Adult Social Care,Support - Memory /Cognition-older people (65+),5105621602,27/09/2019,Memory & Cognition Residential 65+,Charges from Independent Providers,"2,414.16",AUTUMN HOUSE CARE LTD
Revenue,Adult Services,Adult Social Care,Support - Memory /Cognition-older people (65+),5105619242,04/09/2019,Memory & Cognition Residential 65+,Charges from Independent Providers,"2,414.16",AUTUMN HOUSE CARE LTD
Revenue,Adult Services,Adult Social Care,Support - Memory /Cognition-older people (65+),5105621602,27/09/2019,Memory & Cognition Residential 65+,Charges from Independent Providers,"2,414.16",AUTUMN HOUSE CARE LTD
Revenue,Adult Services,Adult Social Care,Physical Support - older people (65+),5105619242,04/09/2019,Physical Support Residential 65+,Charges from Independent Providers,"2,053.52",AUTUMN HOUSE CARE LTD
Revenue,Adult Services,Balance Sheet,Balance Sheet,5105619242,04/09/2019,REDACTED PERSONAL DATA,Order Settlement to Bal Sht GL,"2,414.16",AUTUMN HOUSE CARE LTD
Revenue,Adult Services,Balance Sheet,Balance Sheet,5105621602,27/09/2019,REDACTED PERSONAL DATA,Order Settlement to Bal Sht GL,"2,414.16",AUTUMN HOUSE CARE LTD
Revenue,Adult Services,Adult Social Care,Support - Memory /Cognition-older people (65+),5105619242,04/09/2019,Memory & Cognition Residential 65+,Charges from Independent Providers,"2,414.16",AUTUMN HOUSE CARE LTD
Revenue,Adult Services,Adult Social Care,Support - Memory /Cognition-older people (65+),5105619242,04/09/2019,Memory & Cognition Residential 65+,Charges from Independent Providers,"2,053.52",AUTUMN HOUSE CARE LTD
Revenue,Adult Services,Adult Social Care,Support - Memory /Cognition-older people (65+),5105621602,27/09/2019,Memory & Cognition Residential 65+,Charges from Independent Providers,"2,053.52",AUTUMN HOUSE CARE LTD
Revenue,Adult Services,Adult Social Care,Physical Support - older people (65+),5105619242,04/09/2019,Physical Support Residential 65+,Charges from Independent Providers,"2,414.16",AUTUMN HOUSE CARE LTD
Revenue,Adult Services,Adult Social Care,Physical Support - older people (65+),5105621602,27/09/2019,Physical Support Residential 65+,Charges from Independent Providers,"2,414.16",AUTUMN HOUSE CARE LTD
Revenue,Adult Services,Adult Social Care,Physical Support - older people (65+),5105619242,04/09/2019,Physical Support Residential 65+,Charges from Independent Providers,"2,414.16",AUTUMN HOUSE CARE LTD
Revenue,Adult Services,Adult Social Care,Physical Support - older people (65+),5105621602,27/09/2019,Physical Support Residential 65+,Charges from Independent Providers,"2,414.16",AUTUMN HOUSE CARE LTD
Revenue,Adult Services,Adult Social Care,Physical Support - older people (65+),5105619242,04/09/2019,Physical Support Residential 65+,Charges from Independent Providers,"2,414.16",AUTUMN HOUSE CARE LTD
Revenue,Adult Services,Adult Social Care,Physical Support - older people (65+),5105621602,27/09/2019,Physical Support Residential 65+,Charges from Independent Providers,"2,414.16",AUTUMN HOUSE CARE LTD
Revenue,Adult Services,Adult Social Care,Support - Memory /Cognition-older people (65+),5105619242,04/09/2019,Memory & Cognition Residential 65+,Charges from Independent Providers,"2,053.52",AUTUMN HOUSE CARE LTD
Revenue,Adult Services,Adult Social Care,Support - Memory /Cognition-older people (65+),5105621602,27/09/2019,Memory & Cognition Residential 65+,Charges from Independent Providers,"2,053.52",AUTUMN HOUSE CARE LTD
Revenue,Adult Services,Adult Social Care,Support - Memory /Cognition-older people (65+),5105619242,04/09/2019,Memory & Cognition Residential 65+,Charges from Independent Providers,"2,800.00",AUTUMN HOUSE CARE LTD
Revenue,Adult Services,Adult Social Care,Support - Memory /Cognition-older people (65+),5105621602,27/09/2019,Memory & Cognition Residential 65+,Charges from Independent Providers,"2,800.00",AUTUMN HOUSE CARE LTD
Revenue,Adult Services,Adult Social Care,Physical Support - older people (65+),5105619242,04/09/2019,Physical Support Residential 65+,Charges from Independent Providers,"2,053.52",AUTUMN HOUSE CARE LTD
Revenue,Adult Services,Adult Social Care,Physical Support - older people (65+),5105621602,27/09/2019,Physical Support Residential 65+,Charges from Independent Providers,"2,053.52",AUTUMN HOUSE CARE LTD
Revenue,Adult Services,Adult Social Care,Support - Memory /Cognition-older people (65+),5105619242,04/09/2019,Memory & Cognition Residential 65+,Charges from Independent Providers,"2,053.52",AUTUMN HOUSE CARE LTD
Revenue,Adult Services,Adult Social Care,Support - Memory /Cognition-older people (65+),5105621602,27/09/2019,Memory & Cognition Residential 65+,Charges from Independent Providers,"2,053.52",AUTUMN HOUSE CARE LTD
Revenue,Adult Services,Adult Social Care,Physical Support - older people (65+),5105620054,11/09/2019,Physical Support Residential 65+,Charges from Independent Providers,"1,466.80",AUTUMN HOUSE CARE LTD
Revenue,Adult Services,Adult Social Care,Physical Support - older people (65+),5105621134,25/09/2019,Physical Support Residential 65+,Charges from Independent Providers,"1,980.18",AUTUMN HOUSE CARE LTD
Revenue,Adult Services,Balance Sheet,Balance Sheet,5105619242,04/09/2019,REDACTED PERSONAL DATA,Order Settlement to Bal Sht GL,"2,053.52",AUTUMN HOUSE CARE LTD
Revenue,Adult Services,Balance Sheet,Balance Sheet,5105621602,27/09/2019,REDACTED PERSONAL DATA,Order Settlement to Bal Sht GL,"2,053.52",AUTUMN HOUSE CARE LTD
Revenue,Adult Services,Adult Social Care,Physical Support - older people (65+),5105619242,04/09/2019,Physical Support Residential 65+,Charges from Independent Providers,"2,414.16",AUTUMN HOUSE CARE LTD
Revenue,Adult Services,Adult Social Care,Physical Support - older people (65+),5105621602,27/09/2019,Physical Support Residential 65+,Charges from Independent Providers,"2,414.16",AUTUMN HOUSE CARE LTD
Revenue,Adult Services,Adult Social Care,Physical Support - older people (65+),5105619242,04/09/2019,Physical Support Residential 65+,Charges from Independent Providers,"2,414.16",AUTUMN HOUSE CARE LTD
Revenue,Adult Services,Adult Social Care,Physical Support - older people (65+),5105621602,27/09/2019,Physical Support Residential 65+,Charges from Independent Providers,"2,414.16",AUTUMN HOUSE CARE LTD
Revenue,Adult Services,Adult Social Care,Support - Memory /Cognition-older people (65+),5105619242,04/09/2019,Memory & Cognition Residential 65+,Charges from Independent Providers,"2,414.16",AUTUMN HOUSE CARE LTD
Revenue,Adult Services,Adult Social Care,Support - Memory /Cognition-older people (65+),5105621602,27/09/2019,Memory & Cognition Residential 65+,Charges from Independent Providers,"2,414.16",AUTUMN HOUSE CARE LTD
Revenue,Adult Services,Adult Social Care,Support - Memory /Cognition-older people (65+),5105619242,04/09/2019,Memory & Cognition Residential 65+,Charges from Independent Providers,"2,414.16",AUTUMN HOUSE CARE LTD
Revenue,Adult Services,Adult Social Care,Support - Memory /Cognition-older people (65+),5105621602,27/09/2019,Memory & Cognition Residential 65+,Charges from Independent Providers,"2,414.16",AUTUMN HOUSE CARE LTD
Revenue,Adult Services,Adult Social Care,Physical Support - older people (65+),5105619242,04/09/2019,Physical Support Residential 65+,Charges from Independent Providers,"2,414.16",AUTUMN HOUSE CARE LTD
Revenue,Adult Services,Adult Social Care,Physical Support - older people (65+),5105621602,27/09/2019,Physical Support Residential 65+,Charges from Independent Providers,"2,414.16",AUTUMN HOUSE CARE LTD
Revenue,Adult Services,Adult Social Care,Mental Health Support-older people (65+),5105619242,04/09/2019,Mental Health Residential 65+,Charges from Independent Providers,"2,414.16",AUTUMN HOUSE CARE LTD
Revenue,Adult Services,Adult Social Care,Mental Health Support-older people (65+),5105621602,27/09/2019,Mental Health Residential 65+,Charges from Independent Providers,"2,414.16",AUTUMN HOUSE CARE LTD
Revenue,Adult Services,Adult Social Care,Physical Support - older people (65+),5105619242,04/09/2019,Physical Support Residential 65+,Charges from Independent Providers,"2,414.16",AUTUMN HOUSE CARE LTD
Revenue,Adult Services,Adult Social Care,Physical Support - older people (65+),5105621602,27/09/2019,Physical Support Residential 65+,Charges from Independent Providers,"2,414.16",AUTUMN HOUSE CARE LTD
Revenue,Adult Services,Adult Social Care,Physical Support - older people (65+),5105620489,18/09/2019,Physical Support Residential 65+,Charges from Independent Providers,"3,707.46",AUTUMN HOUSE CARE LTD
Revenue,Adult Services,Adult Social Care,Physical Support - older people (65+),5105619242,04/09/2019,Physical Support Residential 65+,Charges from Independent Providers,948.42,AUTUMN HOUSE CARE LTD
Revenue,Adult Services,Adult Social Care,Physical Support - older people (65+),5105621582,27/09/2019,Physical Support Residential 65+,Charges from Independent Providers,"8,277.12",AUTUMN HOUSE CARE LTD
Revenue,Adult Services,Adult Social Care,Physical Support - older people (65+),5105621602,27/09/2019,Physical Support Residential 65+,Charges from Independent Providers,"2,414.16",AUTUMN HOUSE CARE LTD
Revenue,Regeneration,Planning services,Economic Development,5105618453,04/09/2019,"30 High St, Newport",Rent of Buildings and Rooms,916.67,REDACTED PERSONAL DATA
Revenue,Regeneration,Planning services,Economic Development,5105620601,18/09/2019,"30 High St, Newport",Rent of Buildings and Rooms,916.67,REDACTED PERSONAL DATA
Revenue,Childrens Services,Children's & Education Services,Children Looked After,5105619469,06/09/2019,In-house Fostering,Boarding Out Allowances,510.50,REDACTED PERSONAL DATA
Revenue,Childrens Services,Children's & Education Services,Children Looked After,5105620119,13/09/2019,In-house Fostering,Boarding Out Allowances,510.50,REDACTED PERSONAL DATA
Revenue,Childrens Services,Children's & Education Services,Children Looked After,5105620704,20/09/2019,In-house Fostering,Boarding Out Allowances,510.50,REDACTED PERSONAL DATA
Revenue,Childrens Services,Children's & Education Services,Children Looked After,5105621321,27/09/2019,In-house Fostering,Boarding Out Allowances,510.50,REDACTED PERSONAL DATA
Revenue,Resources,Central Services,Support Services,5105621015,25/09/2019,Staff Benefits,Payment to Private Contractors,100.00,REDACTED PERSONAL DATA
Revenue,Resources,Central Services,Support Services,5105621015,25/09/2019,Staff Benefits,Payment to Private Contractors,25.00,REDACTED PERSONAL DATA
Revenue,Adult Services,Housing Services,Homelessness,5105620960,25/09/2019,Private Rented Sector Leasing Scheme,Accommodation Costs - Leaseholder Payments,866.67,REDACTED PERSONAL DATA
Revenue,Adult Services,Housing Services,Homelessness,5105620960,25/09/2019,Private Rented Sector Leasing Scheme,Accommodation Costs - Leaseholder Payments,799.50,REDACTED PERSONAL DATA
Revenue,Neighbourhoods,Cultural and Related Services,Culture and Heritage,5400002433,01/03/2019,Archives,Property Services - Day to day Maintenance,41.14,BALFOUR BEATTY
Revenue,Adult Services,Deleted,Deleted,5400002432,01/03/2019,Highmead,Minor Works,126.00,BALFOUR BEATTY
Revenue,Neighbourhoods,Environmental & Regulatory Services,Regulatory Services,5400002432,01/03/2019,Public Conveniences - General,Property Services - Day to day Maintenance,82.50,BALFOUR BEATTY
Revenue,Adult Services,Adult Social Care,Commissioning & Service Delivery,5105619853,13/09/2019,Commissioning Manager for Adult Social Care,Interim Staff,"3,600.00",BALTIMORE CONSULTING LIMITED
Revenue,Adult Services,Adult Social Care,Commissioning & Service Delivery,5105621103,25/09/2019,Commissioning Manager for Adult Social Care,Interim Staff,"2,100.00",BALTIMORE CONSULTING LIMITED
Revenue,Adult Services,Adult Social Care,Commissioning & Service Delivery,5105620339,20/09/2019,Commissioning Manager for Adult Social Care,Interim Staff,"2,400.00",BALTIMORE CONSULTING LIMITED
Revenue,Adult Services,Adult Social Care,Social Care Activities,5105620010,11/09/2019,Service Manager MH,Agency staff,"10,687.50",BALTIMORE CONSULTING LIMITED
Revenue,Resources,Housing Services,Housing Benefits Administration,5105608087,27/09/2019,Housing Benefit,Stationery,118.50,SUPPLIES TEAM LTD
Revenue,Resources,Central Services,Central Services to the Public,5105608087,27/09/2019,Council Tax,Stationery,118.50,SUPPLIES TEAM LTD
Revenue,Adult Services,Adult Social Care,Central Codes (to be reallocated),5105620561,25/09/2019,Gouldings Resource Centre,Stationery,2.89,SUPPLIES TEAM LTD
Revenue,Neighbourhoods,Cultural and Related Services,Recreation and Sport,5105618086,04/09/2019,Westridge Squash Courts,Stationery,46.25,SUPPLIES TEAM LTD
Revenue,Childrens Services,Children's & Education Services,Special Schools & Alternative Provision,5105618460,13/09/2019,Island Learning Centre,Stationery,12.00,SUPPLIES TEAM LTD
Revenue,Childrens Services,Children's & Education Services,Special Schools & Alternative Provision,5105618460,13/09/2019,Island Learning Centre,Stationery,2.86,SUPPLIES TEAM LTD
Revenue,Childrens Services,Children's & Education Services,Special Schools & Alternative Provision,5105618460,13/09/2019,Island Learning Centre,Stationery,47.40,SUPPLIES TEAM LTD
Revenue,Childrens Services,Children's & Education Services,Special Schools & Alternative Provision,5105618460,13/09/2019,Island Learning Centre,Stationery,1.11,SUPPLIES TEAM LTD
Revenue,Childrens Services,Children's & Education Services,Special Schools & Alternative Provision,5105618460,13/09/2019,Island Learning Centre,Stationery,3.86,SUPPLIES TEAM LTD
Revenue,Childrens Services,Children's & Education Services,Special Schools & Alternative Provision,5105618460,13/09/2019,Island Learning Centre,Stationery,1.22,SUPPLIES TEAM LTD
Revenue,Childrens Services,Children's & Education Services,Special Schools & Alternative Provision,5105618460,13/09/2019,Island Learning Centre,Stationery,3.05,SUPPLIES TEAM LTD
Revenue,Childrens Services,Children's & Education Services,Special Schools & Alternative Provision,5105618460,13/09/2019,Island Learning Centre,Stationery,4.86,SUPPLIES TEAM LTD
Revenue,Childrens Services,Children's & Education Services,Special Schools & Alternative Provision,5105618460,13/09/2019,Island Learning Centre,Stationery,0.98,SUPPLIES TEAM LTD
Revenue,Childrens Services,Children's & Education Services,Special Schools & Alternative Provision,5105618460,13/09/2019,Island Learning Centre,Stationery,18.50,SUPPLIES TEAM LTD
Revenue,Childrens Services,Children's & Education Services,Special Schools & Alternative Provision,5105618460,13/09/2019,Island Learning Centre,Stationery,11.70,SUPPLIES TEAM LTD
Revenue,Childrens Services,Children's & Education Services,Special Schools & Alternative Provision,5105618460,13/09/2019,Island Learning Centre,Stationery,2.57,SUPPLIES TEAM LTD
Revenue,Childrens Services,Children's & Education Services,Special Schools & Alternative Provision,5105618460,13/09/2019,Island Learning Centre,Stationery,13.14,SUPPLIES TEAM LTD
Revenue,Childrens Services,Children's & Education Services,Other Education and Community Budget,5105618738,04/09/2019,Admissions/Student Finance,Stationery,7.00,SUPPLIES TEAM LTD
Revenue,Adult Services,Adult Social Care,Assistive Equipment & Technology,5105618737,25/09/2019,Community Equipment Store,Stationery,44.00,SUPPLIES TEAM LTD
Revenue,Childrens Services,Children's & Education Services,Other Education and Community Budget,5105619411,25/09/2019,Learning & Development Running Costs,Stationery,26.38,SUPPLIES TEAM LTD
Revenue,Childrens Services,Children's & Education Services,Other Education and Community Budget,5105619411,25/09/2019,Learning & Development Running Costs,Stationery,6.36,SUPPLIES TEAM LTD
Revenue,Childrens Services,Children's & Education Services,Other Education and Community Budget,5105619411,25/09/2019,Learning & Development Running Costs,Stationery,59.25,SUPPLIES TEAM LTD
Revenue,Neighbourhoods,Cultural and Related Services,Library Service,5105619735,25/09/2019,Ryde Library,Stationery,23.70,SUPPLIES TEAM LTD
Revenue,Neighbourhoods,Cultural and Related Services,Library Service,5105619735,25/09/2019,Public Libraries Central,Stationery,29.25,SUPPLIES TEAM LTD
Revenue,Childrens Services,Children's & Education Services,Other Education and Community Budget,5105619410,25/09/2019,Education and Inclusion Service,Stationery,1.80,SUPPLIES TEAM LTD
Revenue,Childrens Services,Children's & Education Services,Management & Support Services,5105619410,25/09/2019,Specialist Service Business Admin,Stationery,59.25,SUPPLIES TEAM LTD
Revenue,Childrens Services,Children's & Education Services,Other Education and Community Budget,5105619410,25/09/2019,Learning & Development Running Costs,Stationery,59.25,SUPPLIES TEAM LTD
Revenue,Childrens Services,Children's & Education Services,Management & Support Services,5105619410,25/09/2019,Specialist Service Business Admin,Stationery,4.44,SUPPLIES TEAM LTD
Revenue,Childrens Services,Children's & Education Services,Management & Support Services,5105619410,25/09/2019,Specialist Service Business Admin,Stationery,4.50,SUPPLIES TEAM LTD
Revenue,Childrens Services,Children's & Education Services,Other Education and Community Budget,5105619732,11/09/2019,SEND Independent Advice & Support,Stationery,0.68,SUPPLIES TEAM LTD
Revenue,Childrens Services,Children's & Education Services,Other Education and Community Budget,5105619732,11/09/2019,SEND Independent Advice & Support,Stationery,2.55,SUPPLIES TEAM LTD
Revenue,Childrens Services,Children's & Education Services,Other Education and Community Budget,5105619732,11/09/2019,SEND Independent Advice & Support,Stationery,1.62,SUPPLIES TEAM LTD
Revenue,Childrens Services,Children's & Education Services,Other Education and Community Budget,5105619732,11/09/2019,SEND Independent Advice & Support,Stationery,2.58,SUPPLIES TEAM LTD
Revenue,Childrens Services,Children's & Education Services,Other Education and Community Budget,5105619732,11/09/2019,SEND Independent Advice & Support,Stationery,1.59,SUPPLIES TEAM LTD
Revenue,Childrens Services,Children's & Education Services,Other Education and Community Budget,5105619732,11/09/2019,SEND Independent Advice & Support,Stationery,0.45,SUPPLIES TEAM LTD
Revenue,Childrens Services,Children's & Education Services,Other Education and Community Budget,5105619732,11/09/2019,SEND Independent Advice & Support,Stationery,0.50,SUPPLIES TEAM LTD
Revenue,Childrens Services,Children's & Education Services,Other Education and Community Budget,5105619732,11/09/2019,SEND Independent Advice & Support,Stationery,2.12,SUPPLIES TEAM LTD
Revenue,Childrens Services,Children's & Education Services,Other Education and Community Budget,5105619732,11/09/2019,SEND Independent Advice & Support,Stationery,0.99,SUPPLIES TEAM LTD
Revenue,Childrens Services,Children's & Education Services,Children Looked After,5105619723,11/09/2019,Beaulieu House,Stationery,1.62,SUPPLIES TEAM LTD
Revenue,Childrens Services,Children's & Education Services,Children Looked After,5105619723,11/09/2019,Beaulieu House,Stationery,1.89,SUPPLIES TEAM LTD
Revenue,Childrens Services,Children's & Education Services,Children Looked After,5105619723,11/09/2019,Beaulieu House,Stationery,0.39,SUPPLIES TEAM LTD
Revenue,Childrens Services,Children's & Education Services,Children Looked After,5105619723,11/09/2019,Beaulieu House,Stationery,2.90,SUPPLIES TEAM LTD
Revenue,Childrens Services,Children's & Education Services,Children Looked After,5105619723,11/09/2019,Beaulieu House,Stationery,1.24,SUPPLIES TEAM LTD
Revenue,Childrens Services,Children's & Education Services,Children Looked After,5105619723,11/09/2019,Beaulieu House,Stationery,13.26,SUPPLIES TEAM LTD
Revenue,Childrens Services,Children's & Education Services,Children Looked After,5105619723,11/09/2019,Beaulieu House,Stationery,5.71,SUPPLIES TEAM LTD
Revenue,Childrens Services,Children's & Education Services,Children Looked After,5105619723,11/09/2019,Beaulieu House,Stationery,2.12,SUPPLIES TEAM LTD
Revenue,Childrens Services,Children's & Education Services,Children Looked After,5105619723,11/09/2019,Beaulieu House,Stationery,1.50,SUPPLIES TEAM LTD
Revenue,Regeneration,Planning services,Environmental Initiatives,5105619696,11/09/2019,A.O.N.B.,Stationery,11.85,SUPPLIES TEAM LTD
Revenue,Neighbourhoods,Environmental & Regulatory Services,"Cemetery, Cremation & Mortuary Services",5105619707,11/09/2019,Crematorium,Stationery,1.40,SUPPLIES TEAM LTD
Revenue,Neighbourhoods,Environmental & Regulatory Services,"Cemetery, Cremation & Mortuary Services",5105619707,11/09/2019,Crematorium,Stationery,1.50,SUPPLIES TEAM LTD
Revenue,Neighbourhoods,Environmental & Regulatory Services,"Cemetery, Cremation & Mortuary Services",5105619707,11/09/2019,Crematorium,Stationery,2.12,SUPPLIES TEAM LTD
Revenue,Neighbourhoods,Environmental & Regulatory Services,"Cemetery, Cremation & Mortuary Services",5105619707,11/09/2019,Crematorium,Stationery,23.70,SUPPLIES TEAM LTD
Revenue,Neighbourhoods,Environmental & Regulatory Services,"Cemetery, Cremation & Mortuary Services",5105619707,11/09/2019,Crematorium,Stationery,0.81,SUPPLIES TEAM LTD
Revenue,Neighbourhoods,Environmental & Regulatory Services,"Cemetery, Cremation & Mortuary Services",5105619707,11/09/2019,Crematorium,Stationery,5.77,SUPPLIES TEAM LTD
Revenue,Neighbourhoods,Environmental & Regulatory Services,"Cemetery, Cremation & Mortuary Services",5105619707,11/09/2019,Crematorium,Stationery,11.42,SUPPLIES TEAM LTD
Revenue,Neighbourhoods,Environmental & Regulatory Services,"Cemetery, Cremation & Mortuary Services",5105619707,11/09/2019,Crematorium,Stationery,0.74,SUPPLIES TEAM LTD
Revenue,Neighbourhoods,Environmental & Regulatory Services,"Cemetery, Cremation & Mortuary Services",5105619707,11/09/2019,Crematorium,Stationery,3.14,SUPPLIES TEAM LTD
Revenue,Neighbourhoods,Environmental & Regulatory Services,"Cemetery, Cremation & Mortuary Services",5105619707,11/09/2019,Crematorium,Stationery,26.73,SUPPLIES TEAM LTD
Revenue,Neighbourhoods,Environmental & Regulatory Services,"Cemetery, Cremation & Mortuary Services",5105619707,11/09/2019,Crematorium,Stationery,16.73,SUPPLIES TEAM LTD
Revenue,Neighbourhoods,Environmental & Regulatory Services,"Cemetery, Cremation & Mortuary Services",5105619707,11/09/2019,Crematorium,Stationery,4.52,SUPPLIES TEAM LTD
Revenue,Neighbourhoods,Environmental & Regulatory Services,"Cemetery, Cremation & Mortuary Services",5105619707,11/09/2019,Crematorium,Stationery,1.16,SUPPLIES TEAM LTD
Revenue,Adult Services,Adult Social Care,Social Care Activities,5105619701,11/09/2019,Hospital Team,Stationery,11.70,SUPPLIES TEAM LTD
Revenue,Adult Services,Adult Social Care,Social Care Activities,5105619701,11/09/2019,Hospital Team,Stationery,59.25,SUPPLIES TEAM LTD
Revenue,Childrens Services,Children's & Education Services,Safeguarding Children/Young Peoples Svs,5105619701,11/09/2019,Fostering Team,Stationery,2.60,SUPPLIES TEAM LTD
Revenue,Childrens Services,Children's & Education Services,Safeguarding Children/Young Peoples Svs,5105619701,11/09/2019,Children's office costs,Stationery,23.70,SUPPLIES TEAM LTD
Revenue,Adult Services,Adult Social Care,Social Care Activities,5105619701,11/09/2019,Hospital Team,Stationery,1.11,SUPPLIES TEAM LTD
Revenue,Adult Services,Adult Social Care,Social Care Activities,5105619701,11/09/2019,Hospital Team,Stationery,13.23,SUPPLIES TEAM LTD
Revenue,Resources,Central Services,Support Services,5105619725,18/09/2019,Revenues & Benefits Operational Support,Stationery,84.66,SUPPLIES TEAM LTD
Revenue,Resources,Central Services,Support Services,5105619701,11/09/2019,Legal Services Section,Stationery,35.55,SUPPLIES TEAM LTD
Revenue,Childrens Services,Children's & Education Services,Safeguarding Children/Young Peoples Svs,5105619701,11/09/2019,Fostering Team,Stationery,7.27,SUPPLIES TEAM LTD
Revenue,Childrens Services,Children's & Education Services,Children Looked After,5105619701,11/09/2019,Family Link (Respite Care:children),Stationery,3.05,SUPPLIES TEAM LTD
Revenue,Childrens Services,Children's & Education Services,Safeguarding Children/Young Peoples Svs,5105620357,13/09/2019,Children's office costs,Stationery,8.80,SUPPLIES TEAM LTD
Revenue,Childrens Services,Children's & Education Services,Safeguarding Children/Young Peoples Svs,5105619701,11/09/2019,Fostering Team,Stationery,2.89,SUPPLIES TEAM LTD
Revenue,Resources,Central Services,Support Services,5105620358,13/09/2019,Revenues & Benefits Operational Support,Stationery,70.01,SUPPLIES TEAM LTD
Revenue,Resources,Central Services,Support Services,5105619701,11/09/2019,Legal Services Section,Stationery,2.48,SUPPLIES TEAM LTD
Revenue,Neighbourhoods,Cultural and Related Services,Service Management and Support Services,5105619701,11/09/2019,Leisure Management & Admin,Stationery,35.55,SUPPLIES TEAM LTD
Revenue,Adult Services,Adult Social Care,Commissioning & Service Delivery,5105619701,11/09/2019,Director of Adult Social Services,Stationery,35.55,SUPPLIES TEAM LTD
Revenue,Neighbourhoods,Cultural and Related Services,Culture and Heritage,5105619796,11/09/2019,Dinosaur Isle Museum (Sandown Geology),Stationery,118.50,SUPPLIES TEAM LTD
Revenue,Neighbourhoods,Cultural and Related Services,Culture and Heritage,5105619730,13/09/2019,Dinosaur Isle Museum (Sandown Geology),Stationery,11.42,SUPPLIES TEAM LTD
Revenue,Fire & Rescue,Fire & Rescue Services,Fire fighting and Rescue Operations,5105619693,25/09/2019,Business Support  - Fire,Stationery,0.75,SUPPLIES TEAM LTD
Revenue,Fire & Rescue,Fire & Rescue Services,Fire fighting and Rescue Operations,5105619693,25/09/2019,Business Support  - Fire,Stationery,0.98,SUPPLIES TEAM LTD
Revenue,Fire & Rescue,Fire & Rescue Services,Fire fighting and Rescue Operations,5105619693,25/09/2019,Business Support  - Fire,Stationery,23.70,SUPPLIES TEAM LTD
Revenue,Fire & Rescue,Fire & Rescue Services,Fire fighting and Rescue Operations,5105619693,25/09/2019,Business Support  - Fire,Stationery,4.75,SUPPLIES TEAM LTD
Revenue,Fire & Rescue,Fire & Rescue Services,Fire fighting and Rescue Operations,5105619693,25/09/2019,Business Support  - Fire,Stationery,7.00,SUPPLIES TEAM LTD
Revenue,Fire & Rescue,Fire & Rescue Services,Fire fighting and Rescue Operations,5105619693,25/09/2019,Business Support  - Fire,Stationery,3.41,SUPPLIES TEAM LTD
Revenue,Neighbourhoods,Environmental & Regulatory Services,Service Management and Support Services,5105619683,18/09/2019,Regulatory Management & Admin Support,Stationery,0.82,SUPPLIES TEAM LTD
Revenue,Neighbourhoods,Environmental & Regulatory Services,Service Management and Support Services,5105619683,18/09/2019,Regulatory Management & Admin Support,Stationery,0.69,SUPPLIES TEAM LTD
Revenue,Neighbourhoods,Environmental & Regulatory Services,Service Management and Support Services,5105619683,18/09/2019,Regulatory Management & Admin Support,Stationery,35.55,SUPPLIES TEAM LTD
Revenue,Childrens Services,Children's & Education Services,Safeguarding Children/Young Peoples Svs,5105619683,18/09/2019,LSCB (Local Safeguarding Childrens Board),Stationery,0.56,SUPPLIES TEAM LTD
Revenue,Neighbourhoods,Environmental & Regulatory Services,Service Management and Support Services,5105621113,25/09/2019,Regulatory Management & Admin Support,Stationery,2.57,SUPPLIES TEAM LTD
Revenue,Neighbourhoods,Environmental & Regulatory Services,Service Management and Support Services,5105619683,18/09/2019,Regulatory Management & Admin Support,Stationery,1.79,SUPPLIES TEAM LTD
Revenue,Neighbourhoods,Environmental & Regulatory Services,Service Management and Support Services,5105619683,18/09/2019,Regulatory Management & Admin Support,Stationery,7.16,SUPPLIES TEAM LTD
Revenue,Neighbourhoods,Environmental & Regulatory Services,Service Management and Support Services,5105619683,18/09/2019,Regulatory Management & Admin Support,Stationery,7.40,SUPPLIES TEAM LTD
Revenue,Neighbourhoods,Environmental & Regulatory Services,Service Management and Support Services,5105619683,18/09/2019,Regulatory Management & Admin Support,Stationery,1.11,SUPPLIES TEAM LTD
Revenue,Adult Services,Adult Social Care,Commissioning & Service Delivery,5105619719,18/09/2019,Learning Disability Homes Management & Admin,Stationery,2.22,SUPPLIES TEAM LTD
Revenue,Adult Services,Adult Social Care,Commissioning & Service Delivery,5105619719,18/09/2019,Learning Disability Homes Management & Admin,Stationery,4.86,SUPPLIES TEAM LTD
Revenue,Adult Services,Adult Social Care,Commissioning & Service Delivery,5105619719,18/09/2019,Learning Disability Homes Management & Admin,Stationery,35.55,SUPPLIES TEAM LTD
Revenue,Adult Services,Adult Social Care,Commissioning & Service Delivery,5105619719,18/09/2019,Learning Disability Homes Management & Admin,Stationery,5.54,SUPPLIES TEAM LTD
Revenue,Adult Services,Adult Social Care,Commissioning & Service Delivery,5105619719,18/09/2019,Learning Disability Homes Management & Admin,Stationery,1.38,SUPPLIES TEAM LTD
Revenue,Adult Services,Adult Social Care,Commissioning & Service Delivery,5105619719,18/09/2019,Learning Disability Homes Management & Admin,Stationery,3.18,SUPPLIES TEAM LTD
Revenue,Adult Services,Adult Social Care,Commissioning & Service Delivery,5105619719,18/09/2019,Learning Disability Homes Management & Admin,Stationery,34.26,SUPPLIES TEAM LTD
Revenue,Adult Services,Adult Social Care,Commissioning & Service Delivery,5105619719,18/09/2019,Learning Disability Homes Management & Admin,Stationery,6.57,SUPPLIES TEAM LTD
Revenue,Adult Services,Adult Social Care,Commissioning & Service Delivery,5105619719,18/09/2019,Learning Disability Homes Management & Admin,Stationery,0.86,SUPPLIES TEAM LTD
Revenue,Adult Services,Adult Social Care,Commissioning & Service Delivery,5105619719,18/09/2019,Learning Disability Homes Management & Admin,Stationery,2.22,SUPPLIES TEAM LTD
Revenue,Adult Services,Adult Social Care,Commissioning & Service Delivery,5105619719,18/09/2019,Learning Disability Homes Management & Admin,Stationery,6.72,SUPPLIES TEAM LTD
Revenue,Adult Services,Adult Social Care,Commissioning & Service Delivery,5105619719,18/09/2019,Learning Disability Homes Management & Admin,Stationery,1.20,SUPPLIES TEAM LTD
Revenue,Adult Services,Adult Social Care,Commissioning & Service Delivery,5105619719,18/09/2019,Learning Disability Homes Management & Admin,Stationery,0.56,SUPPLIES TEAM LTD
Revenue,Adult Services,Adult Social Care,Commissioning & Service Delivery,5105619719,18/09/2019,Learning Disability Homes Management & Admin,Stationery,5.89,SUPPLIES TEAM LTD
Revenue,Adult Services,Adult Social Care,Commissioning & Service Delivery,5105619719,18/09/2019,Learning Disability Homes Management & Admin,Stationery,1.05,SUPPLIES TEAM LTD
Revenue,Adult Services,Adult Social Care,Commissioning & Service Delivery,5105619719,18/09/2019,Learning Disability Homes Management & Admin,Stationery,0.55,SUPPLIES TEAM LTD
Revenue,Adult Services,Adult Social Care,Commissioning & Service Delivery,5105619719,18/09/2019,Learning Disability Homes Management & Admin,Stationery,4.90,SUPPLIES TEAM LTD
Revenue,Adult Services,Adult Social Care,Commissioning & Service Delivery,5105619719,18/09/2019,Learning Disability Homes Management & Admin,Stationery,1.20,SUPPLIES TEAM LTD
Revenue,Adult Services,Adult Social Care,Commissioning & Service Delivery,5105619719,18/09/2019,Learning Disability Homes Management & Admin,Stationery,1.84,SUPPLIES TEAM LTD
Revenue,Adult Services,Adult Social Care,Commissioning & Service Delivery,5105619719,18/09/2019,Learning Disability Homes Management & Admin,Stationery,1.46,SUPPLIES TEAM LTD
Revenue,Adult Services,Adult Social Care,Commissioning & Service Delivery,5105619719,18/09/2019,Learning Disability Homes Management & Admin,Stationery,2.12,SUPPLIES TEAM LTD
Revenue,Adult Services,Adult Social Care,Commissioning & Service Delivery,5105619719,18/09/2019,Learning Disability Homes Management & Admin,Stationery,1.57,SUPPLIES TEAM LTD
Revenue,Adult Services,Adult Social Care,Commissioning & Service Delivery,5105619719,18/09/2019,Learning Disability Homes Management & Admin,Stationery,2.25,SUPPLIES TEAM LTD
Revenue,Adult Services,Adult Social Care,Commissioning & Service Delivery,5105619719,18/09/2019,Learning Disability Homes Management & Admin,Stationery,2.39,SUPPLIES TEAM LTD
Revenue,Adult Services,Adult Social Care,Commissioning & Service Delivery,5105619719,18/09/2019,Learning Disability Homes Management & Admin,Stationery,1.23,SUPPLIES TEAM LTD
Revenue,Adult Services,Adult Social Care,Central Codes (to be reallocated),5105619782,25/09/2019,Community Reablement,Stationery,3.25,SUPPLIES TEAM LTD
Revenue,Adult Services,Adult Social Care,Central Codes (to be reallocated),5105619782,25/09/2019,Community Reablement,Stationery,47.40,SUPPLIES TEAM LTD
Revenue,Adult Services,Adult Social Care,Central Codes (to be reallocated),5105619782,25/09/2019,Gouldings Resource Centre,Stationery,10.20,SUPPLIES TEAM LTD
Revenue,Adult Services,Adult Social Care,Central Codes (to be reallocated),5105619782,25/09/2019,Gouldings Resource Centre,Stationery,12.88,SUPPLIES TEAM LTD
Revenue,Adult Services,Adult Social Care,Central Codes (to be reallocated),5105619782,25/09/2019,Gouldings Resource Centre,Stationery,1.23,SUPPLIES TEAM LTD
Revenue,Adult Services,Adult Social Care,Central Codes (to be reallocated),5105619782,25/09/2019,Gouldings Resource Centre,Stationery,1.62,SUPPLIES TEAM LTD
Revenue,Adult Services,Adult Social Care,Central Codes (to be reallocated),5105619782,25/09/2019,Gouldings Resource Centre,Stationery,1.89,SUPPLIES TEAM LTD
Revenue,Adult Services,Adult Social Care,Central Codes (to be reallocated),5105619782,25/09/2019,Gouldings Resource Centre,Stationery,0.75,SUPPLIES TEAM LTD
Revenue,Adult Services,Adult Social Care,Central Codes (to be reallocated),5105619782,25/09/2019,Gouldings Resource Centre,Stationery,3.41,SUPPLIES TEAM LTD
Revenue,Adult Services,Adult Social Care,Central Codes (to be reallocated),5105619782,25/09/2019,Gouldings Resource Centre,Stationery,1.11,SUPPLIES TEAM LTD
Revenue,Adult Services,Adult Social Care,Central Codes (to be reallocated),5105619782,25/09/2019,Gouldings Resource Centre,Stationery,2.12,SUPPLIES TEAM LTD
Revenue,Adult Services,Adult Social Care,Central Codes (to be reallocated),5105619782,25/09/2019,Gouldings Resource Centre,Stationery,3.68,SUPPLIES TEAM LTD
Revenue,Adult Services,Adult Social Care,Central Codes (to be reallocated),5105619782,25/09/2019,Gouldings Resource Centre,Stationery,0.90,SUPPLIES TEAM LTD
Revenue,Adult Services,Adult Social Care,Central Codes (to be reallocated),5105619782,25/09/2019,Gouldings Resource Centre,Stationery,1.22,SUPPLIES TEAM LTD
Revenue,Neighbourhoods,Cultural and Related Services,Recreation and Sport,5105619799,25/09/2019,The Heights,Stationery,0.78,SUPPLIES TEAM LTD
Revenue,Neighbourhoods,Cultural and Related Services,Recreation and Sport,5105619799,25/09/2019,The Heights,Stationery,1.20,SUPPLIES TEAM LTD
Revenue,Neighbourhoods,Cultural and Related Services,Recreation and Sport,5105619799,25/09/2019,The Heights,Stationery,2.02,SUPPLIES TEAM LTD
Revenue,Neighbourhoods,Cultural and Related Services,Recreation and Sport,5105619799,25/09/2019,The Heights,Stationery,2.22,SUPPLIES TEAM LTD
Revenue,Resources,Central Services,Support Services,5105619788,11/09/2019,Payments Social Care Team,Stationery,5.10,SUPPLIES TEAM LTD
Revenue,Resources,Housing Services,Housing Benefits Administration,5105619788,11/09/2019,Housing Benefit,Stationery,0.68,SUPPLIES TEAM LTD
Revenue,Resources,Housing Services,Housing Benefits Administration,5105619788,11/09/2019,Housing Benefit,Stationery,1.05,SUPPLIES TEAM LTD
Revenue,Resources,Central Services,Support Services,5105619788,11/09/2019,Call Centre,Stationery,1.05,SUPPLIES TEAM LTD
Revenue,Resources,Central Services,Support Services,5105619788,11/09/2019,Call Centre,Stationery,0.71,SUPPLIES TEAM LTD
Revenue,Resources,Central Services,Support Services,5105619788,11/09/2019,Payments Social Care Team,Stationery,3.68,SUPPLIES TEAM LTD
Revenue,Resources,Housing Services,Housing Benefits Administration,5105619788,11/09/2019,Housing Benefit,Stationery,1.10,SUPPLIES TEAM LTD
Revenue,Resources,Central Services,Support Services,5105619788,11/09/2019,Call Centre,Stationery,11.85,SUPPLIES TEAM LTD
Revenue,Resources,Central Services,Support Services,5105619788,11/09/2019,Call Centre,Stationery,3.16,SUPPLIES TEAM LTD
Revenue,Resources,Central Services,Support Services,5105619788,11/09/2019,Call Centre,Stationery,2.55,SUPPLIES TEAM LTD
Revenue,Resources,Central Services,Support Services,5105619788,11/09/2019,Call Centre,Stationery,1.24,SUPPLIES TEAM LTD
Revenue,Adult Services,Adult Social Care,Commissioning & Service Delivery,5105620451,25/09/2019,SPOC Team,Stationery,15.30,SUPPLIES TEAM LTD
Revenue,Adult Services,Adult Social Care,Commissioning & Service Delivery,5105620451,25/09/2019,Commissioning Manager for Adult Social Care,Stationery,4.10,SUPPLIES TEAM LTD
Revenue,Childrens Services,Children's & Education Services,Safeguarding Children/Young Peoples Svs,5105620451,25/09/2019,Children's office costs,Stationery,4.24,SUPPLIES TEAM LTD
Revenue,Adult Services,Adult Social Care,Commissioning & Service Delivery,5105620451,25/09/2019,Director of Adult Social Services,Stationery,5.85,SUPPLIES TEAM LTD
Revenue,Resources,Central Services,Corporate and Democratic Core,5105620451,25/09/2019,Committee and Scrutiny Team,Stationery,4.96,SUPPLIES TEAM LTD
Revenue,Adult Services,Adult Social Care,Social Care Activities,5105620283,18/09/2019,Safeguarding Adults,Stationery,13.14,SUPPLIES TEAM LTD
Revenue,Neighbourhoods,Cultural and Related Services,Service Management and Support Services,5105620451,25/09/2019,Leisure Management & Admin,Stationery,35.55,SUPPLIES TEAM LTD
Revenue,Regeneration,Central Services,Support Services,5105620451,25/09/2019,"Civic Centre,Sandown",Stationery,11.85,SUPPLIES TEAM LTD
Revenue,Childrens Services,Children's & Education Services,Safeguarding Children/Young Peoples Svs,5105620451,25/09/2019,Children's office costs,Stationery,23.70,SUPPLIES TEAM LTD
Revenue,Neighbourhoods,Cultural and Related Services,Service Management and Support Services,5105620451,25/09/2019,Leisure Management & Admin,Stationery,0.81,SUPPLIES TEAM LTD
Revenue,Adult Services,Adult Social Care,Social Care Activities,5105620451,25/09/2019,Safeguarding Adults,Stationery,4.05,SUPPLIES TEAM LTD
Revenue,Adult Services,Adult Social Care,Commissioning & Service Delivery,5105620451,25/09/2019,ASC County Hall office costs,Stationery,1.62,SUPPLIES TEAM LTD
Revenue,Neighbourhoods,Cultural and Related Services,Service Management and Support Services,5105620451,25/09/2019,Leisure Management & Admin,Stationery,3.00,SUPPLIES TEAM LTD
Revenue,Neighbourhoods,Cultural and Related Services,Service Management and Support Services,5105620451,25/09/2019,Leisure Management & Admin,Stationery,1.24,SUPPLIES TEAM LTD
Revenue,Resources,Central Services,Support Services,5105620451,25/09/2019,Revenues & Benefits Operational Support,Stationery,1.11,SUPPLIES TEAM LTD
Revenue,Childrens Services,Children's & Education Services,Other Education and Community Budget,5105620452,25/09/2019,Learning & Development Running Costs,Stationery,26.38,SUPPLIES TEAM LTD
Revenue,Childrens Services,Children's & Education Services,Other Education and Community Budget,5105620452,25/09/2019,Learning & Development Running Costs,Stationery,94.80,SUPPLIES TEAM LTD
Revenue,Childrens Services,Children's & Education Services,Other Education and Community Budget,5105620452,25/09/2019,Learning & Development Running Costs,Stationery,8.09,SUPPLIES TEAM LTD
Revenue,Childrens Services,Children's & Education Services,Other Education and Community Budget,5105620452,25/09/2019,Learning & Development Running Costs,Stationery,3.24,SUPPLIES TEAM LTD
Revenue,Childrens Services,Children's & Education Services,Other Education and Community Budget,5105620452,25/09/2019,Learning & Development Running Costs,Stationery,23.40,SUPPLIES TEAM LTD
Revenue,Childrens Services,Children's & Education Services,Other Education and Community Budget,5105620289,25/09/2019,Learning & Development Running Costs,Stationery,6.57,SUPPLIES TEAM LTD
Revenue,Childrens Services,Children's & Education Services,Other Education and Community Budget,5105620452,25/09/2019,Learning & Development Running Costs,Stationery,8.44,SUPPLIES TEAM LTD
Revenue,Childrens Services,Children's & Education Services,Other Education and Community Budget,5105620452,25/09/2019,Learning & Development Running Costs,Stationery,16.88,SUPPLIES TEAM LTD
Revenue,Childrens Services,Children's & Education Services,Other Education and Community Budget,5105620452,25/09/2019,Learning & Development Running Costs,Stationery,2.02,SUPPLIES TEAM LTD
Revenue,Neighbourhoods,Cultural and Related Services,Culture and Heritage,5105620449,27/09/2019,Museums & Collections Management,Stationery,23.70,SUPPLIES TEAM LTD
Revenue,Neighbourhoods,Cultural and Related Services,Library Service,5105620449,27/09/2019,Public Libraries Central,Stationery,94.80,SUPPLIES TEAM LTD
Revenue,Neighbourhoods,Cultural and Related Services,Library Service,5105620449,27/09/2019,Public Libraries Central,Stationery,6.57,SUPPLIES TEAM LTD
Revenue,Neighbourhoods,Cultural and Related Services,Library Service,5105620578,25/09/2019,Public Libraries Central,Stationery,7.70,SUPPLIES TEAM LTD
Revenue,Neighbourhoods,Cultural and Related Services,Library Service,5105620449,27/09/2019,Public Libraries Central,Stationery,5.85,SUPPLIES TEAM LTD
Revenue,Childrens Services,Children's & Education Services,Special Schools & Alternative Provision,5105620328,27/09/2019,Island Learning Centre,Stationery,7.16,SUPPLIES TEAM LTD
Revenue,Childrens Services,Children's & Education Services,Special Schools & Alternative Provision,5105620328,27/09/2019,Island Learning Centre,Stationery,5.77,SUPPLIES TEAM LTD
Revenue,Childrens Services,Children's & Education Services,Special Schools & Alternative Provision,5105620328,27/09/2019,Island Learning Centre,Stationery,5.54,SUPPLIES TEAM LTD
Revenue,Resources,Central Services,Support Services,5105620583,25/09/2019,Payroll,Stationery,71.10,SUPPLIES TEAM LTD
Revenue,Neighbourhoods,Cultural and Related Services,Library Service,5105620872,27/09/2019,Newport Library,Stationery,23.40,SUPPLIES TEAM LTD
Revenue,Resources,Central Services,Support Services,5105620873,20/09/2019,Revenues & Benefits Operational Support,Stationery,6.42,SUPPLIES TEAM LTD
Revenue,Resources,Central Services,Support Services,5105620873,20/09/2019,Revenues & Benefits Operational Support,Stationery,6.42,SUPPLIES TEAM LTD
Revenue,Resources,Central Services,Corporate and Democratic Core,5105620873,20/09/2019,Democratic Representation & Management,Stationery,23.70,SUPPLIES TEAM LTD
Revenue,Childrens Services,Children's & Education Services,Other Education and Community Budget,5105620873,20/09/2019,Pupil Resources Business Support Team,Stationery,35.55,SUPPLIES TEAM LTD
Revenue,Adult Services,Adult Social Care,Social Care Activities,5105620873,20/09/2019,Hospital Team,Stationery,1.22,SUPPLIES TEAM LTD
Revenue,Neighbourhoods,Cultural and Related Services,Service Management and Support Services,5105620873,20/09/2019,Leisure Management & Admin,Stationery,3.12,SUPPLIES TEAM LTD
Revenue,Adult Services,Adult Social Care,Social Care Activities,5105620873,20/09/2019,Integrated Locality Services - South,Stationery,1.05,SUPPLIES TEAM LTD
Revenue,Childrens Services,Children's & Education Services,Safeguarding Children/Young Peoples Svs,5105620873,20/09/2019,Children's office costs,Stationery,13.82,SUPPLIES TEAM LTD
Revenue,Adult Services,Adult Social Care,Social Care Activities,5105620873,20/09/2019,Integrated Locality Services - South,Stationery,1.36,SUPPLIES TEAM LTD
Revenue,Adult Services,Adult Social Care,Social Care Activities,5105620873,20/09/2019,Integrated Locality Services - South,Stationery,2.02,SUPPLIES TEAM LTD
Revenue,Adult Services,Adult Social Care,Social Care Activities,5105620873,20/09/2019,Integrated Locality Services - South,Stationery,1.11,SUPPLIES TEAM LTD
Revenue,Adult Services,Adult Social Care,Social Care Activities,5105620874,20/09/2019,Hospital Team,Stationery,14.34,SUPPLIES TEAM LTD
Revenue,Adult Services,Adult Social Care,Social Care Activities,5105620873,20/09/2019,Integrated Locality Services - South,Stationery,1.35,SUPPLIES TEAM LTD
Revenue,Adult Services,Adult Social Care,Social Care Activities,5105620873,20/09/2019,Integrated Locality Services - South,Stationery,0.43,SUPPLIES TEAM LTD
Revenue,Adult Services,Adult Social Care,Social Care Activities,5105620873,20/09/2019,Integrated Locality Services - South,Stationery,0.55,SUPPLIES TEAM LTD
Revenue,Adult Services,Adult Social Care,Social Care Activities,5105620873,20/09/2019,Integrated Locality Services - South,Stationery,11.85,SUPPLIES TEAM LTD
Revenue,Adult Services,Adult Social Care,Commissioning & Service Delivery,5105620873,20/09/2019,Director of Adult Social Services,Stationery,23.70,SUPPLIES TEAM LTD
Revenue,Resources,Central Services,Corporate and Democratic Core,5105620873,20/09/2019,Cabinet Support,Stationery,11.85,SUPPLIES TEAM LTD
Revenue,Childrens Services,Children's & Education Services,Youth Justice,5105620873,20/09/2019,Youth Offending Team,Stationery,35.55,SUPPLIES TEAM LTD
Revenue,Chief Executive,Central Services,Central Services to the Public,5105620873,20/09/2019,Emergency Management,Stationery,11.85,SUPPLIES TEAM LTD
Revenue,Adult Services,Adult Social Care,Social Care Activities,5105620873,20/09/2019,Integrated Locality Services - South,Stationery,1.58,SUPPLIES TEAM LTD
Revenue,Adult Services,Adult Social Care,Social Care Activities,5105620873,20/09/2019,Integrated Locality Services - South,Stationery,31.80,SUPPLIES TEAM LTD
Revenue,Adult Services,Adult Social Care,Social Care Activities,5105620873,20/09/2019,Integrated Locality Services - South,Stationery,25.50,SUPPLIES TEAM LTD
Revenue,Adult Services,Adult Social Care,Social Care Activities,5105620873,20/09/2019,Hospital Team,Stationery,18.50,SUPPLIES TEAM LTD
Revenue,Adult Services,Adult Social Care,Social Care Activities,5105620873,20/09/2019,Integrated Locality Services - South,Stationery,0.69,SUPPLIES TEAM LTD
Revenue,Adult Services,Adult Social Care,Social Care Activities,5105620873,20/09/2019,Integrated Locality Services - South,Stationery,1.24,SUPPLIES TEAM LTD
Revenue,Childrens Services,Children's & Education Services,Children Looked After,5105619136,04/09/2019,Local Authority Care Advocacy Contract,Grants to External Bodies,"9,875.00",BARNARDO'S
Revenue,Childrens Services,Children's & Education Services,Sure Start Children's Centres,5105619925,11/09/2019,Early Help Contracts,Payment to Private Contractors,"260,018.00",BARNARDO'S
Revenue,Childrens Services,Children's & Education Services,Children Looked After,5105619168,18/09/2019,Beaulieu House,General Materials,114.65,LAKE CLEANING & CATERING SUPPLIES
Revenue,Childrens Services,Children's & Education Services,Children Looked After,5105619451,04/09/2019,Beaulieu House,General Materials,198.43,LAKE CLEANING & CATERING SUPPLIES
Revenue,Childrens Services,Children's & Education Services,Children Looked After,5105621116,25/09/2019,Beaulieu House,General Materials,146.35,LAKE CLEANING & CATERING SUPPLIES
Revenue,Childrens Services,Children's & Education Services,Children Looked After,5105619922,13/09/2019,Beaulieu House,General Materials,304.98,LAKE CLEANING & CATERING SUPPLIES
Revenue,Childrens Services,Children's & Education Services,Children Looked After,5105620520,18/09/2019,Beaulieu House,General Materials,97.98,LAKE CLEANING & CATERING SUPPLIES
Revenue,Adult Services,Adult Social Care,Learning Disab Supp (to be reallocated),5105619907,18/09/2019,Plean Dene,Operational Equipment,34.69,LAKE CLEANING & CATERING SUPPLIES
Revenue,Adult Services,Adult Social Care,Learning Disab Supp (to be reallocated),5105620671,18/09/2019,Plean Dene,Operational Equipment,4.20,LAKE CLEANING & CATERING SUPPLIES
Revenue,Adult Services,Adult Social Care,Learning Disab Supp (to be reallocated),5105620673,18/09/2019,Plean Dene,Operational Equipment,-5.02,LAKE CLEANING & CATERING SUPPLIES
Revenue,Neighbourhoods,Cultural and Related Services,Recreation and Sport,5105619716,06/09/2019,Medina Leisure Centre,Consumable Cleaning Materials,3.38,LAKE CLEANING & CATERING SUPPLIES
Revenue,Neighbourhoods,Cultural and Related Services,Recreation and Sport,5105619716,06/09/2019,Medina Leisure Centre,Consumable Cleaning Materials,156.12,LAKE CLEANING & CATERING SUPPLIES
Revenue,Neighbourhoods,Cultural and Related Services,Recreation and Sport,5105619714,06/09/2019,Medina Leisure Centre,Consumable Cleaning Materials,16.80,LAKE CLEANING & CATERING SUPPLIES
Revenue,Neighbourhoods,Cultural and Related Services,Recreation and Sport,5105619714,06/09/2019,Medina Leisure Centre,Consumable Cleaning Materials,43.68,LAKE CLEANING & CATERING SUPPLIES
Revenue,Neighbourhoods,Cultural and Related Services,Recreation and Sport,5105619714,06/09/2019,Medina Leisure Centre,Consumable Cleaning Materials,26.26,LAKE CLEANING & CATERING SUPPLIES
Revenue,Neighbourhoods,Cultural and Related Services,Recreation and Sport,5105619714,06/09/2019,Medina Leisure Centre,Consumable Cleaning Materials,44.28,LAKE CLEANING & CATERING SUPPLIES
Revenue,Neighbourhoods,Cultural and Related Services,Recreation and Sport,5105619714,06/09/2019,Medina Leisure Centre,Consumable Cleaning Materials,18.90,LAKE CLEANING & CATERING SUPPLIES
Revenue,Neighbourhoods,Cultural and Related Services,Recreation and Sport,5105619714,06/09/2019,Medina Leisure Centre,Consumable Cleaning Materials,45.00,LAKE CLEANING & CATERING SUPPLIES
Revenue,Neighbourhoods,Cultural and Related Services,Recreation and Sport,5105619714,06/09/2019,Medina Leisure Centre,Consumable Cleaning Materials,45.00,LAKE CLEANING & CATERING SUPPLIES
Revenue,Neighbourhoods,Cultural and Related Services,Recreation and Sport,5105619714,06/09/2019,Medina Leisure Centre,Consumable Cleaning Materials,45.00,LAKE CLEANING & CATERING SUPPLIES
Revenue,Neighbourhoods,Cultural and Related Services,Recreation and Sport,5105619714,06/09/2019,Medina Leisure Centre,Consumable Cleaning Materials,26.88,LAKE CLEANING & CATERING SUPPLIES
Revenue,Neighbourhoods,Cultural and Related Services,Recreation and Sport,5105619714,06/09/2019,Medina Leisure Centre,Consumable Cleaning Materials,41.52,LAKE CLEANING & CATERING SUPPLIES
Revenue,Neighbourhoods,Cultural and Related Services,Recreation and Sport,5105619714,06/09/2019,Medina Leisure Centre,Consumable Cleaning Materials,8.82,LAKE CLEANING & CATERING SUPPLIES
Revenue,Neighbourhoods,Cultural and Related Services,Recreation and Sport,5105619714,06/09/2019,Medina Leisure Centre,Consumable Cleaning Materials,17.64,LAKE CLEANING & CATERING SUPPLIES
Revenue,Neighbourhoods,Cultural and Related Services,Recreation and Sport,5105619909,11/09/2019,The Heights,Consumable Cleaning Materials,180.45,LAKE CLEANING & CATERING SUPPLIES
Revenue,Neighbourhoods,Cultural and Related Services,Recreation and Sport,5105619852,11/09/2019,The Heights,Consumable Cleaning Materials,3.00,LAKE CLEANING & CATERING SUPPLIES
Revenue,Neighbourhoods,Cultural and Related Services,Recreation and Sport,5105619850,11/09/2019,The Heights,Consumable Cleaning Materials,48.21,LAKE CLEANING & CATERING SUPPLIES
Revenue,Neighbourhoods,Cultural and Related Services,Recreation and Sport,5105619841,11/09/2019,The Heights,Consumable Cleaning Materials,24.46,LAKE CLEANING & CATERING SUPPLIES
Revenue,Neighbourhoods,Cultural and Related Services,Recreation and Sport,5105620309,13/09/2019,The Heights,Consumable Cleaning Materials,287.12,LAKE CLEANING & CATERING SUPPLIES
Revenue,Fire & Rescue,Fire & Rescue Services,Fire fighting and Rescue Operations,5105621207,25/09/2019,Fire Technical Support,Stock Purchases,15.90,LAKE CLEANING & CATERING SUPPLIES
Revenue,Fire & Rescue,Fire & Rescue Services,Fire fighting and Rescue Operations,5105621207,25/09/2019,Fire Technical Support,Stock Purchases,62.50,LAKE CLEANING & CATERING SUPPLIES
Revenue,Fire & Rescue,Fire & Rescue Services,Fire fighting and Rescue Operations,5105621207,25/09/2019,Fire Technical Support,Stock Purchases,45.00,LAKE CLEANING & CATERING SUPPLIES
Revenue,Fire & Rescue,Fire & Rescue Services,Fire fighting and Rescue Operations,5105621207,25/09/2019,Fire Technical Support,Stock Purchases,13.44,LAKE CLEANING & CATERING SUPPLIES
Revenue,Fire & Rescue,Fire & Rescue Services,Fire fighting and Rescue Operations,5105621207,25/09/2019,Fire Technical Support,Stock Purchases,80.16,LAKE CLEANING & CATERING SUPPLIES
Revenue,Fire & Rescue,Fire & Rescue Services,Fire fighting and Rescue Operations,5105621207,25/09/2019,Fire Technical Support,Stock Purchases,27.40,LAKE CLEANING & CATERING SUPPLIES
Revenue,Fire & Rescue,Fire & Rescue Services,Fire fighting and Rescue Operations,5105621207,25/09/2019,Fire Technical Support,Stock Purchases,89.30,LAKE CLEANING & CATERING SUPPLIES
Revenue,Fire & Rescue,Fire & Rescue Services,Fire fighting and Rescue Operations,5105621207,25/09/2019,Fire Technical Support,Stock Purchases,40.60,LAKE CLEANING & CATERING SUPPLIES
Revenue,Neighbourhoods,Cultural and Related Services,Recreation and Sport,5105621499,27/09/2019,The Heights,Consumable Cleaning Materials,98.00,LAKE CLEANING & CATERING SUPPLIES
Revenue,Neighbourhoods,Cultural and Related Services,Recreation and Sport,5105619120,04/09/2019,Extended Activities,Advertising & Publicity,400.00,BEACON MEDIA LIMITED
Revenue,Neighbourhoods,Cultural and Related Services,Recreation and Sport,5105616840,04/09/2019,Commercial Sales Team,Advertising & Publicity,"1,125.00",BEACON MEDIA LIMITED
Revenue,Neighbourhoods,Cultural and Related Services,Recreation and Sport,5105619121,04/09/2019,Commercial Sales Team,Advertising & Publicity,"1,025.00",BEACON MEDIA LIMITED
Revenue,Neighbourhoods,Highways and Transport Services,"Airports, Harbours & Toll Facilities",5105619955,11/09/2019,Newport Harbour Account,Payment to Private Contractors,78.00,BEAUFORT MARINE LTD
Revenue,Adult Services,Adult Social Care,Support - Memory /Cognition-older people (65+),5105619280,04/09/2019,Memory & Cognition Nursing 65+,Charges from Independent Providers,"3,580.08",BEAUMONT LODGE LTD
Revenue,Adult Services,Adult Social Care,Support - Memory /Cognition-older people (65+),5105621640,27/09/2019,Memory & Cognition Nursing 65+,Charges from Independent Providers,"3,580.08",BEAUMONT LODGE LTD
Revenue,Public Health,Public Health,NHS Health Check Programme,5105619634,06/09/2019,NHS Health Check Programme P,Payment to Private Contractors,"1,180.50",BEECH GROVE SURGERY
Revenue,Public Health,Public Health,Sexual Health,5105619634,06/09/2019,Long Acting Reversible Contraception,Payment to Private Contractors,350.00,BEECH GROVE SURGERY
Revenue,Public Health,Public Health,NHS Health Check Programme,5105619363,13/09/2019,NHS Health Check Programme P,Payment to Private Contractors,"1,564.50",BEECH GROVE SURGERY
Revenue,Adult Services,Housing Services,Homelessness,5105620678,18/09/2019,B&B Properties,Accommodation Costs - Bed & Breakfast,"8,892.50",BERTRAM LODGE
Revenue,Adult Services,Adult Social Care,Learning Disab Supp (to be reallocated),5105619039,13/09/2019,31 Carter Avenue,Operational Equipment,161.02,BETA PAK LTD
Revenue,Adult Services,Adult Social Care,Learning Disab Supp (to be reallocated),5105619675,13/09/2019,31 Carter Avenue,Operational Equipment,20.77,BETA PAK LTD
Revenue,Adult Services,Adult Social Care,Learning Disab Supp (to be reallocated),5105619729,13/09/2019,31 Carter Avenue,Operational Equipment,13.48,BETA PAK LTD
Revenue,Adult Services,Adult Social Care,Learning Disab Supp (to be reallocated),5105619741,13/09/2019,31 Carter Avenue,Operational Equipment,4.18,BETA PAK LTD
Revenue,Adult Services,Adult Social Care,Learning Disab Supp (to be reallocated),5105620365,18/09/2019,31 Carter Avenue,Operational Equipment,19.33,BETA PAK LTD
Revenue,Adult Services,Adult Social Care,Learning Disab Supp (to be reallocated),5105620401,13/09/2019,31 Carter Avenue,Operational Equipment,55.48,BETA PAK LTD
Revenue,Adult Services,Adult Social Care,Learning Disab Supp (to be reallocated),5105620402,18/09/2019,31 Carter Avenue,Operational Equipment,100.71,BETA PAK LTD
Revenue,Adult Services,Adult Social Care,Learning Disab Supp (to be reallocated),5105620404,18/09/2019,31 Carter Avenue,Operational Equipment,71.51,BETA PAK LTD
Revenue,Adult Services,Adult Social Care,Learning Disab Supp (to be reallocated),5105620679,27/09/2019,31 Carter Avenue,Operational Equipment,32.99,BETA PAK LTD
Revenue,Adult Services,Adult Social Care,Learning Disab Supp (to be reallocated),5105619143,11/09/2019,40 Venner Avenue,Operational Equipment,2.44,BETA PAK LTD
Revenue,Adult Services,Adult Social Care,Learning Disab Supp (to be reallocated),5105619395,11/09/2019,40 Venner Avenue,Operational Equipment,646.73,BETA PAK LTD
Revenue,Adult Services,Adult Social Care,Learning Disab Supp (to be reallocated),5105619681,11/09/2019,40 Venner Avenue,Operational Equipment,-54.93,BETA PAK LTD
Revenue,Adult Services,Adult Social Care,Learning Disab Supp (to be reallocated),5105619744,18/09/2019,Plean Dene,Operational Equipment,82.43,BETA PAK LTD
Revenue,Adult Services,Adult Social Care,Learning Disab Supp (to be reallocated),5105621105,27/09/2019,Plean Dene,Operational Equipment,114.88,BETA PAK LTD
Revenue,Adult Services,Adult Social Care,Learning Disab Supp (to be reallocated),5105619744,18/09/2019,Plean Dene,Operational Equipment,47.96,BETA PAK LTD
Revenue,Adult Services,Adult Social Care,Learning Disab Supp (to be reallocated),5105619153,04/09/2019,Saxonbury,Operational Equipment,11.92,BETA PAK LTD
Revenue,Adult Services,Adult Social Care,Learning Disab Supp (to be reallocated),5105619432,18/09/2019,Saxonbury,Operational Equipment,18.75,BETA PAK LTD
Revenue,Adult Services,Adult Social Care,Learning Disab Supp (to be reallocated),5105619743,13/09/2019,Saxonbury,Operational Equipment,322.37,BETA PAK LTD
Revenue,Adult Services,Adult Social Care,Learning Disab Supp (to be reallocated),5105618609,11/09/2019,Seagulls,Operational Equipment,307.74,BETA PAK LTD
Revenue,Adult Services,Adult Social Care,Learning Disab Supp (to be reallocated),5105620313,27/09/2019,Seagulls,Operational Equipment,75.35,BETA PAK LTD
Revenue,Adult Services,Adult Social Care,Learning Disab Supp (to be reallocated),5105621090,27/09/2019,Seagulls,Operational Equipment,49.13,BETA PAK LTD
Revenue,Adult Services,Adult Social Care,Learning Disab Supp (to be reallocated),5105621109,27/09/2019,Seagulls,Operational Equipment,18.97,BETA PAK LTD
Revenue,Adult Services,Adult Social Care,Social Support - Support for Carer,5105619938,11/09/2019,Westminster House,Operational Equipment,185.62,BETA PAK LTD
Revenue,Adult Services,Adult Social Care,Central Codes (to be reallocated),5105617142,04/09/2019,Adelaide Resource Centre,Consumable Cleaning Materials,294.29,BETA PAK LTD
Revenue,Adult Services,Adult Social Care,Central Codes (to be reallocated),5105618020,04/09/2019,Adelaide Resource Centre,Consumable Cleaning Materials,39.38,BETA PAK LTD
Revenue,Adult Services,Adult Social Care,Central Codes (to be reallocated),5105617726,11/09/2019,Adelaide Resource Centre,Consumable Cleaning Materials,766.80,BETA PAK LTD
Revenue,Adult Services,Adult Social Care,Central Codes (to be reallocated),5105619717,11/09/2019,Adelaide Resource Centre,Consumable Cleaning Materials,593.19,BETA PAK LTD
Revenue,Adult Services,Adult Social Care,Central Codes (to be reallocated),5105619728,06/09/2019,Gouldings Resource Centre,Consumable Cleaning Materials,49.99,BETA PAK LTD
Revenue,Adult Services,Adult Social Care,Central Codes (to be reallocated),5105619338,04/09/2019,Gouldings Resource Centre,Consumable Cleaning Materials,180.21,BETA PAK LTD
Revenue,Adult Services,Adult Social Care,Central Codes (to be reallocated),5105619643,06/09/2019,Gouldings Resource Centre,Consumable Cleaning Materials,108.28,BETA PAK LTD
Revenue,Adult Services,Adult Social Care,Central Codes (to be reallocated),5105619784,13/09/2019,Gouldings Resource Centre,Consumable Cleaning Materials,22.95,BETA PAK LTD
Revenue,Adult Services,Adult Social Care,Central Codes (to be reallocated),5105620368,13/09/2019,Gouldings Resource Centre,Consumable Cleaning Materials,745.16,BETA PAK LTD
Revenue,Adult Services,Adult Social Care,Central Codes (to be reallocated),5105619340,04/09/2019,Gouldings Resource Centre,Consumable Cleaning Materials,81.80,BETA PAK LTD
Revenue,Adult Services,Adult Social Care,Central Codes (to be reallocated),5105619734,06/09/2019,Gouldings Resource Centre,Consumable Cleaning Materials,163.60,BETA PAK LTD
Revenue,Adult Services,Adult Social Care,Central Codes (to be reallocated),5105619921,11/09/2019,Gouldings Resource Centre,Consumable Cleaning Materials,65.73,BETA PAK LTD
Revenue,Adult Services,Adult Social Care,Central Codes (to be reallocated),5105620609,25/09/2019,Gouldings Resource Centre,Consumable Cleaning Materials,49.44,BETA PAK LTD
Revenue,Adult Services,Adult Social Care,Central Codes (to be reallocated),5105620441,13/09/2019,Gouldings Resource Centre,Consumable Cleaning Materials,25.96,BETA PAK LTD
Revenue,Adult Services,Adult Social Care,Central Codes (to be reallocated),5105621251,25/09/2019,Gouldings Resource Centre,Consumable Cleaning Materials,49.94,BETA PAK LTD
Revenue,Adult Services,Adult Social Care,Central Codes (to be reallocated),5105621252,25/09/2019,Gouldings Resource Centre,Consumable Cleaning Materials,34.55,BETA PAK LTD
Revenue,Adult Services,Adult Social Care,Central Codes (to be reallocated),5105621691,30/09/2019,Gouldings Resource Centre,Consumable Cleaning Materials,27.99,BETA PAK LTD
Revenue,Resources,Deleted,Deleted,5105621489,27/09/2019,Chief Executive,Legal Fees - Other Parties,183.72,BEVAN BRITTAN
Revenue,Neighbourhoods,Environmental & Regulatory Services,Service Management and Support Services,5105620522,20/09/2019,Waste Contract Management,Legal Fees - Other Parties,"4,817.80",BEVAN BRITTAN
Revenue,Adult Services,Adult Social Care,Central Codes (to be reallocated),5105619167,04/09/2019,Gouldings Resource Centre,Catering Purchases,182.26,3663 (BFS GROUP LTD)
Revenue,Adult Services,Adult Social Care,Central Codes (to be reallocated),5105620030,11/09/2019,Gouldings Resource Centre,Catering Purchases,154.47,3663 (BFS GROUP LTD)
Revenue,Adult Services,Adult Social Care,Central Codes (to be reallocated),5105620032,11/09/2019,Gouldings Resource Centre,Catering Purchases,176.67,3663 (BFS GROUP LTD)
Revenue,Adult Services,Adult Social Care,Central Codes (to be reallocated),5105621718,30/09/2019,Gouldings Resource Centre,Catering Purchases,448.77,3663 (BFS GROUP LTD)
Revenue,Adult Services,Adult Social Care,Central Codes (to be reallocated),5105620611,18/09/2019,Gouldings Resource Centre,Catering Purchases,309.33,3663 (BFS GROUP LTD)
Revenue,Adult Services,Adult Social Care,Central Codes (to be reallocated),5105621149,25/09/2019,Gouldings Resource Centre,Catering Purchases,214.03,3663 (BFS GROUP LTD)
Revenue,Adult Services,Adult Social Care,Central Codes (to be reallocated),5105621149,25/09/2019,Gouldings Resource Centre,Catering Purchases,9.53,3663 (BFS GROUP LTD)
Revenue,Adult Services,Adult Social Care,Central Codes (to be reallocated),5105620611,18/09/2019,Gouldings Resource Centre,Catering Purchases,6.72,3663 (BFS GROUP LTD)
Revenue,Adult Services,Adult Social Care,Central Codes (to be reallocated),5105621718,30/09/2019,Gouldings Resource Centre,Catering Purchases,9.53,3663 (BFS GROUP LTD)
Revenue,Adult Services,Adult Social Care,Central Codes (to be reallocated),5105620030,11/09/2019,Gouldings Resource Centre,Catering Purchases,9.53,3663 (BFS GROUP LTD)
Revenue,Adult Services,Adult Social Care,Central Codes (to be reallocated),5105619167,04/09/2019,Gouldings Resource Centre,Catering Purchases,26.91,3663 (BFS GROUP LTD)
Revenue,Neighbourhoods,Cultural and Related Services,Library Service,5105620472,18/09/2019,Public Libraries Central,Stationery,105.56,BIBLIOTHECA LTD
Revenue,Neighbourhoods,Cultural and Related Services,Library Service,5105620620,18/09/2019,Public Libraries Central,Stationery,107.94,BIBLIOTHECA LTD
Revenue,Adult Services,Adult Social Care,Learning Disab Supp (to be reallocated),5105619093,04/09/2019,31 Carter Avenue,"Refuse Collection, Disposal and Recycling Costs",56.00,BIFFA WASTE SERVICES LTD
Revenue,Adult Services,Adult Social Care,Learning Disab Supp (to be reallocated),5105619093,04/09/2019,40 Venner Avenue,"Refuse Collection, Disposal and Recycling Costs",73.88,BIFFA WASTE SERVICES LTD
Revenue,Adult Services,Adult Social Care,Learning Disab Supp (to be reallocated),5105619093,04/09/2019,Plean Dene,"Refuse Collection, Disposal and Recycling Costs",169.28,BIFFA WASTE SERVICES LTD
Revenue,Adult Services,Adult Social Care,Learning Disab Supp (to be reallocated),5105619093,04/09/2019,Saxonbury,"Refuse Collection, Disposal and Recycling Costs",83.60,BIFFA WASTE SERVICES LTD
Revenue,Adult Services,Adult Social Care,Learning Disab Supp (to be reallocated),5105619093,04/09/2019,Seagulls,"Refuse Collection, Disposal and Recycling Costs",73.88,BIFFA WASTE SERVICES LTD
Revenue,Regeneration,Central Services,Support Services,5105619093,04/09/2019,"Westridge, Ryde","Refuse Collection, Disposal and Recycling Costs",74.70,BIFFA WASTE SERVICES LTD
Revenue,Neighbourhoods,Cultural and Related Services,Culture and Heritage,5105619093,04/09/2019,Cothey Bottom Store RYDE,"Refuse Collection, Disposal and Recycling Costs",37.35,BIFFA WASTE SERVICES LTD
Revenue,Neighbourhoods,Cultural and Related Services,Recreation and Sport,5105619093,04/09/2019,Westridge Squash Courts,"Refuse Collection, Disposal and Recycling Costs",37.35,BIFFA WASTE SERVICES LTD
Revenue,Childrens Services,Children's & Education Services,Other Education and Community Budget,5105619093,04/09/2019,Learning & Development Running Costs,"Refuse Collection, Disposal and Recycling Costs",19.45,BIFFA WASTE SERVICES LTD
Revenue,Neighbourhoods,Cultural and Related Services,Library Service,5105619093,04/09/2019,Public Libraries Central,"Refuse Collection, Disposal and Recycling Costs",139.33,BIFFA WASTE SERVICES LTD
Revenue,Regeneration,Planning services,Management & Support Services,5105619093,04/09/2019,Planning Management,"Refuse Collection, Disposal and Recycling Costs",82.40,BIFFA WASTE SERVICES LTD
Revenue,Childrens Services,Children's & Education Services,Management & Support Services,5105619093,04/09/2019,Specialist Service Business Admin,"Refuse Collection, Disposal and Recycling Costs",120.28,BIFFA WASTE SERVICES LTD
Revenue,Adult Services,Adult Social Care,Central Codes (to be reallocated),5105619094,04/09/2019,Gouldings Resource Centre,"Refuse Collection, Disposal and Recycling Costs",306.24,BIFFA WASTE SERVICES LTD
Revenue,Adult Services,Adult Social Care,Central Codes (to be reallocated),5105619158,04/09/2019,Gouldings Resource Centre,"Refuse Collection, Disposal and Recycling Costs",101.76,BIFFA WASTE SERVICES LTD
Revenue,Neighbourhoods,Environmental & Regulatory Services,"Cemetery, Cremation & Mortuary Services",5105619093,04/09/2019,Crematorium,"Refuse Collection, Disposal and Recycling Costs",173.76,BIFFA WASTE SERVICES LTD
Revenue,Neighbourhoods,Cultural and Related Services,Culture and Heritage,5105619093,04/09/2019,Dinosaur Isle Museum (Sandown Geology),"Refuse Collection, Disposal and Recycling Costs",136.19,BIFFA WASTE SERVICES LTD
Revenue,Neighbourhoods,Cultural and Related Services,Open Spaces,5105619093,04/09/2019,Fort Victoria,"Refuse Collection, Disposal and Recycling Costs",120.28,BIFFA WASTE SERVICES LTD
Revenue,Fire & Rescue,Fire & Rescue Services,Fire fighting and Rescue Operations,5105619093,04/09/2019,Fire Operations,"Refuse Collection, Disposal and Recycling Costs",328.24,BIFFA WASTE SERVICES LTD
Revenue,Neighbourhoods,Highways and Transport Services,"Airports, Harbours & Toll Facilities",5105619093,04/09/2019,Ferry Management,"Refuse Collection, Disposal and Recycling Costs",73.88,BIFFA WASTE SERVICES LTD
Revenue,Childrens Services,Children's & Education Services,Children Looked After,5105619093,04/09/2019,Beaulieu House,"Refuse Collection, Disposal and Recycling Costs",181.48,BIFFA WASTE SERVICES LTD
Revenue,Regeneration,Central Services,Support Services,5105619093,04/09/2019,"Jubilee Stores, Newport","Refuse Collection, Disposal and Recycling Costs",98.40,BIFFA WASTE SERVICES LTD
Revenue,Neighbourhoods,Cultural and Related Services,Recreation and Sport,5105619093,04/09/2019,Medina Leisure Centre,"Refuse Collection, Disposal and Recycling Costs",285.36,BIFFA WASTE SERVICES LTD
Revenue,Adult Services,Adult Social Care,Central Codes (to be reallocated),5105619112,13/09/2019,Adelaide Resource Centre,"Refuse Collection, Disposal and Recycling Costs","1,151.02",BIFFA WASTE SERVICES LTD
Revenue,Adult Services,Adult Social Care,Central Codes (to be reallocated),5105619117,13/09/2019,Adelaide Resource Centre,"Refuse Collection, Disposal and Recycling Costs",236.99,BIFFA WASTE SERVICES LTD
Revenue,Neighbourhoods,Highways and Transport Services,"Airports, Harbours & Toll Facilities",5105619093,04/09/2019,Ryde Harbour,"Refuse Collection, Disposal and Recycling Costs",106.46,BIFFA WASTE SERVICES LTD
Revenue,Regeneration,Central Services,Support Services,5105619093,04/09/2019,"Civic Centre,Sandown","Refuse Collection, Disposal and Recycling Costs",143.32,BIFFA WASTE SERVICES LTD
Revenue,Regeneration,Central Services,Support Services,5105619093,04/09/2019,"Enterprise House, Newport","Refuse Collection, Disposal and Recycling Costs",345.52,BIFFA WASTE SERVICES LTD
Revenue,Childrens Services,Children's & Education Services,Other Education and Community Budget,5105619093,04/09/2019,SEND Independent Advice & Support,"Refuse Collection, Disposal and Recycling Costs",38.92,BIFFA WASTE SERVICES LTD
Revenue,Neighbourhoods,Highways and Transport Services,"Airports, Harbours & Toll Facilities",5105619093,04/09/2019,Newport Harbour Account,"Refuse Collection, Disposal and Recycling Costs",164.80,BIFFA WASTE SERVICES LTD
Revenue,Neighbourhoods,Highways and Transport Services,"Airports, Harbours & Toll Facilities",5105619093,04/09/2019,Newport Harbour Account,"Refuse Collection, Disposal and Recycling Costs",214.00,BIFFA WASTE SERVICES LTD
Revenue,Neighbourhoods,Highways and Transport Services,"Airports, Harbours & Toll Facilities",5105619093,04/09/2019,Newport Harbour Account,"Refuse Collection, Disposal and Recycling Costs",104.28,BIFFA WASTE SERVICES LTD
Revenue,Adult Services,Adult Social Care,Assistive Equipment & Technology,5105619093,04/09/2019,Community Equipment Store,"Refuse Collection, Disposal and Recycling Costs",182.17,BIFFA WASTE SERVICES LTD
Revenue,Resources,Central Services,Support Services,5105619093,04/09/2019,60 Dodnor Lane Store,"Refuse Collection, Disposal and Recycling Costs",2.80,BIFFA WASTE SERVICES LTD
Revenue,Adult Services,Adult Social Care,Mental Health Support (to be reallocated),5105619093,04/09/2019,Mental Health Day Services,"Refuse Collection, Disposal and Recycling Costs",82.40,BIFFA WASTE SERVICES LTD
Revenue,Adult Services,Adult Social Care,Social Care Activities,5105619093,04/09/2019,Mental Health Team,Professional Services,4.48,BIFFA WASTE SERVICES LTD
Revenue,Regeneration,Central Services,Support Services,5105619093,04/09/2019,"County Hall,Newport","Refuse Collection, Disposal and Recycling Costs",492.63,BIFFA WASTE SERVICES LTD
Revenue,Childrens Services,Children's & Education Services,Children Looked After,5105621026,25/09/2019,Leaving Care Costs,Support Children,320.00,REDACTED PERSONAL DATA
Revenue,Childrens Services,Children's & Education Services,Other Education and Community Budget,5105619989,13/09/2019,Adult Community Learning,Printing Costs,349.00,BILTMORE PRINTERS
Revenue,Resources,Central Services,Support Services,5105619389,04/09/2019,Litigation Costs,Legal Fees - Other Parties,715.38,BISCOES SOLICITORS
Revenue,Resources,Central Services,Support Services,5105619389,04/09/2019,Litigation Costs,Legal Fees - Other Parties,10.80,BISCOES SOLICITORS
Revenue,Resources,Central Services,Support Services,5105619389,04/09/2019,Litigation Costs,Legal Fees - Other Parties,6.50,BISCOES SOLICITORS
Revenue,Neighbourhoods,Cultural and Related Services,Recreation and Sport,5105621031,25/09/2019,Play Development,Operational Equipment,25.00,BISHOP SPORTS & LEISURE LTD
Revenue,Neighbourhoods,Cultural and Related Services,Recreation and Sport,5105621031,25/09/2019,Play Development,Operational Equipment,50.00,BISHOP SPORTS & LEISURE LTD
Revenue,Neighbourhoods,Cultural and Related Services,Recreation and Sport,5105621031,25/09/2019,Play Development,Operational Equipment,76.00,BISHOP SPORTS & LEISURE LTD
Revenue,Neighbourhoods,Cultural and Related Services,Recreation and Sport,5105621031,25/09/2019,Play Development,Operational Equipment,8.95,BISHOP SPORTS & LEISURE LTD
Revenue,Resources,Central Services,Support Services,5105620997,25/09/2019,Staff Benefits,Payment to Private Contractors,243.00,BLACKBERRY LANE PRE-SCHOOL
Revenue,Neighbourhoods,Cultural and Related Services,Recreation and Sport,5105620592,20/09/2019,IOW Festival Costs,Payment to Private Contractors,"3,988.60",BLUELINE SECURITY MANAGEMENT LTD
Revenue,Childrens Services,Children's & Education Services,Family Support Services,5105619953,11/09/2019,Short Breaks,Charges from Independent Providers,349.17,BODSTER EQUINE ASSISTED LEARN CIC
Revenue,Fire & Rescue,Fire & Rescue Services,Fire fighting and Rescue Operations,5105621029,25/09/2019,Fire Fighters Salaries,Medical Fees and Staff Welfare,25.00,BOLLE SAFETY
Revenue,Adult Services,Adult Social Care,Learning Disab Supp (to be reallocated),5105619125,13/09/2019,31 Carter Avenue,Catering Purchases,6.29,BOOKER CASH & CARRY LTD
Revenue,Adult Services,Adult Social Care,Learning Disab Supp (to be reallocated),5105619930,13/09/2019,31 Carter Avenue,Catering Purchases,13.98,BOOKER CASH & CARRY LTD
Revenue,Adult Services,Adult Social Care,Learning Disab Supp (to be reallocated),5105620359,18/09/2019,31 Carter Avenue,Catering Purchases,10.09,BOOKER CASH & CARRY LTD
Revenue,Adult Services,Adult Social Care,Learning Disab Supp (to be reallocated),5105620359,18/09/2019,31 Carter Avenue,Catering Purchases,1.78,BOOKER CASH & CARRY LTD
Revenue,Adult Services,Adult Social Care,Learning Disab Supp (to be reallocated),5105619125,13/09/2019,31 Carter Avenue,Catering Purchases,34.95,BOOKER CASH & CARRY LTD
Revenue,Adult Services,Adult Social Care,Learning Disab Supp (to be reallocated),5105619123,13/09/2019,40 Venner Avenue,Catering Purchases,5.99,BOOKER CASH & CARRY LTD
Revenue,Adult Services,Adult Social Care,Learning Disab Supp (to be reallocated),5105618741,06/09/2019,Plean Dene,Catering Purchases,186.52,BOOKER CASH & CARRY LTD
Revenue,Adult Services,Adult Social Care,Learning Disab Supp (to be reallocated),5105619124,18/09/2019,Plean Dene,Catering Purchases,17.28,BOOKER CASH & CARRY LTD
Revenue,Adult Services,Adult Social Care,Learning Disab Supp (to be reallocated),5105619017,18/09/2019,Plean Dene,Catering Purchases,5.19,BOOKER CASH & CARRY LTD
Revenue,Adult Services,Adult Social Care,Learning Disab Supp (to be reallocated),5105621516,27/09/2019,Plean Dene,Catering Purchases,16.28,BOOKER CASH & CARRY LTD
Revenue,Adult Services,Adult Social Care,Learning Disab Supp (to be reallocated),5105620663,18/09/2019,Plean Dene,Catering Purchases,43.33,BOOKER CASH & CARRY LTD
Revenue,Adult Services,Adult Social Care,Learning Disab Supp (to be reallocated),5105621161,27/09/2019,Plean Dene,Catering Purchases,133.19,BOOKER CASH & CARRY LTD
Revenue,Adult Services,Adult Social Care,Learning Disab Supp (to be reallocated),5105621165,27/09/2019,Plean Dene,Catering Purchases,14.71,BOOKER CASH & CARRY LTD
Revenue,Adult Services,Adult Social Care,Learning Disab Supp (to be reallocated),5105620081,18/09/2019,Plean Dene,Catering Purchases,158.37,BOOKER CASH & CARRY LTD
Revenue,Adult Services,Adult Social Care,Learning Disab Supp (to be reallocated),5105620356,18/09/2019,Plean Dene,Catering Purchases,5.87,BOOKER CASH & CARRY LTD
Revenue,Adult Services,Adult Social Care,Learning Disab Supp (to be reallocated),5105620361,18/09/2019,Plean Dene,Catering Purchases,16.48,BOOKER CASH & CARRY LTD
Revenue,Adult Services,Adult Social Care,Learning Disab Supp (to be reallocated),5105620382,18/09/2019,Plean Dene,Catering Purchases,4.99,BOOKER CASH & CARRY LTD
Revenue,Adult Services,Adult Social Care,Learning Disab Supp (to be reallocated),5105620465,13/09/2019,Plean Dene,Catering Purchases,165.57,BOOKER CASH & CARRY LTD
Revenue,Adult Services,Adult Social Care,Learning Disab Supp (to be reallocated),5105619357,18/09/2019,Plean Dene,Catering Purchases,188.76,BOOKER CASH & CARRY LTD
Revenue,Adult Services,Adult Social Care,Learning Disab Supp (to be reallocated),5105619990,18/09/2019,Plean Dene,Catering Purchases,7.57,BOOKER CASH & CARRY LTD
Revenue,Adult Services,Adult Social Care,Learning Disab Supp (to be reallocated),5105620005,18/09/2019,Plean Dene,Catering Purchases,10.73,BOOKER CASH & CARRY LTD
Revenue,Adult Services,Adult Social Care,Learning Disab Supp (to be reallocated),5105620005,18/09/2019,Plean Dene,Catering Purchases,5.39,BOOKER CASH & CARRY LTD
Revenue,Adult Services,Adult Social Care,Learning Disab Supp (to be reallocated),5105619357,18/09/2019,Plean Dene,Catering Purchases,10.56,BOOKER CASH & CARRY LTD
Revenue,Adult Services,Adult Social Care,Learning Disab Supp (to be reallocated),5105620465,13/09/2019,Plean Dene,Catering Purchases,32.93,BOOKER CASH & CARRY LTD
Revenue,Adult Services,Adult Social Care,Learning Disab Supp (to be reallocated),5105620081,18/09/2019,Plean Dene,Catering Purchases,11.97,BOOKER CASH & CARRY LTD
Revenue,Adult Services,Adult Social Care,Learning Disab Supp (to be reallocated),5105621161,27/09/2019,Plean Dene,Catering Purchases,16.36,BOOKER CASH & CARRY LTD
Revenue,Adult Services,Adult Social Care,Learning Disab Supp (to be reallocated),5105620663,18/09/2019,Plean Dene,Catering Purchases,2.99,BOOKER CASH & CARRY LTD
Revenue,Adult Services,Adult Social Care,Learning Disab Supp (to be reallocated),5105619017,18/09/2019,Plean Dene,Catering Purchases,5.39,BOOKER CASH & CARRY LTD
Revenue,Adult Services,Adult Social Care,Learning Disab Supp (to be reallocated),5105618741,06/09/2019,Plean Dene,Catering Purchases,18.53,BOOKER CASH & CARRY LTD
Revenue,Public Health,Public Health,Smoking & Tobacco,5105620539,18/09/2019,Stop Smoking Services & Interventions NP,Payment to Private Contractors,2.00,BOOTS THE CHEMIST LTD (Ryde)
Revenue,Public Health,Public Health,Smoking & Tobacco,5105620539,18/09/2019,Stop Smoking Services & Interventions NP,Payment to Private Contractors,12.17,BOOTS THE CHEMIST LTD (Ryde)
Revenue,Public Health,Public Health,Smoking & Tobacco,5105620539,18/09/2019,Stop Smoking Services & Interventions NP,Payment to Private Contractors,10.00,BOOTS THE CHEMIST LTD (Ryde)
Revenue,Public Health,Public Health,Smoking & Tobacco,5105620539,18/09/2019,Stop Smoking Services & Interventions NP,Payment to Private Contractors,136.50,BOOTS THE CHEMIST LTD (Ryde)
Revenue,Public Health,Public Health,Smoking & Tobacco,5105620539,18/09/2019,Stop Smoking Services & Interventions NP,Payment to Private Contractors,18.00,BOOTS THE CHEMIST LTD (Ryde)
Revenue,Public Health,Public Health,Sexual Health,5105619358,27/09/2019,Contraception P,Payment to Private Contractors,86.00,BOOTS UK LTD (SANDOWN LARGE STORE)
Revenue,Public Health,Public Health,Sexual Health,5105619358,27/09/2019,Contraception P,Payment to Private Contractors,5.20,BOOTS UK LTD (SANDOWN LARGE STORE)
Revenue,Public Health,Public Health,Sexual Health,5105619358,27/09/2019,Contraception P,Payment to Private Contractors,42.15,BOOTS UK LTD (SANDOWN LARGE STORE)
Revenue,Public Health,Public Health,Substance Misuse,5105619358,27/09/2019,Drug Misuse Adult- Treatment NP,Payment to Private Contractors,87.50,BOOTS UK LTD (SANDOWN LARGE STORE)
Revenue,Public Health,Public Health,Substance Misuse,5105619358,27/09/2019,Drug Misuse Adult- Treatment NP,Payment to Private Contractors,234.00,BOOTS UK LTD (SANDOWN LARGE STORE)
Revenue,Public Health,Public Health,Substance Misuse,5105619358,27/09/2019,Drug Misuse Adult- Treatment NP,Payment to Private Contractors,30.00,BOOTS UK LTD (SANDOWN LARGE STORE)
Revenue,Public Health,Public Health,Sexual Health,5105619358,27/09/2019,Contraception P,Payment to Private Contractors,3.55,BOOTS UK LTD (SANDOWN LARGE STORE)
Revenue,Public Health,Public Health,Smoking & Tobacco,5105620518,27/09/2019,Stop Smoking Services & Interventions NP,Payment to Private Contractors,13.50,BOOTS UK LTD (107 HIGH ST SANDOWN)
Revenue,Public Health,Public Health,Smoking & Tobacco,5105620518,27/09/2019,Stop Smoking Services & Interventions NP,Payment to Private Contractors,55.58,BOOTS UK LTD (107 HIGH ST SANDOWN)
Revenue,Public Health,Public Health,Sexual Health,5105619351,04/09/2019,Contraception P,Payment to Private Contractors,172.00,BOOTS UK LTD (COWES)
Revenue,Public Health,Public Health,Sexual Health,5105619351,04/09/2019,Contraception P,Payment to Private Contractors,112.40,BOOTS UK LTD (COWES)
Revenue,Public Health,Public Health,Sexual Health,5105619351,04/09/2019,Contraception P,Payment to Private Contractors,3.55,BOOTS UK LTD (COWES)
Revenue,Public Health,Public Health,Substance Misuse,5105619351,04/09/2019,Drug Misuse Adult- Treatment NP,Payment to Private Contractors,272.00,BOOTS UK LTD (COWES)
Revenue,Public Health,Public Health,Substance Misuse,5105619351,04/09/2019,Drug Misuse Adult- Treatment NP,Payment to Private Contractors,30.00,BOOTS UK LTD (COWES)
Revenue,Public Health,Public Health,Sexual Health,5105619353,04/09/2019,Contraception P,Payment to Private Contractors,64.50,BOOTS UK LTD (FRESHWATER)
Revenue,Public Health,Public Health,Sexual Health,5105619353,04/09/2019,Contraception P,Payment to Private Contractors,4.90,BOOTS UK LTD (FRESHWATER)
Revenue,Public Health,Public Health,Sexual Health,5105619353,04/09/2019,Contraception P,Payment to Private Contractors,28.40,BOOTS UK LTD (FRESHWATER)
Revenue,Public Health,Public Health,Substance Misuse,5105619353,04/09/2019,Drug Misuse Adult- Treatment NP,Payment to Private Contractors,20.00,BOOTS UK LTD (FRESHWATER)
Revenue,Public Health,Public Health,Smoking & Tobacco,5105620515,18/09/2019,Stop Smoking Services & Interventions NP,Payment to Private Contractors,20.00,BOOTS UK LTD (FRESHWATER)
Revenue,Public Health,Public Health,Smoking & Tobacco,5105620515,18/09/2019,Stop Smoking Services & Interventions NP,Payment to Private Contractors,195.98,BOOTS UK LTD (FRESHWATER)
Revenue,Public Health,Public Health,Substance Misuse,5105619353,04/09/2019,Drug Misuse Adult- Treatment NP,Payment to Private Contractors,30.00,BOOTS UK LTD (FRESHWATER)
Revenue,Public Health,Public Health,Sexual Health,5105618528,04/09/2019,Contraception P,Payment to Private Contractors,"1,655.50",BOOTS UK LTD (NEWPORT)
Revenue,Public Health,Public Health,Sexual Health,5105618528,04/09/2019,Contraception P,Payment to Private Contractors,150.20,BOOTS UK LTD (NEWPORT)
Revenue,Public Health,Public Health,Sexual Health,5105618528,04/09/2019,Contraception P,Payment to Private Contractors,758.70,BOOTS UK LTD (NEWPORT)
Revenue,Public Health,Public Health,Substance Misuse,5105618528,04/09/2019,Drug Misuse Adult- Treatment NP,Payment to Private Contractors,665.00,BOOTS UK LTD (NEWPORT)
Revenue,Public Health,Public Health,Substance Misuse,5105618528,04/09/2019,Drug Misuse Adult- Treatment NP,Payment to Private Contractors,374.00,BOOTS UK LTD (NEWPORT)
Revenue,Public Health,Public Health,Substance Misuse,5105618528,04/09/2019,Drug Misuse Adult- Treatment NP,Payment to Private Contractors,30.00,BOOTS UK LTD (NEWPORT)
Revenue,Public Health,Public Health,Smoking & Tobacco,5105620538,18/09/2019,Stop Smoking Services & Interventions NP,Payment to Private Contractors,8.00,BOOTS UK LTD (NEWPORT)
Revenue,Public Health,Public Health,Smoking & Tobacco,5105620538,18/09/2019,Stop Smoking Services & Interventions NP,Payment to Private Contractors,41.70,BOOTS UK LTD (NEWPORT)
Revenue,Public Health,Public Health,Smoking & Tobacco,5105620517,18/09/2019,Stop Smoking Services & Interventions NP,Payment to Private Contractors,16.00,BOOTS UK LTD (SHANKLIN)
Revenue,Public Health,Public Health,Smoking & Tobacco,5105620517,18/09/2019,Stop Smoking Services & Interventions NP,Payment to Private Contractors,165.93,BOOTS UK LTD (SHANKLIN)
Revenue,Public Health,Public Health,Sexual Health,5105619348,04/09/2019,Contraception P,Payment to Private Contractors,43.00,BOOTS UK LTD (TOWER HOUSE)
Revenue,Public Health,Public Health,Sexual Health,5105619348,04/09/2019,Contraception P,Payment to Private Contractors,10.45,BOOTS UK LTD (TOWER HOUSE)
Revenue,Public Health,Public Health,Sexual Health,5105619348,04/09/2019,Contraception P,Payment to Private Contractors,14.00,BOOTS UK LTD (TOWER HOUSE)
Revenue,Public Health,Public Health,Substance Misuse,5105619348,04/09/2019,Drug Misuse Adult- Treatment NP,Payment to Private Contractors,280.00,BOOTS UK LTD (TOWER HOUSE)
Revenue,Public Health,Public Health,Substance Misuse,5105619348,04/09/2019,Drug Misuse Adult- Treatment NP,Payment to Private Contractors,366.00,BOOTS UK LTD (TOWER HOUSE)
Revenue,Public Health,Public Health,Smoking & Tobacco,5105620513,18/09/2019,Stop Smoking Services & Interventions NP,Payment to Private Contractors,10.00,BOOTS UK LTD (TOWER HOUSE)
Revenue,Public Health,Public Health,Smoking & Tobacco,5105620513,18/09/2019,Stop Smoking Services & Interventions NP,Payment to Private Contractors,52.27,BOOTS UK LTD (TOWER HOUSE)
Revenue,Public Health,Public Health,Substance Misuse,5105619348,04/09/2019,Drug Misuse Adult- Treatment NP,Payment to Private Contractors,30.00,BOOTS UK LTD (TOWER HOUSE)
Revenue,Public Health,Public Health,Sexual Health,5105619355,04/09/2019,Contraception P,Payment to Private Contractors,150.50,BOOTS UK LTD (YLB BEMBRIDGE)
Revenue,Public Health,Public Health,Sexual Health,5105619355,04/09/2019,Contraception P,Payment to Private Contractors,4.45,BOOTS UK LTD (YLB BEMBRIDGE)
Revenue,Public Health,Public Health,Sexual Health,5105619355,04/09/2019,Contraception P,Payment to Private Contractors,71.00,BOOTS UK LTD (YLB BEMBRIDGE)
Revenue,Public Health,Public Health,Substance Misuse,5105619355,04/09/2019,Drug Misuse Adult- Treatment NP,Payment to Private Contractors,7.00,BOOTS UK LTD (YLB BEMBRIDGE)
Revenue,Public Health,Public Health,Substance Misuse,5105619355,04/09/2019,Drug Misuse Adult- Treatment NP,Payment to Private Contractors,164.00,BOOTS UK LTD (YLB BEMBRIDGE)
Revenue,Public Health,Public Health,Smoking & Tobacco,5105620514,18/09/2019,Stop Smoking Services & Interventions NP,Payment to Private Contractors,2.00,BOOTS UK LTD (YLB BEMBRIDGE)
Revenue,Public Health,Public Health,Smoking & Tobacco,5105620514,18/09/2019,Stop Smoking Services & Interventions NP,Payment to Private Contractors,39.43,BOOTS UK LTD (YLB BEMBRIDGE)
Revenue,Public Health,Public Health,Substance Misuse,5105619355,04/09/2019,Drug Misuse Adult- Treatment NP,Payment to Private Contractors,30.00,BOOTS UK LTD (YLB BEMBRIDGE)
Revenue,Public Health,Public Health,Sexual Health,5105619355,04/09/2019,Contraception P,Payment to Private Contractors,3.55,BOOTS UK LTD (YLB BEMBRIDGE)
Revenue,Childrens Services,Children's & Education Services,Safeguarding Children/Young Peoples Svs,5105619119,04/09/2019,Childrens Assess & Safeguarding Team,Professional Services,138.00,BOSTICO INTERNATIONAL
Revenue,Childrens Services,Children's & Education Services,Safeguarding Children/Young Peoples Svs,5105619993,11/09/2019,Commissioning (Children & Families),Payments to Other Local Authorities,281.36,BOURNEMOUTH BOROUGH COUNCIL
Revenue,Childrens Services,Children's & Education Services,Safeguarding Children/Young Peoples Svs,5105620379,18/09/2019,Commissioning (Children & Families),Payments to Other Local Authorities,"1,162.28",BOURNEMOUTH BOROUGH COUNCIL
Revenue,Childrens Services,Children's & Education Services,Safeguarding Children/Young Peoples Svs,5105621518,27/09/2019,Commissioning (Children & Families),Payments to Other Local Authorities,"2,417.00",BOURNEMOUTH BOROUGH COUNCIL
Revenue,Adult Services,Housing Services,Homelessness,5105620981,25/09/2019,Private Rented Sector Leasing Scheme,Accommodation Costs - Leaseholder Payments,746.81,BRAMBLE LETTINGS
Revenue,Adult Services,Housing Services,Homelessness,5105620981,25/09/2019,Private Rented Sector Leasing Scheme,Accommodation Costs - Leaseholder Payments,746.81,BRAMBLE LETTINGS
Revenue,Adult Services,Housing Services,Homelessness,5105620981,25/09/2019,Private Rented Sector Leasing Scheme,Accommodation Costs - Leaseholder Payments,746.81,BRAMBLE LETTINGS
Revenue,Adult Services,Housing Services,Homelessness,5105620981,25/09/2019,Private Rented Sector Leasing Scheme,Accommodation Costs - Leaseholder Payments,746.81,BRAMBLE LETTINGS
Revenue,Adult Services,Housing Services,Homelessness,5105620981,25/09/2019,Private Rented Sector Leasing Scheme,Accommodation Costs - Leaseholder Payments,746.81,BRAMBLE LETTINGS
Revenue,Adult Services,Housing Services,Homelessness,5105620981,25/09/2019,Private Rented Sector Leasing Scheme,Accommodation Costs - Leaseholder Payments,588.38,BRAMBLE LETTINGS
Revenue,Adult Services,Housing Services,Homelessness,5105620981,25/09/2019,Private Rented Sector Leasing Scheme,Accommodation Costs - Leaseholder Payments,588.38,BRAMBLE LETTINGS
Revenue,Adult Services,Housing Services,Homelessness,5105620981,25/09/2019,Private Rented Sector Leasing Scheme,Accommodation Costs - Leaseholder Payments,588.38,BRAMBLE LETTINGS
Revenue,Adult Services,Housing Services,Homelessness,5105620981,25/09/2019,Private Rented Sector Leasing Scheme,Accommodation Costs - Leaseholder Payments,588.38,BRAMBLE LETTINGS
Revenue,Adult Services,Housing Services,Homelessness,5105620981,25/09/2019,Private Rented Sector Leasing Scheme,Accommodation Costs - Leaseholder Payments,588.38,BRAMBLE LETTINGS
Revenue,Adult Services,Housing Services,Homelessness,5105620981,25/09/2019,Private Rented Sector Leasing Scheme,Accommodation Costs - Leaseholder Payments,746.81,BRAMBLE LETTINGS
Revenue,Adult Services,Housing Services,Homelessness,5105620981,25/09/2019,Private Rented Sector Leasing Scheme,Accommodation Costs - Leaseholder Payments,588.38,BRAMBLE LETTINGS
Revenue,Adult Services,Housing Services,Homelessness,5105620981,25/09/2019,Private Rented Sector Leasing Scheme,Accommodation Costs - Leaseholder Payments,746.81,BRAMBLE LETTINGS
Revenue,Adult Services,Housing Services,Homelessness,5105620981,25/09/2019,Private Rented Sector Leasing Scheme,Accommodation Costs - Leaseholder Payments,769.43,BRAMBLE LETTINGS
Revenue,Adult Services,Housing Services,Homelessness,5105620981,25/09/2019,Private Rented Sector Leasing Scheme,Accommodation Costs - Leaseholder Payments,746.81,BRAMBLE LETTINGS
Revenue,Adult Services,Housing Services,Homelessness,5105620981,25/09/2019,Private Rented Sector Leasing Scheme,Accommodation Costs - Leaseholder Payments,746.81,BRAMBLE LETTINGS
Revenue,Adult Services,Housing Services,Homelessness,5105620981,25/09/2019,Private Rented Sector Leasing Scheme,Accommodation Costs - Leaseholder Payments,746.81,BRAMBLE LETTINGS
Revenue,Adult Services,Housing Services,Homelessness,5105620981,25/09/2019,Private Rented Sector Leasing Scheme,Accommodation Costs - Leaseholder Payments,746.81,BRAMBLE LETTINGS
Revenue,Adult Services,Housing Services,Homelessness,5105620981,25/09/2019,Private Rented Sector Leasing Scheme,Accommodation Costs - Leaseholder Payments,746.81,BRAMBLE LETTINGS
Revenue,Adult Services,Housing Services,Homelessness,5105620981,25/09/2019,Private Rented Sector Leasing Scheme,Accommodation Costs - Leaseholder Payments,746.81,BRAMBLE LETTINGS
Revenue,Adult Services,Housing Services,Homelessness,5105620981,25/09/2019,Private Rented Sector Leasing Scheme,Accommodation Costs - Leaseholder Payments,746.81,BRAMBLE LETTINGS
Revenue,Adult Services,Housing Services,Homelessness,5105620981,25/09/2019,Private Rented Sector Leasing Scheme,Accommodation Costs - Leaseholder Payments,746.81,BRAMBLE LETTINGS
Revenue,Adult Services,Housing Services,Homelessness,5105620981,25/09/2019,Private Rented Sector Leasing Scheme,Accommodation Costs - Leaseholder Payments,281.66,BRAMBLE LETTINGS
Revenue,Adult Services,Housing Services,Homelessness,5105620981,25/09/2019,Private Rented Sector Leasing Scheme,Accommodation Costs - Leaseholder Payments,216.66,BRAMBLE LETTINGS
Revenue,Neighbourhoods,Environmental & Regulatory Services,(Street) Cleansing (not highways),5105621084,25/09/2019,Beach Cleaning,Beach Cleansing Contractors,"15,146.00",BRIGHSTONE LANDSCAPING LTD
Revenue,Neighbourhoods,Environmental & Regulatory Services,(Street) Cleansing (not highways),5105620423,13/09/2019,Beach Cleaning,Payment to Private Contractors,"1,533.00",BRIGHSTONE LANDSCAPING LTD
Revenue,Neighbourhoods,Environmental & Regulatory Services,(Street) Cleansing (not highways),5105620422,13/09/2019,Beach Cleaning,Payment to Private Contractors,280.00,BRIGHSTONE LANDSCAPING LTD
Capital,Place,Capital,Capital,5105617293,04/09/2019,Parks and Gardens Capital,Payment to Contractors - Capital,"2,375.00",BRIGHSTONE LANDSCAPING LTD
Capital,Place,Capital,Capital,5105617297,27/09/2019,Parks and Gardens Capital,Payment to Contractors - Capital,"5,075.00",BRIGHSTONE LANDSCAPING LTD
Revenue,Neighbourhoods,Environmental & Regulatory Services,Coast Protection,5105620426,13/09/2019,Coast Protection,Payment to Private Contractors,250.00,BRIGHSTONE LANDSCAPING LTD
Revenue,Neighbourhoods,Environmental & Regulatory Services,(Street) Cleansing (not highways),5105619792,06/09/2019,Beach Cleaning,Payment to Private Contractors,920.00,BRIGHSTONE LANDSCAPING LTD
Revenue,Neighbourhoods,Cultural and Related Services,Recreation and Sport,5105620425,13/09/2019,IOW Festival Costs,Payment to Private Contractors,65.00,BRIGHSTONE LANDSCAPING LTD
Revenue,Neighbourhoods,Cultural and Related Services,Recreation and Sport,5105620425,13/09/2019,Slipways & Steps (Beaches),Payment to Private Contractors,45.00,BRIGHSTONE LANDSCAPING LTD
Revenue,Neighbourhoods,Cultural and Related Services,Recreation and Sport,5105620425,13/09/2019,Beach Safety & Inspection / Beach Awards,Payment to Private Contractors,45.00,BRIGHSTONE LANDSCAPING LTD
Revenue,Neighbourhoods,Environmental & Regulatory Services,(Street) Cleansing (not highways),5105620427,13/09/2019,Beach Cleaning,Payment to Private Contractors,80.00,BRIGHSTONE LANDSCAPING LTD
Revenue,Neighbourhoods,Environmental & Regulatory Services,(Street) Cleansing (not highways),5105620427,13/09/2019,Beach Cleaning,Payment to Private Contractors,150.00,BRIGHSTONE LANDSCAPING LTD
Revenue,Neighbourhoods,Environmental & Regulatory Services,(Street) Cleansing (not highways),5105620427,13/09/2019,Beach Cleaning,Payment to Private Contractors,60.00,BRIGHSTONE LANDSCAPING LTD
Revenue,Neighbourhoods,Cultural and Related Services,Recreation and Sport,5105620427,13/09/2019,Slipways & Steps (Beaches),Payment to Private Contractors,520.00,BRIGHSTONE LANDSCAPING LTD
Revenue,Neighbourhoods,Environmental & Regulatory Services,(Street) Cleansing (not highways),5105620427,13/09/2019,Beach Cleaning,Payment to Private Contractors,70.00,BRIGHSTONE LANDSCAPING LTD
Revenue,Neighbourhoods,Cultural and Related Services,Open Spaces,5105620427,13/09/2019,Public Shelters - Ryde,Payment to Private Contractors,50.00,BRIGHSTONE LANDSCAPING LTD
Revenue,Neighbourhoods,Cultural and Related Services,Recreation and Sport,5105620427,13/09/2019,Beach Safety & Inspection / Beach Awards,Payment to Private Contractors,110.00,BRIGHSTONE LANDSCAPING LTD
Revenue,Neighbourhoods,Environmental & Regulatory Services,(Street) Cleansing (not highways),5105620427,13/09/2019,Beach Cleaning,Payment to Private Contractors,50.00,BRIGHSTONE LANDSCAPING LTD
Revenue,Neighbourhoods,Environmental & Regulatory Services,(Street) Cleansing (not highways),5105620427,13/09/2019,Beach Cleaning,Payment to Private Contractors,60.00,BRIGHSTONE LANDSCAPING LTD
Revenue,Neighbourhoods,Environmental & Regulatory Services,(Street) Cleansing (not highways),5105620427,13/09/2019,Beach Cleaning,Payment to Private Contractors,20.00,BRIGHSTONE LANDSCAPING LTD
Revenue,Neighbourhoods,Cultural and Related Services,Recreation and Sport,5105620427,13/09/2019,Slipways & Steps (Beaches),Payment to Private Contractors,160.00,BRIGHSTONE LANDSCAPING LTD
Revenue,Neighbourhoods,Environmental & Regulatory Services,(Street) Cleansing (not highways),5105620427,13/09/2019,Beach Cleaning,Payment to Private Contractors,50.00,BRIGHSTONE LANDSCAPING LTD
Revenue,Neighbourhoods,Environmental & Regulatory Services,(Street) Cleansing (not highways),5105620427,13/09/2019,Beach Cleaning,Payment to Private Contractors,50.00,BRIGHSTONE LANDSCAPING LTD
Revenue,Neighbourhoods,Environmental & Regulatory Services,(Street) Cleansing (not highways),5105620427,13/09/2019,Beach Cleaning,Payment to Private Contractors,45.00,BRIGHSTONE LANDSCAPING LTD
Revenue,Neighbourhoods,Environmental & Regulatory Services,(Street) Cleansing (not highways),5105620427,13/09/2019,Beach Cleaning,Payment to Private Contractors,60.00,BRIGHSTONE LANDSCAPING LTD
Revenue,Neighbourhoods,Cultural and Related Services,Recreation and Sport,5105620424,13/09/2019,Beach Safety & Inspection / Beach Awards,Payment to Private Contractors,740.00,BRIGHSTONE LANDSCAPING LTD
Revenue,Neighbourhoods,Cultural and Related Services,Recreation and Sport,5105620424,13/09/2019,Beach Safety & Inspection / Beach Awards,Payment to Private Contractors,55.00,BRIGHSTONE LANDSCAPING LTD
Revenue,Neighbourhoods,Cultural and Related Services,Recreation and Sport,5105620424,13/09/2019,Cowes/Gurnard Concessions,Payment to Private Contractors,65.00,BRIGHSTONE LANDSCAPING LTD
Revenue,Neighbourhoods,Cultural and Related Services,Open Spaces,5105620424,13/09/2019,Other Grounds Maintenance,Payment to Private Contractors,50.00,BRIGHSTONE LANDSCAPING LTD
Revenue,Neighbourhoods,Environmental & Regulatory Services,(Street) Cleansing (not highways),5105620424,13/09/2019,Beach Cleaning,Payment to Private Contractors,50.00,BRIGHSTONE LANDSCAPING LTD
Capital,Place,Capital,Capital,5105619050,04/09/2019,Fire Capital Projects,"Plant, Equipment & Furniture - Capital",211.64,BRISTOL UNIFORMS LTD
Revenue,Neighbourhoods,Cultural and Related Services,Culture and Heritage,5105621097,25/09/2019,Dinosaur Isle Museum (Sandown Geology),Stock Purchases,300.62,BRITISH FOSSILS/GIFTSTONES LIMITED
Revenue,Adult Services,Adult Social Care,Learning Disability Suppt-adults (18-64),5105619189,04/09/2019,Learning Disability Residential 18-64,Charges from Independent Providers,"6,840.12",BROADHAM CARE LTD
Revenue,Adult Services,Adult Social Care,Learning Disability Suppt-adults (18-64),5105621587,27/09/2019,Learning Disability Residential 18-64,Charges from Independent Providers,"6,840.12",BROADHAM CARE LTD
Revenue,Adult Services,Adult Social Care,Social Support - Social Isolation/Other,5105619423,04/09/2019,Social Isolation/Other Other ST Support,Charges from Independent Providers,"1,787.14",BROADREACH HOUSE
Revenue,Adult Services,Adult Social Care,Social Support - Social Isolation/Other,5105619424,04/09/2019,Social Isolation/Other Other ST Support,Charges from Independent Providers,"2,978.57",BROADREACH HOUSE
Revenue,Adult Services,Adult Social Care,Social Support - Social Isolation/Other,5105619425,04/09/2019,Social Isolation/Other Other ST Support,Charges from Independent Providers,397.14,BROADREACH HOUSE
Revenue,Adult Services,Adult Social Care,Social Support - Social Isolation/Other,5105619426,04/09/2019,Social Isolation/Other Other ST Support,Charges from Independent Providers,"2,580.00",BROADREACH HOUSE
Revenue,Public Health,Public Health,NHS Health Check Programme,5105619748,06/09/2019,NHS Health Check Programme P,Payment to Private Contractors,"2,179.00",BROOKSIDE HEALTH CENTRE
Revenue,Public Health,Public Health,Sexual Health,5105619748,06/09/2019,Long Acting Reversible Contraception,Payment to Private Contractors,"1,695.00",BROOKSIDE HEALTH CENTRE
Revenue,Adult Services,Adult Social Care,Physical Support - older people (65+),5105621632,27/09/2019,Physical Support Residential 65+,Charges from Independent Providers,"2,414.16",BUCKLAND CARE LTD
Revenue,Adult Services,Adult Social Care,Physical Support - older people (65+),5105619272,04/09/2019,Physical Support Residential 65+,Charges from Independent Providers,"2,414.16",BUCKLAND CARE LTD
Revenue,Adult Services,Adult Social Care,Physical Support - older people (65+),5105619272,04/09/2019,Physical Support Residential 65+,Charges from Independent Providers,"2,414.16",BUCKLAND CARE LTD
Revenue,Adult Services,Adult Social Care,Physical Support - older people (65+),5105621632,27/09/2019,Physical Support Residential 65+,Charges from Independent Providers,"2,414.16",BUCKLAND CARE LTD
Revenue,Adult Services,Adult Social Care,Physical Support - older people (65+),5105619272,04/09/2019,Physical Support Residential 65+,Charges from Independent Providers,"2,053.52",BUCKLAND CARE LTD
Revenue,Adult Services,Adult Social Care,Support - Memory /Cognition-older people (65+),5105619272,04/09/2019,Memory & Cognition Residential 65+,Charges from Independent Providers,"2,414.16",BUCKLAND CARE LTD
Revenue,Adult Services,Adult Social Care,Support - Memory /Cognition-older people (65+),5105621632,27/09/2019,Memory & Cognition Residential 65+,Charges from Independent Providers,"2,414.16",BUCKLAND CARE LTD
Revenue,Adult Services,Adult Social Care,Sensory Support - older people (65+),5105619272,04/09/2019,Sensory Support Residential 65+,Charges from Independent Providers,"2,414.16",BUCKLAND CARE LTD
Revenue,Adult Services,Adult Social Care,Sensory Support - older people (65+),5105621632,27/09/2019,Sensory Support Residential 65+,Charges from Independent Providers,"2,414.16",BUCKLAND CARE LTD
Revenue,Adult Services,Adult Social Care,Physical Support - adults (18-64),5105619272,04/09/2019,Physical Support Residential 18-64,Charges from Independent Providers,"2,414.16",BUCKLAND CARE LTD
Revenue,Adult Services,Adult Social Care,Physical Support - adults (18-64),5105621632,27/09/2019,Physical Support Residential 18-64,Charges from Independent Providers,"2,414.16",BUCKLAND CARE LTD
Revenue,Adult Services,Adult Social Care,Support - Memory /Cognition-older people (65+),5105621632,27/09/2019,Memory & Cognition Residential 65+,Charges from Independent Providers,"2,053.52",BUCKLAND CARE LTD
Revenue,Adult Services,Adult Social Care,Support - Memory /Cognition-older people (65+),5105619272,04/09/2019,Memory & Cognition Residential 65+,Charges from Independent Providers,"2,053.52",BUCKLAND CARE LTD
Capital,Corporate Items,Balance Sheet,Balance Sheet,5105619272,04/09/2019,Balance Sheet,Order Settlement to Bal Sht GL,92.12,BUCKLAND CARE LTD
Capital,Corporate Items,Balance Sheet,Balance Sheet,5105621632,27/09/2019,Balance Sheet,Order Settlement to Bal Sht GL,92.12,BUCKLAND CARE LTD
Revenue,Adult Services,Adult Social Care,Physical Support - older people (65+),5105619272,04/09/2019,Physical Support Residential 65+,Charges from Independent Providers,"2,414.16",BUCKLAND CARE LTD
Revenue,Adult Services,Adult Social Care,Physical Support - older people (65+),5105621632,27/09/2019,Physical Support Residential 65+,Charges from Independent Providers,"2,414.16",BUCKLAND CARE LTD
Revenue,Adult Services,Adult Social Care,Support - Memory /Cognition-older people (65+),5105619272,04/09/2019,Memory & Cognition Residential 65+,Charges from Independent Providers,"2,414.16",BUCKLAND CARE LTD
Revenue,Adult Services,Adult Social Care,Support - Memory /Cognition-older people (65+),5105621632,27/09/2019,Memory & Cognition Residential 65+,Charges from Independent Providers,"2,414.16",BUCKLAND CARE LTD
Revenue,Adult Services,Adult Social Care,Physical Support - older people (65+),5105619272,04/09/2019,Physical Support Residential 65+,Charges from Independent Providers,"2,414.16",BUCKLAND CARE LTD
Revenue,Adult Services,Adult Social Care,Physical Support - older people (65+),5105621632,27/09/2019,Physical Support Residential 65+,Charges from Independent Providers,"2,414.16",BUCKLAND CARE LTD
Revenue,Adult Services,Adult Social Care,Physical Support - older people (65+),5105619272,04/09/2019,Physical Support Residential 65+,Charges from Independent Providers,"2,414.16",BUCKLAND CARE LTD
Revenue,Adult Services,Adult Social Care,Physical Support - older people (65+),5105621632,27/09/2019,Physical Support Residential 65+,Charges from Independent Providers,"2,414.16",BUCKLAND CARE LTD
Revenue,Adult Services,Adult Social Care,Physical Support - older people (65+),5105619272,04/09/2019,Physical Support Residential 65+,Charges from Independent Providers,"2,414.16",BUCKLAND CARE LTD
Revenue,Adult Services,Adult Social Care,Physical Support - older people (65+),5105621632,27/09/2019,Physical Support Residential 65+,Charges from Independent Providers,"2,414.16",BUCKLAND CARE LTD
Revenue,Adult Services,Adult Social Care,Physical Support - older people (65+),5105619272,04/09/2019,Physical Support Residential 65+,Charges from Independent Providers,"2,053.52",BUCKLAND CARE LTD
Revenue,Adult Services,Adult Social Care,Physical Support - older people (65+),5105621632,27/09/2019,Physical Support Residential 65+,Charges from Independent Providers,"2,053.52",BUCKLAND CARE LTD
Revenue,Adult Services,Adult Social Care,Physical Support - older people (65+),5105619272,04/09/2019,Physical Support Residential 65+,Charges from Independent Providers,"2,414.16",BUCKLAND CARE LTD
Revenue,Adult Services,Adult Social Care,Physical Support - older people (65+),5105621632,27/09/2019,Physical Support Residential 65+,Charges from Independent Providers,"2,414.16",BUCKLAND CARE LTD
Revenue,Adult Services,Adult Social Care,Physical Support - older people (65+),5105619272,04/09/2019,Physical Support Residential 65+,Charges from Independent Providers,"2,053.52",BUCKLAND CARE LTD
Revenue,Adult Services,Adult Social Care,Physical Support - older people (65+),5105621632,27/09/2019,Physical Support Residential 65+,Charges from Independent Providers,"2,053.52",BUCKLAND CARE LTD
Revenue,Adult Services,Adult Social Care,Physical Support - older people (65+),5105619272,04/09/2019,Physical Support Residential 65+,Charges from Independent Providers,"2,414.16",BUCKLAND CARE LTD
Revenue,Adult Services,Adult Social Care,Physical Support - older people (65+),5105621632,27/09/2019,Physical Support Residential 65+,Charges from Independent Providers,"2,414.16",BUCKLAND CARE LTD
Revenue,Adult Services,Adult Social Care,Physical Support - older people (65+),5105619272,04/09/2019,Physical Support Residential 65+,Charges from Independent Providers,"2,053.52",BUCKLAND CARE LTD
Revenue,Adult Services,Adult Social Care,Physical Support - older people (65+),5105621632,27/09/2019,Physical Support Residential 65+,Charges from Independent Providers,"2,053.52",BUCKLAND CARE LTD
Revenue,Adult Services,Adult Social Care,Physical Support - older people (65+),5105619272,04/09/2019,Physical Support Residential 65+,Charges from Independent Providers,"2,414.16",BUCKLAND CARE LTD
Revenue,Adult Services,Adult Social Care,Physical Support - older people (65+),5105621632,27/09/2019,Physical Support Residential 65+,Charges from Independent Providers,"2,414.16",BUCKLAND CARE LTD
Revenue,Adult Services,Adult Social Care,Physical Support - older people (65+),5105619272,04/09/2019,Physical Support Residential 65+,Charges from Independent Providers,"2,414.16",BUCKLAND CARE LTD
Revenue,Adult Services,Adult Social Care,Physical Support - older people (65+),5105621632,27/09/2019,Physical Support Residential 65+,Charges from Independent Providers,"2,414.16",BUCKLAND CARE LTD
Revenue,Adult Services,Adult Social Care,Support - Memory /Cognition-older people (65+),5105620494,18/09/2019,Memory & Cognition Residential 65+,Charges from Independent Providers,"1,120.86",BUCKLAND CARE LTD
Revenue,Adult Services,Adult Social Care,Support - Memory /Cognition-older people (65+),5105620494,18/09/2019,Memory & Cognition Residential 65+,Charges from Independent Providers,"4,138.56",BUCKLAND CARE LTD
Revenue,Adult Services,Adult Social Care,Support - Memory /Cognition-older people (65+),5105621632,27/09/2019,Memory & Cognition Residential 65+,Charges from Independent Providers,"2,414.16",BUCKLAND CARE LTD
Revenue,Adult Services,Adult Social Care,Support - Memory /Cognition-older people (65+),5105620494,18/09/2019,Memory & Cognition Residential 65+,Charges from Independent Providers,775.98,BUCKLAND CARE LTD
Revenue,Adult Services,Adult Social Care,Physical Support - older people (65+),5105621309,27/09/2019,Physical Support Residential 65+,Charges from Independent Providers,"3,103.92",BUCKLAND CARE LTD
Revenue,Adult Services,Adult Social Care,Physical Support - older people (65+),5105621632,27/09/2019,Physical Support Residential 65+,Charges from Independent Providers,"2,414.16",BUCKLAND CARE LTD
Revenue,Adult Services,Adult Social Care,Physical Support - older people (65+),5105619272,04/09/2019,Physical Support Residential 65+,Charges from Independent Providers,"2,414.16",BUCKLAND CARE LTD
Revenue,Adult Services,Adult Social Care,Physical Support - older people (65+),5105621632,27/09/2019,Physical Support Residential 65+,Charges from Independent Providers,"2,414.16",BUCKLAND CARE LTD
Revenue,Adult Services,Adult Social Care,Learning Disability Support-older people,5105619272,04/09/2019,Learning Disability Residential 65+,Charges from Independent Providers,172.44,BUCKLAND CARE LTD
Revenue,Adult Services,Adult Social Care,Physical Support - older people (65+),5105621309,27/09/2019,Physical Support Residential 65+,Charges from Independent Providers,"3,276.36",BUCKLAND CARE LTD
Revenue,Adult Services,Adult Social Care,Physical Support - older people (65+),5105620545,18/09/2019,Physical Support Residential 65+,Charges from Independent Providers,70.03,BUCKLAND CARE LTD
Revenue,Adult Services,Adult Social Care,Physical Support - older people (65+),5105619272,04/09/2019,Physical Support Residential 65+,Charges from Independent Providers,"1,260.54",BUCKLAND CARE LTD
Revenue,Adult Services,Adult Social Care,Physical Support - older people (65+),5105619746,06/09/2019,Physical Support Residential 65+,Charges from Independent Providers,"1,293.30",BUCKLAND CARE LTD
Revenue,Adult Services,Adult Social Care,Physical Support - older people (65+),5105621215,25/09/2019,Physical Support Residential 65+,Charges from Independent Providers,775.98,BUCKLAND CARE LTD
Revenue,Adult Services,Adult Social Care,Physical Support - older people (65+),5105620416,13/09/2019,Physical Support Residential 65+,Charges from Independent Providers,"1,293.30",BUCKLAND CARE LTD
Revenue,Adult Services,Adult Social Care,Commissioning & Service Delivery,5105620416,13/09/2019,CHC Palliative Care,Charges from Independent Providers,344.88,BUCKLAND CARE LTD
Revenue,Adult Services,Adult Social Care,Physical Support - older people (65+),5105620494,18/09/2019,Physical Support Residential 65+,Charges from Independent Providers,560.24,BUCKLAND CARE LTD
Revenue,Adult Services,Adult Social Care,Physical Support - older people (65+),5105620690,20/09/2019,Physical Support Residential 65+,Charges from Independent Providers,980.42,BUCKLAND CARE LTD
Revenue,Adult Services,Adult Social Care,Physical Support - older people (65+),5105620690,20/09/2019,Physical Support Residential 65+,Charges from Independent Providers,"1,293.30",BUCKLAND CARE LTD
Revenue,Adult Services,Adult Social Care,Physical Support - older people (65+),5105621309,27/09/2019,Physical Support Residential 65+,Crisis Support for Carers,603.54,BUCKLAND CARE LTD
Revenue,Adult Services,Adult Social Care,Physical Support - older people (65+),5105621309,27/09/2019,Physical Support Residential 65+,Charges from Independent Providers,"2,759.04",BUCKLAND CARE LTD
Revenue,Adult Services,Adult Social Care,Support - Memory /Cognition-older people (65+),5105619264,04/09/2019,Memory & Cognition Nursing 65+,Regular Respite Care,"2,717.68",BUCKLAND CARE LTD
Revenue,Adult Services,Adult Social Care,Support - Memory /Cognition-older people (65+),5105621624,27/09/2019,Memory & Cognition Nursing 65+,Regular Respite Care,"2,717.68",BUCKLAND CARE LTD
Revenue,Adult Services,Adult Social Care,Commissioning & Service Delivery,5105621624,27/09/2019,FNC IWC funded clients,Regular Respite Care,632.80,BUCKLAND CARE LTD
Revenue,Adult Services,Adult Social Care,Commissioning & Service Delivery,5105619264,04/09/2019,FNC IWC funded clients,Regular Respite Care,632.80,BUCKLAND CARE LTD
Revenue,Adult Services,Adult Social Care,Physical Support - older people (65+),5105619264,04/09/2019,Physical Support Nursing 65+,Charges from Independent Providers,"2,717.68",BUCKLAND CARE LTD
Revenue,Adult Services,Adult Social Care,Physical Support - older people (65+),5105621624,27/09/2019,Physical Support Nursing 65+,Charges from Independent Providers,"2,717.68",BUCKLAND CARE LTD
Revenue,Adult Services,Adult Social Care,Commissioning & Service Delivery,5105621624,27/09/2019,FNC IWC funded clients,Charges from Independent Providers,662.48,BUCKLAND CARE LTD
Revenue,Adult Services,Adult Social Care,Commissioning & Service Delivery,5105619264,04/09/2019,FNC IWC funded clients,Charges from Independent Providers,662.48,BUCKLAND CARE LTD
Revenue,Adult Services,Adult Social Care,Commissioning & Service Delivery,5105619264,04/09/2019,"Funded Nursing Care, Registered Nursing Care Contribution",Charges from Independent Providers,662.48,BUCKLAND CARE LTD
Revenue,Adult Services,Adult Social Care,Physical Support - adults (18-64),5105619264,04/09/2019,Physical Support Nursing 18-64,Charges from Independent Providers,"2,717.68",BUCKLAND CARE LTD
Revenue,Adult Services,Adult Social Care,Physical Support - adults (18-64),5105621624,27/09/2019,Physical Support Nursing 18-64,Charges from Independent Providers,"2,717.68",BUCKLAND CARE LTD
Revenue,Adult Services,Adult Social Care,Commissioning & Service Delivery,5105621624,27/09/2019,FNC IWC funded clients,Charges from Independent Providers,662.48,BUCKLAND CARE LTD
Revenue,Adult Services,Adult Social Care,Commissioning & Service Delivery,5105619264,04/09/2019,FNC IWC funded clients,Charges from Independent Providers,662.48,BUCKLAND CARE LTD
Revenue,Adult Services,Adult Social Care,Support - Memory /Cognition-older people (65+),5105619264,04/09/2019,Memory & Cognition Residential 65+,Charges from Independent Providers,"2,414.16",BUCKLAND CARE LTD
Revenue,Adult Services,Adult Social Care,Support - Memory /Cognition-older people (65+),5105621624,27/09/2019,Memory & Cognition Residential 65+,Charges from Independent Providers,"2,414.16",BUCKLAND CARE LTD
Revenue,Adult Services,Adult Social Care,Commissioning & Service Delivery,5105619264,04/09/2019,"Funded Nursing Care, Registered Nursing Care Contribution",Charges from Independent Providers,662.48,BUCKLAND CARE LTD
Revenue,Adult Services,Adult Social Care,Commissioning & Service Delivery,5105621624,27/09/2019,"Funded Nursing Care, Registered Nursing Care Contribution",Charges from Independent Providers,662.48,BUCKLAND CARE LTD
Revenue,Adult Services,Adult Social Care,Commissioning & Service Delivery,5105619264,04/09/2019,"Funded Nursing Care, Registered Nursing Care Contribution",Charges from Independent Providers,662.48,BUCKLAND CARE LTD
Revenue,Adult Services,Adult Social Care,Commissioning & Service Delivery,5105621624,27/09/2019,"Funded Nursing Care, Registered Nursing Care Contribution",Charges from Independent Providers,662.48,BUCKLAND CARE LTD
Revenue,Adult Services,Adult Social Care,Commissioning & Service Delivery,5105619264,04/09/2019,"Funded Nursing Care, Registered Nursing Care Contribution",Charges from Independent Providers,662.48,BUCKLAND CARE LTD
Revenue,Adult Services,Adult Social Care,Commissioning & Service Delivery,5105621624,27/09/2019,"Funded Nursing Care, Registered Nursing Care Contribution",Charges from Independent Providers,662.48,BUCKLAND CARE LTD
Revenue,Adult Services,Adult Social Care,Physical Support - older people (65+),5105619264,04/09/2019,Physical Support Residential 65+,Charges from Independent Providers,"2,414.16",BUCKLAND CARE LTD
Revenue,Adult Services,Adult Social Care,Physical Support - older people (65+),5105621624,27/09/2019,Physical Support Residential 65+,Charges from Independent Providers,"2,414.16",BUCKLAND CARE LTD
Revenue,Adult Services,Adult Social Care,Physical Support - older people (65+),5105619264,04/09/2019,Physical Support Nursing 65+,Charges from Independent Providers,"2,414.16",BUCKLAND CARE LTD
Revenue,Adult Services,Adult Social Care,Commissioning & Service Delivery,5105619264,04/09/2019,"Funded Nursing Care, Registered Nursing Care Contribution",Charges from Independent Providers,662.48,BUCKLAND CARE LTD
Revenue,Adult Services,Adult Social Care,Commissioning & Service Delivery,5105621624,27/09/2019,"Funded Nursing Care, Registered Nursing Care Contribution",Charges from Independent Providers,662.48,BUCKLAND CARE LTD
Revenue,Adult Services,Adult Social Care,Commissioning & Service Delivery,5105621136,25/09/2019,FNC IWC funded clients,Charges from Independent Providers,65.72,BUCKLAND CARE LTD
Revenue,Adult Services,Adult Social Care,Support - Memory /Cognition-older people (65+),5105621136,25/09/2019,Memory & Cognition Nursing 65+,Charges from Independent Providers,"11,744.26",BUCKLAND CARE LTD
Revenue,Adult Services,Adult Social Care,Commissioning & Service Delivery,5105621136,25/09/2019,FNC IWC funded clients,Charges from Independent Providers,"2,862.86",BUCKLAND CARE LTD
Revenue,Adult Services,Adult Social Care,Commissioning & Service Delivery,5105619264,04/09/2019,"Funded Nursing Care, Registered Nursing Care Contribution",Charges from Independent Providers,662.48,BUCKLAND CARE LTD
Revenue,Adult Services,Adult Social Care,Commissioning & Service Delivery,5105621624,27/09/2019,"Funded Nursing Care, Registered Nursing Care Contribution",Charges from Independent Providers,662.48,BUCKLAND CARE LTD
Revenue,Adult Services,Adult Social Care,Social Support - Support for Carer,5105620056,11/09/2019,Carers Nursing,Charges from Independent Providers,"5,431.86",BUCKLAND CARE LTD
Revenue,Adult Services,Adult Social Care,Physical Support - older people (65+),5105620543,18/09/2019,Physical Support Nursing 65+,Charges from Independent Providers,"2,135.32",BUCKLAND CARE LTD
Revenue,Adult Services,Adult Social Care,Commissioning & Service Delivery,5105620543,18/09/2019,FNC IWC funded clients,Charges from Independent Providers,520.52,BUCKLAND CARE LTD
Revenue,Adult Services,Adult Social Care,Commissioning & Service Delivery,5105619264,04/09/2019,"Funded Nursing Care, Registered Nursing Care Contribution",Charges from Independent Providers,662.48,BUCKLAND CARE LTD
Revenue,Adult Services,Adult Social Care,Physical Support - older people (65+),5105619264,04/09/2019,Physical Support Nursing 65+,Charges from Independent Providers,"2,717.68",BUCKLAND CARE LTD
Revenue,Adult Services,Adult Social Care,Physical Support - older people (65+),5105621624,27/09/2019,Physical Support Nursing 65+,Charges from Independent Providers,"2,717.68",BUCKLAND CARE LTD
Revenue,Adult Services,Adult Social Care,Commissioning & Service Delivery,5105621624,27/09/2019,FNC IWC funded clients,Charges from Independent Providers,662.48,BUCKLAND CARE LTD
Revenue,Adult Services,Adult Social Care,Commissioning & Service Delivery,5105619264,04/09/2019,FNC IWC funded clients,Charges from Independent Providers,662.48,BUCKLAND CARE LTD
Capital,Corporate Items,Balance Sheet,Balance Sheet,5105620898,20/09/2019,Balance Sheet,Order Settlement to Bal Sht GL,"6,156.72",BUCKLAND CARE LTD
Capital,Corporate Items,Balance Sheet,Balance Sheet,5105620898,20/09/2019,Balance Sheet,Order Settlement to Bal Sht GL,"20,808.00",BUCKLAND CARE LTD
Revenue,Adult Services,Adult Social Care,Physical Support - older people (65+),5105619264,04/09/2019,Physical Support Nursing 65+,Charges from Independent Providers,"2,717.68",BUCKLAND CARE LTD
Revenue,Adult Services,Adult Social Care,Physical Support - older people (65+),5105621624,27/09/2019,Physical Support Nursing 65+,Charges from Independent Providers,"2,717.68",BUCKLAND CARE LTD
Revenue,Adult Services,Adult Social Care,Commissioning & Service Delivery,5105621624,27/09/2019,FNC IWC funded clients,Charges from Independent Providers,662.48,BUCKLAND CARE LTD
Revenue,Adult Services,Adult Social Care,Commissioning & Service Delivery,5105619264,04/09/2019,FNC IWC funded clients,Charges from Independent Providers,662.48,BUCKLAND CARE LTD
Revenue,Adult Services,Balance Sheet,Balance Sheet,5105619264,04/09/2019,REDACTED PERSONAL DATA,Order Settlement to Bal Sht GL,"2,717.68",BUCKLAND CARE LTD
Revenue,Adult Services,Adult Social Care,Commissioning & Service Delivery,5105619264,04/09/2019,FNC IWC funded clients,Charges from Independent Providers,662.48,BUCKLAND CARE LTD
Revenue,Adult Services,Balance Sheet,Balance Sheet,5105619264,04/09/2019,REDACTED PERSONAL DATA,Order Settlement to Bal Sht GL,714.84,BUCKLAND CARE LTD
Revenue,Adult Services,Adult Social Care,Commissioning & Service Delivery,5105619264,04/09/2019,"Funded Nursing Care, Registered Nursing Care Contribution",Charges from Independent Providers,662.48,BUCKLAND CARE LTD
Revenue,Adult Services,Adult Social Care,Commissioning & Service Delivery,5105621624,27/09/2019,"Funded Nursing Care, Registered Nursing Care Contribution",Charges from Independent Providers,662.48,BUCKLAND CARE LTD
Revenue,Adult Services,Adult Social Care,Commissioning & Service Delivery,5105619264,04/09/2019,CHC Nursing Care,Charges from Independent Providers,"3,380.16",BUCKLAND CARE LTD
Revenue,Adult Services,Adult Social Care,Commissioning & Service Delivery,5105621624,27/09/2019,CHC Nursing Care,Charges from Independent Providers,"3,380.16",BUCKLAND CARE LTD
Revenue,Adult Services,Adult Social Care,Social Support - Support for Carer,5105620105,13/09/2019,Carers Nursing,Crisis Support for Carers,689.76,BUCKLAND CARE LTD
Revenue,Adult Services,Adult Social Care,Social Support - Social Isolation/Other,5105620414,13/09/2019,Social Isolation/Other Nursing,Charges from Independent Providers,689.76,BUCKLAND CARE LTD
Revenue,Adult Services,Adult Social Care,Commissioning & Service Delivery,5105620543,18/09/2019,CHC Nursing Care,Charges from Independent Providers,"9,778.32",BUCKLAND CARE LTD
Revenue,Adult Services,Adult Social Care,Commissioning & Service Delivery,5105621624,27/09/2019,CHC Nursing Care,Charges from Independent Providers,"3,380.16",BUCKLAND CARE LTD
Revenue,Adult Services,Adult Social Care,Commissioning & Service Delivery,5105620631,18/09/2019,CHC Nursing Care,Charges from Independent Providers,"11,347.68",BUCKLAND CARE LTD
Revenue,Adult Services,Adult Social Care,Commissioning & Service Delivery,5105621624,27/09/2019,CHC Nursing Care,Charges from Independent Providers,"3,380.16",BUCKLAND CARE LTD
Capital,Corporate Items,Balance Sheet,Balance Sheet,5105620898,20/09/2019,Balance Sheet,Order Settlement to Bal Sht GL,"3,138.72",BUCKLAND CARE LTD
Capital,Corporate Items,Balance Sheet,Balance Sheet,5105621624,27/09/2019,Balance Sheet,Order Settlement to Bal Sht GL,"1,086.48",BUCKLAND CARE LTD
Capital,Corporate Items,Balance Sheet,Balance Sheet,5105620898,20/09/2019,Balance Sheet,Order Settlement to Bal Sht GL,"3,018.00",BUCKLAND CARE LTD
Capital,Corporate Items,Balance Sheet,Balance Sheet,5105621624,27/09/2019,Balance Sheet,Order Settlement to Bal Sht GL,482.88,BUCKLAND CARE LTD
Revenue,Adult Services,Adult Social Care,Commissioning & Service Delivery,5105620898,20/09/2019,CHC Palliative Care,Charges from Independent Providers,724.32,BUCKLAND CARE LTD
Capital,Corporate Items,Balance Sheet,Balance Sheet,5105621002,25/09/2019,Balance Sheet,Order Settlement to Bal Sht GL,"1,569.36",BUCKLAND CARE LTD
Capital,Corporate Items,Balance Sheet,Balance Sheet,5105621002,25/09/2019,Balance Sheet,Order Settlement to Bal Sht GL,"5,311.68",BUCKLAND CARE LTD
Capital,Corporate Items,Balance Sheet,Balance Sheet,5105621306,27/09/2019,Balance Sheet,Order Settlement to Bal Sht GL,"4,104.48",BUCKLAND CARE LTD
Revenue,Adult Services,Adult Social Care,Commissioning & Service Delivery,5105621579,27/09/2019,CHC Nursing Care,Charges from Independent Providers,"5,673.84",BUCKLAND CARE LTD
Revenue,Adult Services,Adult Social Care,Physical Support - older people (65+),5105621579,27/09/2019,Physical Support Nursing 65+,Charges from Independent Providers,"6,503.02",BUCKLAND CARE LTD
Revenue,Adult Services,Adult Social Care,Commissioning & Service Delivery,5105621579,27/09/2019,FNC IWC funded clients,Charges from Independent Providers,"1,585.22",BUCKLAND CARE LTD
Revenue,Adult Services,Adult Social Care,Physical Support - older people (65+),5105621624,27/09/2019,Physical Support Nursing 65+,Charges from Independent Providers,"2,717.68",BUCKLAND CARE LTD
Revenue,Adult Services,Adult Social Care,Commissioning & Service Delivery,5105621624,27/09/2019,FNC IWC funded clients,Charges from Independent Providers,662.48,BUCKLAND CARE LTD
Revenue,Adult Services,Adult Social Care,Physical Support - older people (65+),5105619284,04/09/2019,Physical Support Nursing 65+,Charges from Independent Providers,"3,800.16",BUPA CARE HOME (BNH) LTD
Revenue,Adult Services,Adult Social Care,Physical Support - older people (65+),5105621644,27/09/2019,Physical Support Nursing 65+,Charges from Independent Providers,"3,800.16",BUPA CARE HOME (BNH) LTD
Capital,Resources,Capital,Capital,5105621119,25/09/2019,Server Farm,ICT Hardware & Software - Capital,"2,696.00",BUY IT DIRECT
Capital,Resources,Capital,Capital,5105621119,25/09/2019,Server Farm,ICT Hardware & Software - Capital,530.00,BUY IT DIRECT
Capital,Resources,Capital,Capital,5105621119,25/09/2019,Server Farm,ICT Hardware & Software - Capital,48.00,BUY IT DIRECT
Capital,Resources,Capital,Capital,5105621119,25/09/2019,Server Farm,ICT Hardware & Software - Capital,66.62,BUY IT DIRECT
Capital,Resources,Capital,Capital,5105621119,25/09/2019,Server Farm,ICT Hardware & Software - Capital,116.62,BUY IT DIRECT
Revenue,Childrens Services,Children's & Education Services,Children Looked After,5105619487,06/09/2019,Special Guardianship Order Costs,Support Children,161.49,REDACTED PERSONAL DATA
Revenue,Childrens Services,Children's & Education Services,Children Looked After,5105620137,13/09/2019,Special Guardianship Order Costs,Support Children,161.49,REDACTED PERSONAL DATA
Revenue,Childrens Services,Children's & Education Services,Children Looked After,5105620722,20/09/2019,Special Guardianship Order Costs,Support Children,161.49,REDACTED PERSONAL DATA
Revenue,Childrens Services,Children's & Education Services,Children Looked After,5105621339,27/09/2019,Special Guardianship Order Costs,Support Children,161.49,REDACTED PERSONAL DATA
Revenue,Childrens Services,Children's & Education Services,Children Looked After,5105619522,06/09/2019,Children placed with Family&Friends,Boarding Out Allowances,239.44,REDACTED PERSONAL DATA
Revenue,Childrens Services,Children's & Education Services,Children Looked After,5105620172,13/09/2019,Children placed with Family&Friends,Boarding Out Allowances,239.44,REDACTED PERSONAL DATA
Revenue,Childrens Services,Children's & Education Services,Children Looked After,5105620756,20/09/2019,Children placed with Family&Friends,Boarding Out Allowances,239.44,REDACTED PERSONAL DATA
Revenue,Childrens Services,Children's & Education Services,Children Looked After,5105621373,27/09/2019,Children placed with Family&Friends,Boarding Out Allowances,239.44,REDACTED PERSONAL DATA
Revenue,Childrens Services,Children's & Education Services,Children Looked After,5105621363,27/09/2019,Adoption Costs,Support Children,168.09,REDACTED PERSONAL DATA
Revenue,Childrens Services,Children's & Education Services,Children Looked After,5105619512,06/09/2019,Adoption Costs,Support Children,168.09,REDACTED PERSONAL DATA
Revenue,Childrens Services,Children's & Education Services,Children Looked After,5105620161,13/09/2019,Adoption Costs,Support Children,168.09,REDACTED PERSONAL DATA
Revenue,Childrens Services,Children's & Education Services,Children Looked After,5105620746,20/09/2019,Adoption Costs,Support Children,168.09,REDACTED PERSONAL DATA
Revenue,Childrens Services,Children's & Education Services,Children Looked After,5105620746,20/09/2019,Adoption Costs,Support Children,161.49,REDACTED PERSONAL DATA
Revenue,Childrens Services,Children's & Education Services,Children Looked After,5105620161,13/09/2019,Adoption Costs,Support Children,161.49,REDACTED PERSONAL DATA
Revenue,Childrens Services,Children's & Education Services,Children Looked After,5105619512,06/09/2019,Adoption Costs,Support Children,161.49,REDACTED PERSONAL DATA
Revenue,Childrens Services,Children's & Education Services,Children Looked After,5105621363,27/09/2019,Adoption Costs,Support Children,161.49,REDACTED PERSONAL DATA
Revenue,Resources,Central Services,Support Services,5105621021,25/09/2019,Staff Benefits,Payment to Private Contractors,159.05,REDACTED PERSONAL DATA
Revenue,Childrens Services,Children's & Education Services,Children Looked After,5105619497,06/09/2019,Special Guardianship Order Costs,Support Children,125.39,REDACTED PERSONAL DATA
Revenue,Childrens Services,Children's & Education Services,Children Looked After,5105620146,13/09/2019,Special Guardianship Order Costs,Support Children,125.39,REDACTED PERSONAL DATA
Revenue,Childrens Services,Children's & Education Services,Children Looked After,5105620731,20/09/2019,Special Guardianship Order Costs,Support Children,125.39,REDACTED PERSONAL DATA
Revenue,Childrens Services,Children's & Education Services,Children Looked After,5105621348,27/09/2019,Special Guardianship Order Costs,Support Children,125.39,REDACTED PERSONAL DATA
Revenue,Childrens Services,Children's & Education Services,Children Looked After,5105619520,06/09/2019,In-house Fostering,Boarding Out Allowances,325.85,REDACTED PERSONAL DATA
Revenue,Childrens Services,Children's & Education Services,Children Looked After,5105620170,13/09/2019,In-house Fostering,Boarding Out Allowances,325.85,REDACTED PERSONAL DATA
Revenue,Childrens Services,Children's & Education Services,Children Looked After,5105621371,27/09/2019,In-house Fostering,Boarding Out Allowances,325.85,REDACTED PERSONAL DATA
Revenue,Childrens Services,Children's & Education Services,Children Looked After,5105620754,20/09/2019,In-house Fostering,Boarding Out Allowances,325.85,REDACTED PERSONAL DATA
Revenue,Childrens Services,Children's & Education Services,Children Looked After,5105620754,20/09/2019,In-house Fostering,Boarding Out Allowances,280.58,REDACTED PERSONAL DATA
Revenue,Childrens Services,Children's & Education Services,Children Looked After,5105621371,27/09/2019,In-house Fostering,Boarding Out Allowances,280.58,REDACTED PERSONAL DATA
Revenue,Childrens Services,Children's & Education Services,Children Looked After,5105620170,13/09/2019,In-house Fostering,Boarding Out Allowances,280.58,REDACTED PERSONAL DATA
Revenue,Childrens Services,Children's & Education Services,Children Looked After,5105619520,06/09/2019,In-house Fostering,Boarding Out Allowances,280.58,REDACTED PERSONAL DATA
Revenue,Childrens Services,Children's & Education Services,Children Looked After,5105619535,06/09/2019,Special Guardianship Order Costs,Support Children,220.11,REDACTED PERSONAL DATA
Revenue,Childrens Services,Children's & Education Services,Children Looked After,5105620185,13/09/2019,Special Guardianship Order Costs,Support Children,220.11,REDACTED PERSONAL DATA
Revenue,Childrens Services,Children's & Education Services,Children Looked After,5105620769,20/09/2019,Special Guardianship Order Costs,Support Children,220.11,REDACTED PERSONAL DATA
Revenue,Childrens Services,Children's & Education Services,Children Looked After,5105621386,27/09/2019,Special Guardianship Order Costs,Support Children,220.11,REDACTED PERSONAL DATA
Revenue,Childrens Services,Children's & Education Services,Children Looked After,5105619481,06/09/2019,In-house Fostering,Boarding Out Allowances,269.08,REDACTED PERSONAL DATA
Revenue,Childrens Services,Children's & Education Services,Children Looked After,5105620131,13/09/2019,In-house Fostering,Boarding Out Allowances,269.08,REDACTED PERSONAL DATA
Revenue,Childrens Services,Children's & Education Services,Children Looked After,5105620716,20/09/2019,In-house Fostering,Boarding Out Allowances,269.08,REDACTED PERSONAL DATA
Revenue,Childrens Services,Children's & Education Services,Children Looked After,5105621333,27/09/2019,In-house Fostering,Boarding Out Allowances,269.08,REDACTED PERSONAL DATA
Revenue,Childrens Services,Children's & Education Services,Children Looked After,5105619481,06/09/2019,In-house Fostering,Boarding Out Allowances,325.85,REDACTED PERSONAL DATA
Revenue,Childrens Services,Children's & Education Services,Children Looked After,5105619600,06/09/2019,Special Guardianship Order Costs,Support Children,193.73,REDACTED PERSONAL DATA
Revenue,Childrens Services,Children's & Education Services,Children Looked After,5105620833,20/09/2019,Special Guardianship Order Costs,Support Children,193.73,REDACTED PERSONAL DATA
Revenue,Childrens Services,Children's & Education Services,Children Looked After,5105621453,27/09/2019,Special Guardianship Order Costs,Support Children,193.73,REDACTED PERSONAL DATA
Revenue,Childrens Services,Children's & Education Services,Children Looked After,5105620250,13/09/2019,Special Guardianship Order Costs,Support Children,193.73,REDACTED PERSONAL DATA
Revenue,Childrens Services,Children's & Education Services,Children Looked After,5105619507,06/09/2019,Special Guardianship Order Costs,Support Children,161.49,REDACTED PERSONAL DATA
Revenue,Childrens Services,Children's & Education Services,Children Looked After,5105620156,13/09/2019,Special Guardianship Order Costs,Support Children,161.49,REDACTED PERSONAL DATA
Revenue,Childrens Services,Children's & Education Services,Children Looked After,5105620741,20/09/2019,Special Guardianship Order Costs,Support Children,161.49,REDACTED PERSONAL DATA
Revenue,Childrens Services,Children's & Education Services,Children Looked After,5105621358,27/09/2019,Special Guardianship Order Costs,Support Children,161.49,REDACTED PERSONAL DATA
Revenue,Childrens Services,Children's & Education Services,Children Looked After,5105619485,06/09/2019,Adoption Costs,Support Children,168.39,REDACTED PERSONAL DATA
Revenue,Childrens Services,Children's & Education Services,Children Looked After,5105620135,13/09/2019,Adoption Costs,Support Children,168.39,REDACTED PERSONAL DATA
Revenue,Childrens Services,Children's & Education Services,Children Looked After,5105620720,20/09/2019,Adoption Costs,Support Children,168.39,REDACTED PERSONAL DATA
Revenue,Childrens Services,Children's & Education Services,Children Looked After,5105621337,27/09/2019,Adoption Costs,Support Children,168.39,REDACTED PERSONAL DATA
Revenue,Childrens Services,Children's & Education Services,Post-16 Provision,5105619339,04/09/2019,Post 16 Independ. & Non-Maint. Special Schls & Independ. Specialist Provision,Charges from Independent Providers,"21,275.67",CAMBIAN ASPERGER SYNDROME SERVICES LTD
Revenue,Childrens Services,Children's & Education Services,Children Looked After,5105619339,04/09/2019,NHS Funded Placements,Charges from Independent Providers,"1,995.66",CAMBIAN ASPERGER SYNDROME SERVICES LTD
Revenue,Adult Services,Adult Social Care,Mental Health Support - adults (18-64),5105619339,04/09/2019,Mental Health Residential 18-64,Charges from Independent Providers,"19,280.00",CAMBIAN ASPERGER SYNDROME SERVICES LTD
Revenue,Adult Services,Adult Social Care,Mental Health Support - adults (18-64),5105620677,25/09/2019,Mental Health Residential 18-64,Charges from Independent Providers,"27,063.46",CAMBIAN ASPERGER SYNDROME SERVICES LTD
Revenue,Childrens Services,Children's & Education Services,Post-16 Provision,5105620677,25/09/2019,Post 16 Independ. & Non-Maint. Special Schls & Independ. Specialist Provision,Charges from Independent Providers,"11,541.77",CAMBIAN ASPERGER SYNDROME SERVICES LTD
Revenue,Adult Services,Adult Social Care,Mental Health Support - adults (18-64),5105620677,25/09/2019,Mental Health Residential 18-64,Charges from Independent Providers,"1,193.97",CAMBIAN ASPERGER SYNDROME SERVICES LTD
Revenue,Childrens Services,Children's & Education Services,Children Looked After,5105619170,13/09/2019,Purchased Residential,Charges from Independent Providers,"12,397.19",CAMBIAN ASPERGER SYNDROME SERVICES LTD
Revenue,Childrens Services,Children's & Education Services,Children Looked After,5105619337,04/09/2019,Purchased Residential,Charges from Independent Providers,"1,217.99",CAMBIAN ASPERGER SYNDROME SERVICES LTD
Revenue,Childrens Services,Children's & Education Services,Children Looked After,5105620607,18/09/2019,Purchased Residential,Charges from Independent Providers,"12,810.43",CAMBIAN ASPERGER SYNDROME SERVICES LTD
Revenue,Childrens Services,Children's & Education Services,Children Looked After,5105620676,20/09/2019,Purchased Residential,Charges from Independent Providers,"1,258.60",CAMBIAN ASPERGER SYNDROME SERVICES LTD
Revenue,Childrens Services,Children's & Education Services,Management & Support Services,5105620607,18/09/2019,Pre 16 Independ. & Non-Maint. Special Schls & Independ. Specialist Provision,Charges from Independent Providers,"2,779.24",CAMBIAN ASPERGER SYNDROME SERVICES LTD
Revenue,Childrens Services,Children's & Education Services,Management & Support Services,5105620676,20/09/2019,Pre 16 Independ. & Non-Maint. Special Schls & Independ. Specialist Provision,Charges from Independent Providers,273.05,CAMBIAN ASPERGER SYNDROME SERVICES LTD
Revenue,Childrens Services,Children's & Education Services,Management & Support Services,5105619337,04/09/2019,Pre 16 Independ. & Non-Maint. Special Schls & Independ. Specialist Provision,Charges from Independent Providers,264.25,CAMBIAN ASPERGER SYNDROME SERVICES LTD
Revenue,Childrens Services,Children's & Education Services,Management & Support Services,5105619170,13/09/2019,Pre 16 Independ. & Non-Maint. Special Schls & Independ. Specialist Provision,Charges from Independent Providers,"2,689.59",CAMBIAN ASPERGER SYNDROME SERVICES LTD
Revenue,Childrens Services,Children's & Education Services,Children Looked After,5105619337,04/09/2019,NHS Funded Placements,Charges from Independent Providers,38.16,CAMBIAN ASPERGER SYNDROME SERVICES LTD
Revenue,Childrens Services,Children's & Education Services,Children Looked After,5105619170,13/09/2019,NHS Funded Placements,Charges from Independent Providers,388.42,CAMBIAN ASPERGER SYNDROME SERVICES LTD
Revenue,Childrens Services,Children's & Education Services,Children Looked After,5105620607,18/09/2019,NHS Funded Placements,Charges from Independent Providers,401.37,CAMBIAN ASPERGER SYNDROME SERVICES LTD
Revenue,Childrens Services,Children's & Education Services,Children Looked After,5105620676,20/09/2019,NHS Funded Placements,Charges from Independent Providers,39.43,CAMBIAN ASPERGER SYNDROME SERVICES LTD
Revenue,Childrens Services,Children's & Education Services,Post-16 Provision,5105619176,04/09/2019,Post 16 Independ. & Non-Maint. Special Schls & Independ. Specialist Provision,Charges from Independent Providers,"47,028.33",CAMBIAN ASPERGER SYNDROME SERVICES LTD
Revenue,Childrens Services,Children's & Education Services,Management & Support Services,5105618615,06/09/2019,Pre 16 Independ. & Non-Maint. Special Schls & Independ. Specialist Provision,Charges from Independent Providers,"6,166.67",CAMBIAN ASPERGER SYNDROME SERVICES LTD
Revenue,Childrens Services,Children's & Education Services,Management & Support Services,5105619336,04/09/2019,Pre 16 Independ. & Non-Maint. Special Schls & Independ. Specialist Provision,Charges from Independent Providers,"6,080.00",CAMBIAN ASPERGER SYNDROME SERVICES LTD
Revenue,Childrens Services,Children's & Education Services,Post-16 Provision,5105619182,04/09/2019,Post 16 Independ. & Non-Maint. Special Schls & Independ. Specialist Provision,Charges from Independent Providers,"49,113.33",CAMBIAN ASPERGER SYNDROME SERVICES LTD
Revenue,Childrens Services,Children's & Education Services,Children Looked After,5105619140,04/09/2019,Purchased Residential,Charges from Independent Providers,"15,434.40",CAMBIAN CHILDCARE LTD
Revenue,Childrens Services,Children's & Education Services,Children Looked After,5105619739,06/09/2019,Purchased Residential,Charges from Independent Providers,"16,928.70",CAMBIAN CHILDCARE LTD
Revenue,Childrens Services,Children's & Education Services,Management & Support Services,5105619376,04/09/2019,Pre 16 Independ. & Non-Maint. Special Schls & Independ. Specialist Provision,Charges from Independent Providers,"3,428.70",CAMBIAN CHILDCARE LTD
Revenue,Neighbourhoods,Cultural and Related Services,Culture and Heritage,5105619163,06/09/2019,Historic Environment Record,Publications,74.33,CAMBRIDGE UNIVERSITY PRESS
Revenue,Neighbourhoods,Cultural and Related Services,Culture and Heritage,5105619163,06/09/2019,Historic Environment Record,Publications,102.67,CAMBRIDGE UNIVERSITY PRESS
Revenue,Childrens Services,Children's & Education Services,Children Looked After,5105620086,20/09/2019,Purchased Fostering,Charges from Independent Providers,"2,914.20",CAPSTONE FOSTER CARE LTD
Revenue,Childrens Services,Children's & Education Services,Other Education and Community Budget,5105618678,04/09/2019,Home to School SEN Transport (LA),Taxis - Contract Hire,162.00,CARE CONNECT IOW CIC
Revenue,Childrens Services,Children's & Education Services,Family Support Services,5105620476,18/09/2019,Short Breaks,Charges from Independent Providers,"2,403.36",CARE CONNECT IOW CIC
Revenue,Childrens Services,Children's & Education Services,Family Support Services,5105618063,04/09/2019,Short Breaks,Charges from Independent Providers,295.38,CARE CONNECT IOW CIC
Revenue,Adult Services,Adult Social Care,Mental Health Support (to be reallocated),5105620629,18/09/2019,Mental Health Day Services,Grounds Maintenance,90.00,CARE IN THE GARDEN
Revenue,Adult Services,Adult Social Care,Mental Health Support (to be reallocated),5105620600,18/09/2019,Mental Health Day Services,Grounds Maintenance,135.00,CARE IN THE GARDEN
Revenue,Adult Services,Adult Social Care,Learning Disab Supp (to be reallocated),5105621241,27/09/2019,40 Venner Avenue,Grounds Maintenance,81.00,CARE IN THE GARDEN
Revenue,Adult Services,Adult Social Care,Learning Disab Supp (to be reallocated),5105621241,27/09/2019,Plean Dene,Grounds Maintenance,81.00,CARE IN THE GARDEN
Revenue,Adult Services,Adult Social Care,Learning Disab Supp (to be reallocated),5105621241,27/09/2019,Saxonbury,Grounds Maintenance,171.00,CARE IN THE GARDEN
Revenue,Adult Services,Adult Social Care,Learning Disab Supp (to be reallocated),5105621241,27/09/2019,Seagulls,Grounds Maintenance,45.00,CARE IN THE GARDEN
Revenue,Adult Services,Adult Social Care,Social Support - Support for Carer,5105621241,27/09/2019,Westminster House,Grounds Maintenance,144.00,CARE IN THE GARDEN
Revenue,Adult Services,Adult Social Care,Social Support - Support for Carer,5105620004,11/09/2019,BCF Carers Services,Grants to External Bodies,"21,875.00",CARERS IW
Revenue,Public Health,Public Health,NHS Health Check Programme,5105619749,06/09/2019,NHS Health Check Programme P,Payment to Private Contractors,97.00,CARISBROOKE HEALTH CENTRE
Revenue,Public Health,Public Health,Sexual Health,5105619749,06/09/2019,Long Acting Reversible Contraception,Payment to Private Contractors,"3,375.00",CARISBROOKE HEALTH CENTRE
Revenue,Childrens Services,Children's & Education Services,Family Support Services,5105620327,13/09/2019,Short Breaks,Charges from Independent Providers,160.23,REDACTED PERSONAL DATA
Revenue,Neighbourhoods,Cultural and Related Services,Culture and Heritage,5105620632,18/09/2019,Dinosaur Isle Museum (Sandown Geology),Stock Purchases,438.24,CASA GRANDE LIMITED
Revenue,Neighbourhoods,Cultural and Related Services,Culture and Heritage,5105619685,18/09/2019,Dinosaur Isle Museum (Sandown Geology),Stock Purchases,-438.24,CASA GRANDE LIMITED
Revenue,Neighbourhoods,Cultural and Related Services,Culture and Heritage,5105619685,18/09/2019,Dinosaur Isle Museum (Sandown Geology),Stock Purchases,-420.00,CASA GRANDE LIMITED
Revenue,Neighbourhoods,Cultural and Related Services,Culture and Heritage,5105620632,18/09/2019,Dinosaur Isle Museum (Sandown Geology),Stock Purchases,420.00,CASA GRANDE LIMITED
Revenue,Neighbourhoods,Cultural and Related Services,Culture and Heritage,5105620632,18/09/2019,Dinosaur Isle Museum (Sandown Geology),Stock Purchases,202.05,CASA GRANDE LIMITED
Revenue,Neighbourhoods,Cultural and Related Services,Culture and Heritage,5105619685,18/09/2019,Dinosaur Isle Museum (Sandown Geology),Stock Purchases,-202.05,CASA GRANDE LIMITED
Revenue,Neighbourhoods,Cultural and Related Services,Culture and Heritage,5105621176,25/09/2019,Dinosaur Isle Museum (Sandown Geology),Stock Purchases,30.00,CASA GRANDE LIMITED
Revenue,Neighbourhoods,Cultural and Related Services,Culture and Heritage,5105621176,25/09/2019,Dinosaur Isle Museum (Sandown Geology),Stock Purchases,7.56,CASA GRANDE LIMITED
Revenue,Neighbourhoods,Cultural and Related Services,Culture and Heritage,5105621176,25/09/2019,Dinosaur Isle Museum (Sandown Geology),Stock Purchases,47.88,CASA GRANDE LIMITED
Revenue,Neighbourhoods,Cultural and Related Services,Culture and Heritage,5105621176,25/09/2019,Dinosaur Isle Museum (Sandown Geology),Stock Purchases,37.80,CASA GRANDE LIMITED
Revenue,Neighbourhoods,Cultural and Related Services,Culture and Heritage,5105621176,25/09/2019,Dinosaur Isle Museum (Sandown Geology),Stock Purchases,20.40,CASA GRANDE LIMITED
Capital,Adult Services,Capital,Capital,5105620935,27/09/2019,Adelaide & Gouldings Fixtures & Fittings,"Plant, Equipment & Furniture - Capital","1,065.00",CATER WIGHT
Capital,Adult Services,Capital,Capital,5105620935,27/09/2019,Adelaide & Gouldings Fixtures & Fittings,"Plant, Equipment & Furniture - Capital",105.00,CATER WIGHT
Revenue,Resources,Central Services,Support Services,5105620510,18/09/2019,Aylesford Access 420,Professional Services,829.06,CAXTONS COMMERCIAL LIMITED
Revenue,Neighbourhoods,Cultural and Related Services,Open Spaces,5105620301,13/09/2019,Rights of Way Operations,General Materials,"1,356.88",CENTREWIRE LTD
Revenue,Neighbourhoods,Cultural and Related Services,Open Spaces,5105620326,13/09/2019,Rights of Way Operations,General Materials,506.00,CENTREWIRE LTD
Capital,Place,Capital,Capital,5105620301,13/09/2019,Rights Of Way Capital Programme,Payment to Contractors - Capital,"1,356.88",CENTREWIRE LTD
Capital,Place,Capital,Capital,5105620326,13/09/2019,Rights Of Way Capital Programme,Payment to Contractors - Capital,506.00,CENTREWIRE LTD
Revenue,Adult Services,Adult Social Care,Central Codes (to be reallocated),5105621680,27/09/2019,Community Reablement,Vehicle Maintenance Costs,11.50,CHAMELEON CODEWING LTD
Revenue,Adult Services,Adult Social Care,Central Codes (to be reallocated),5105621680,27/09/2019,Community Reablement,Vehicle Maintenance Costs,11.50,CHAMELEON CODEWING LTD
Revenue,Adult Services,Adult Social Care,Central Codes (to be reallocated),5105621680,27/09/2019,Community Reablement,Vehicle Maintenance Costs,11.50,CHAMELEON CODEWING LTD
Revenue,Adult Services,Adult Social Care,Central Codes (to be reallocated),5105621680,27/09/2019,Community Reablement,Vehicle Maintenance Costs,11.50,CHAMELEON CODEWING LTD
Revenue,Childrens Services,Children's & Education Services,Safeguarding Children/Young Peoples Svs,5105621680,27/09/2019,Pool Cars,Vehicle Maintenance Costs,11.50,CHAMELEON CODEWING LTD
Revenue,Childrens Services,Children's & Education Services,Safeguarding Children/Young Peoples Svs,5105621680,27/09/2019,Pool Cars,Vehicle Maintenance Costs,11.50,CHAMELEON CODEWING LTD
Revenue,Adult Services,Adult Social Care,Central Codes (to be reallocated),5105621680,27/09/2019,Community Reablement,Vehicle Maintenance Costs,11.50,CHAMELEON CODEWING LTD
Revenue,Adult Services,Adult Social Care,Central Codes (to be reallocated),5105621680,27/09/2019,Community Reablement,Vehicle Maintenance Costs,11.50,CHAMELEON CODEWING LTD
Revenue,Neighbourhoods,Highways and Transport Services,Parking Services,5105621680,27/09/2019,Off-Street Parking Operations,Vehicle Maintenance Costs,11.50,CHAMELEON CODEWING LTD
Revenue,Resources,Highways and Transport Services,Public Transport,5105621680,27/09/2019,Transport Fleet Administration,Vehicle Maintenance Costs,11.50,CHAMELEON CODEWING LTD
Revenue,Adult Services,Adult Social Care,Central Codes (to be reallocated),5105621680,27/09/2019,Community Reablement,Vehicle Maintenance Costs,11.50,CHAMELEON CODEWING LTD
Revenue,Neighbourhoods,Cultural and Related Services,Open Spaces,5105621680,27/09/2019,Rights of Way Operations,Vehicle Maintenance Costs,11.50,CHAMELEON CODEWING LTD
Revenue,Neighbourhoods,Environmental & Regulatory Services,Service Management and Support Services,5105621680,27/09/2019,Environment officers,Vehicle Maintenance Costs,11.50,CHAMELEON CODEWING LTD
Revenue,Neighbourhoods,Environmental & Regulatory Services,Service Management and Support Services,5105621680,27/09/2019,Environment officers,Vehicle Maintenance Costs,11.50,CHAMELEON CODEWING LTD
Revenue,Neighbourhoods,Cultural and Related Services,Open Spaces,5105621680,27/09/2019,Rights of Way Operations,Vehicle Maintenance Costs,11.50,CHAMELEON CODEWING LTD
Revenue,Neighbourhoods,Environmental & Regulatory Services,"Cemetery, Cremation & Mortuary Services",5105621680,27/09/2019,Cemeteries Administration,Vehicle Maintenance Costs,11.50,CHAMELEON CODEWING LTD
Revenue,Neighbourhoods,Cultural and Related Services,Open Spaces,5105621680,27/09/2019,Client Management Unit - Grounds Maintenance,Vehicle Maintenance Costs,11.50,CHAMELEON CODEWING LTD
Revenue,Neighbourhoods,Cultural and Related Services,Recreation and Sport,5105621680,27/09/2019,Commercial Sales Team,Vehicle Maintenance Costs,11.50,CHAMELEON CODEWING LTD
Revenue,Adult Services,Adult Social Care,Social Care Activities,5105621680,27/09/2019,Commissioning Manager Individual Support,Vehicle Maintenance Costs,11.50,CHAMELEON CODEWING LTD
Revenue,Adult Services,Adult Social Care,Social Care Activities,5105621680,27/09/2019,Commissioning Manager Individual Support,Vehicle Maintenance Costs,11.50,CHAMELEON CODEWING LTD
